Workbook

Sheet Main
B10: 2023-09-11
B12: Sheet No. | C12: Template Name | D12: Summary
B13: 1 | C13: Future Intra | D13: For Intraday trading in F&O segment
B14: 2 | C14: Cash Intra | D14: For Intraday trading in cash market segment
B15: 3 | C15: Mid-cap Intra | D15: For Intraday trading in Mid-cap stocks
B16: 4 | C16: Bulk Deals | D16: Reveals Bulk Deals carried on NSE & BSE
B17: 5 | C17: Call Tracker
K27: `

Sheet Future Intra
M5: Back to Main Page
A6: FOR INTRA DAY TRADING | L6: =Main!B10 -> 2023-09-11
A9: Sr.no | B9: Sector | C9: Scrip | D9: Expiry Date | E9: CLOSE RATE | F9: Pivot Point | G9: Supports | J9: Resistances
E10: Point | F10: Point | G10: S1 | H10: S2 | I10: S3 | J10: R1 | K10: R2 | L10: R3 | M10: HIGH | N10: LOW | O10: OI | P10: % Change in OI
A11: 1 | B11: Index | C11: NIFTY | D11: 2023-09-28 | E11: 19872.45 | F11: 19853.58 | G11: 19791.17 | H11: 19709.88 | I11: 19647.47 | J11: 19934.87 | K11: 19997.28 | L11: 20078.57 | M11: 19916 | N11: 19772.3 | O11: 11082650 | P11: 0%
A12: 2 | B12: Index | C12: BANKNIFTY | D12: 2023-09-28 | E12: 45319.65 | F12: 45286.42 | G12: 45009.68 | H12: 44699.72 | I12: 44422.98 | J12: 45596.38 | K12: 45873.12 | L12: 46183.08 | M12: 45563.15 | N12: 44976.45 | O12: 2271420 | P12: -1%
A13: 3 | B13: Index | C13: FINNIFTY | D13: 2023-09-26 | E13: 20189.90 | F13: 20178.25 | G13: 20057.50 | H13: 19925.10 | I13: 19804.35 | J13: 20310.65 | K13: 20431.40 | L13: 20563.80 | M13: 20299 | N13: 20045.85 | O13: 79240 | P13: 14%
A14: 4 | B14: Index | C14: MIDCPNIFTY | D14: 2023-09-25 | E14: 9137.95 | F14: 9121.03 | G14: 9086.82 | H14: 9035.68 | I14: 9001.47 | J14: 9172.17 | K14: 9206.38 | L14: 9257.52 | M14: 9155.25 | N14: 9069.9 | O14: 188025 | P14: -1%
A15: 5 | B15: Chemical | C15: AARTIIND | D15: 2023-09-28 | E15: 518.70 | F15: 520.73 | G15: 515.12 | H15: 511.53 | I15: 505.92 | J15: 524.32 | K15: 529.93 | L15: 533.52 | M15: 526.35 | N15: 517.15 | O15: 12699000 | P15: -1%
A16: 6 | B16: Capital_Goods | C16: ABB | D16: 2023-09-28 | E16: 4481.85 | F16: 4488.38 | G16: 4449.47 | H16: 4417.08 | I16: 4378.17 | J16: 4520.77 | K16: 4559.68 | L16: 4592.07 | M16: 4527.3 | N16: 4456 | O16: 1216000 | P16: 0%
A17: 7 | B17: Pharma | C17: ABBOTINDIA | D17: 2023-09-28 | E17: 23046.50 | F17: 23069.60 | G17: 22894.30 | H17: 22742.10 | I17: 22566.80 | J17: 23221.80 | K17: 23397.10 | L17: 23549.30 | M17: 23244.9 | N17: 22917.4 | O17: 74160 | P17: 0%
A18: 8 | B18: Others | C18: ABCAPITAL | D18: 2023-09-28 | E18: 187.65 | F18: 188.27 | G18: 186.58 | H18: 185.52 | I18: 183.83 | J18: 189.33 | K18: 191.02 | L18: 192.08 | M18: 189.95 | N18: 187.2 | O18: 38377800 | P18: -1%
A19: 9 | B19: Textile | C19: ABFRL | D19: 2023-09-28 | E19: 229.80 | F19: 230.75 | G19: 228.55 | H19: 227.30 | I19: 225.10 | J19: 232.00 | K19: 234.20 | L19: 235.45 | M19: 232.95 | N19: 229.5 | O19: 30154800 | P19: -1%
A20: 10 | B20: Cement | C20: ACC | D20: 2023-09-28 | E20: 2033.10 | F20: 2042.40 | G20: 2017.05 | H20: 2001.00 | I20: 1975.65 | J20: 2058.45 | K20: 2083.80 | L20: 2099.85 | M20: 2067.75 | N20: 2026.35 | O20: 6214200 | P20: -1%
A21: 11 | B21: Others | C21: ADANIENT | D21: 2023-09-28 | E21: 2528.90 | F21: 2525.23 | G21: 2498.67 | H21: 2468.43 | I21: 2441.87 | J21: 2555.47 | K21: 2582.03 | L21: 2612.27 | M21: 2551.8 | N21: 2495 | O21: 10211100 | P21: -1%
A22: 12 | B22: Others | C22: ADANIPORTS | D22: 2023-09-28 | E22: 826.85 | F22: 824.47 | G22: 816.93 | H22: 807.02 | I22: 799.48 | J22: 834.38 | K22: 841.92 | L22: 851.83 | M22: 832 | N22: 814.55 | O22: 43903200 | P22: -2%
A23: 13 | B23: Pharma | C23: ALKEM | D23: 2023-09-28 | E23: 3639.55 | F23: 3645.55 | G23: 3625.10 | H23: 3610.65 | I23: 3590.20 | J23: 3660.00 | K23: 3680.45 | L23: 3694.90 | M23: 3666 | N23: 3631.1 | O23: 762600 | P23: 0%
A24: 14 | B24: Cement | C24: AMBUJACEM | D24: 2023-09-28 | E24: 441.55 | F24: 441.20 | G24: 439.10 | H24: 436.65 | I24: 434.55 | J24: 443.65 | K24: 445.75 | L24: 448.20 | M24: 443.3 | N24: 438.75 | O24: 68245200 | P24: 1%
A25: 15 | B25: Others | C25: APOLLOHOSP | D25: 2023-09-28 | E25: 5009.35 | F25: 5035.90 | G25: 4974.95 | H25: 4940.55 | I25: 4879.60 | J25: 5070.30 | K25: 5131.25 | L25: 5165.65 | M25: 5096.85 | N25: 5001.5 | O25: 2188125 | P25: -0%
A26: 16 | B26: Automobile | C26: APOLLOTYRE | D26: 2023-09-28 | E26: 383.30 | F26: 384.32 | G26: 381.48 | H26: 379.67 | I26: 376.83 | J26: 386.13 | K26: 388.97 | L26: 390.78 | M26: 387.15 | N26: 382.5 | O26: 10347900 | P26: 2%
A27: 17 | B27: Automobile | C27: ASHOKLEY | D27: 2023-09-28 | E27: 184.50 | F27: 184.60 | G27: 183.00 | H27: 181.50 | I27: 179.90 | J27: 186.10 | K27: 187.70 | L27: 189.20 | M27: 186.2 | N27: 183.1 | O27: 87410000 | P27: -0%
A28: 18 | B28: FMCG | C28: ASIANPAINT | D28: 2023-09-28 | E28: 3251.05 | F28: 3257.33 | G28: 3241.22 | H28: 3231.38 | I28: 3215.27 | J28: 3267.17 | K28: 3283.28 | L28: 3293.12 | M28: 3273.45 | N28: 3247.5 | O28: 4530600 | P28: -1%
A29: 19 | B29: Others | C29: ASTRAL | D29: 2023-09-28 | E29: 1915.00 | F29: 1911.77 | G29: 1901.53 | H29: 1888.07 | I29: 1877.83 | J29: 1925.23 | K29: 1935.47 | L29: 1948.93 | M29: 1922 | N29: 1898.3 | O29: 4168386 | P29: -0%
A30: 20 | B30: Others | C30: ATUL | D30: 2023-09-28 | E30: 7477.45 | F30: 7476.77 | G30: 7411.48 | H30: 7345.52 | I30: 7280.23 | J30: 7542.73 | K30: 7608.02 | L30: 7673.98 | M30: 7542.05 | N30: 7410.8 | O30: 328500 | P30: -1%
A31: 21 | B31: Banking | C31: AUBANK | D31: 2023-09-28 | E31: 735.15 | F31: 732.12 | G31: 727.03 | H31: 718.92 | I31: 713.83 | J31: 740.23 | K31: 745.32 | L31: 753.43 | M31: 737.2 | N31: 724 | O31: 13858000 | P31: -1%
A32: 22 | B32: Pharma | C32: AUROPHARMA | D32: 2023-09-28 | E32: 860.65 | F32: 861.73 | G32: 851.92 | H32: 843.18 | I32: 833.37 | J32: 870.47 | K32: 880.28 | L32: 889.02 | M32: 871.55 | N32: 853 | O32: 14169100 | P32: 0%
A33: 23 | B33: Banking | C33: AXISBANK | D33: 2023-09-28 | E33: 983.75 | F33: 983.88 | G33: 976.87 | H33: 969.98 | I33: 962.97 | J33: 990.77 | K33: 997.78 | L33: 1004.67 | M33: 990.9 | N33: 977 | O33: 42664375 | P33: 1%
A34: 24 | B34: Automobile | C34: BAJAJ-AUTO | D34: 2023-09-28 | E34: 4772.10 | F34: 4766.20 | G34: 4733.50 | H34: 4694.90 | I34: 4662.20 | J34: 4804.80 | K34: 4837.50 | L34: 4876.10 | M34: 4798.9 | N34: 4727.6 | O34: 2386000 | P34: -1%
A35: 25 | B35: Finance | C35: BAJAJFINSV | D35: 2023-09-28 | E35: 1546.90 | F35: 1546.48 | G35: 1530.37 | H35: 1513.83 | I35: 1497.72 | J35: 1563.02 | K35: 1579.13 | L35: 1595.67 | M35: 1562.6 | N35: 1529.95 | O35: 10141500 | P35: 2%
A36: 26 | B36: Finance | C36: BAJFINANCE | D36: 2023-09-28 | E36: 7420.30 | F36: 7424.77 | G36: 7380.38 | H36: 7340.47 | I36: 7296.08 | J36: 7464.68 | K36: 7509.07 | L36: 7548.98 | M36: 7469.15 | N36: 7384.85 | O36: 4264875 | P36: -1%
A37: 27 | B37: Automobile | C37: BALKRISIND | D37: 2023-09-28 | E37: 2410.65 | F37: 2414.22 | G37: 2402.53 | H37: 2394.42 | I37: 2382.73 | J37: 2422.33 | K37: 2434.02 | L37: 2442.13 | M37: 2425.9 | N37: 2406.1 | O37: 1872300 | P37: 0%
A38: 28 | B38: Others | C38: BALRAMCHIN | D38: 2023-09-28 | E38: 407.50 | F38: 409.10 | G38: 403.25 | H38: 399.00 | I38: 393.15 | J38: 413.35 | K38: 419.20 | L38: 423.45 | M38: 414.95 | N38: 404.85 | O38: 12684800 | P38: -8%
A39: 29 | B39: Banking | C39: BANDHANBNK | D39: 2023-09-28 | E39: 243.95 | F39: 243.25 | G39: 239.75 | H39: 235.55 | I39: 232.05 | J39: 247.45 | K39: 250.95 | L39: 255.15 | M39: 246.75 | N39: 239.05 | O39: 79732500 | P39: 1%
A40: 30 | B40: Banking | C40: BANKBARODA | D40: 2023-09-28 | E40: 198.35 | F40: 198.72 | G40: 196.43 | H40: 194.52 | I40: 192.23 | J40: 200.63 | K40: 202.92 | L40: 204.83 | M40: 201 | N40: 196.8 | O40: 130630500 | P40: -0%
A41: 31 | B41: FMCG | C41: BATAINDIA | D41: 2023-09-28 | E41: 1727.85 | F41: 1734.07 | G41: 1718.13 | H41: 1708.42 | I41: 1692.48 | J41: 1743.78 | K41: 1759.72 | L41: 1769.43 | M41: 1750 | N41: 1724.35 | O41: 1391250 | P41: -2%
A42: 32 | B42: Capital_Goods | C42: BEL | D42: 2023-09-28 | E42: 143.75 | F42: 143.17 | G42: 141.73 | H42: 139.72 | I42: 138.28 | J42: 145.18 | K42: 146.62 | L42: 148.63 | M42: 144.6 | N42: 141.15 | O42: 75074700 | P42: -3%
A43: 33 | B43: FMCG | C43: BERGEPAINT | D43: 2023-09-28 | E43: 702.00 | F43: 700.65 | G43: 697.30 | H43: 692.60 | I43: 689.25 | J43: 705.35 | K43: 708.70 | L43: 713.40 | M43: 704 | N43: 695.95 | O43: 8984800 | P43: -2%
A44: 34 | B44: Automobile | C44: BHARATFORG | D44: 2023-09-28 | E44: 1107.70 | F44: 1106.67 | G44: 1098.03 | H44: 1088.37 | I44: 1079.73 | J44: 1116.33 | K44: 1124.97 | L44: 1134.63 | M44: 1115.3 | N44: 1097 | O44: 8811000 | P44: -3%
A45: 35 | B45: Telecom | C45: BHARTIARTL | D45: 2023-09-28 | E45: 886.05 | F45: 885.23 | G45: 879.47 | H45: 872.88 | I45: 867.12 | J45: 891.82 | K45: 897.58 | L45: 904.17 | M45: 891 | N45: 878.65 | O45: 41004850 | P45: -0%
A46: 36 | B46: Capital_Goods | C46: BHEL | D46: 2023-09-28 | E46: 145.95 | F46: 144.23 | G46: 141.72 | H46: 137.48 | I46: 134.97 | J46: 148.47 | K46: 150.98 | L46: 155.22 | M46: 146.75 | N46: 140 | O46: 88200000 | P46: -5%
A47: 37 | B47: Pharma | C47: BIOCON | D47: 2023-09-28 | E47: 267.75 | F47: 268.53 | G47: 266.42 | H47: 265.08 | I47: 262.97 | J47: 269.87 | K47: 271.98 | L47: 273.32 | M47: 270.65 | N47: 267.2 | O47: 31032500 | P47: 1%
A48: 38 | B48: Automobile | C48: BOSCHLTD | D48: 2023-09-28 | E48: 19454.10 | F48: 19423.02 | G48: 19346.08 | H48: 19238.07 | I48: 19161.13 | J48: 19531.03 | K48: 19607.97 | L48: 19715.98 | M48: 19499.95 | N48: 19315 | O48: 113400 | P48: -3%
A49: 39 | B49: Oil_Gas | C49: BPCL | D49: 2023-09-28 | E49: 362.80 | F49: 361.42 | G49: 356.33 | H49: 349.87 | I49: 344.78 | J49: 367.88 | K49: 372.97 | L49: 379.43 | M49: 366.5 | N49: 354.95 | O49: 27099000 | P49: 1%
A50: 40 | B50: FMCG | C50: BRITANNIA | D50: 2023-09-28 | E50: 4551.70 | F50: 4540.35 | G50: 4495.75 | H50: 4439.80 | I50: 4395.20 | J50: 4596.30 | K50: 4640.90 | L50: 4696.85 | M50: 4584.95 | N50: 4484.4 | O50: 2207600 | P50: 0%
A51: 41 | B51: Technology | C51: BSOFT | D51: 2023-09-28 | E51: 519.45 | F51: 519.87 | G51: 516.13 | H51: 512.82 | I51: 509.08 | J51: 523.18 | K51: 526.92 | L51: 530.23 | M51: 523.6 | N51: 516.55 | O51: 8208000 | P51: -0%
A52: 42 | B52: Banking | C52: CANBK | D52: 2023-09-28 | E52: 340.80 | F52: 340.95 | G52: 336.50 | H52: 332.20 | I52: 327.75 | J52: 345.25 | K52: 349.70 | L52: 354.00 | M52: 345.4 | N52: 336.65 | O52: 60817500 | P52: 1%
A53: 43 | B53: Finance | C53: CANFINHOME | D53: 2023-09-28 | E53: 776.90 | F53: 779.27 | G53: 771.63 | H53: 766.37 | I53: 758.73 | J53: 784.53 | K53: 792.17 | L53: 797.43 | M53: 786.9 | N53: 774 | O53: 4425525 | P53: -2%
A54: 44 | B54: Others | C54: CHAMBLFERT | D54: 2023-09-28 | E54: 283.95 | F54: 286.15 | G54: 280.60 | H54: 277.25 | I54: 271.70 | J54: 289.50 | K54: 295.05 | L54: 298.40 | M54: 291.7 | N54: 282.8 | O54: 16758000 | P54: 8%
A55: 45 | B55: Finance | C55: CHOLAFIN | D55: 2023-09-28 | E55: 1179.45 | F55: 1167.32 | G55: 1146.63 | H55: 1113.82 | I55: 1093.13 | J55: 1200.13 | K55: 1220.82 | L55: 1253.63 | M55: 1188 | N55: 1134.5 | O55: 14103750 | P55: -2%
A56: 46 | B56: Pharma | C56: CIPLA | D56: 2023-09-28 | E56: 1247.85 | F56: 1250.30 | G56: 1239.55 | H56: 1231.25 | I56: 1220.50 | J56: 1258.60 | K56: 1269.35 | L56: 1277.65 | M56: 1261.05 | N56: 1242 | O56: 10030150 | P56: 0%
A57: 47 | B57: Others | C57: COALINDIA | D57: 2023-09-28 | E57: 282.45 | F57: 279.72 | G57: 274.43 | H57: 266.42 | I57: 261.13 | J57: 287.73 | K57: 293.02 | L57: 301.03 | M57: 285 | N57: 271.7 | O57: 83949600 | P57: -3%
A58: 48 | B58: Technology | C58: COFORGE | D58: 2023-09-28 | E58: 5553.70 | F58: 5568.22 | G58: 5516.23 | H58: 5478.77 | I58: 5426.78 | J58: 5605.68 | K58: 5657.67 | L58: 5695.13 | M58: 5620.2 | N58: 5530.75 | O58: 1610100 | P58: -1%
A59: 49 | B59: FMCG | C59: COLPAL | D59: 2023-09-28 | E59: 2019.00 | F59: 2027.27 | G59: 2004.63 | H59: 1990.27 | I59: 1967.63 | J59: 2041.63 | K59: 2064.27 | L59: 2078.63 | M59: 2049.9 | N59: 2012.9 | O59: 2634100 | P59: 1%
A60: 50 | B60: Others | C60: CONCOR | D60: 2023-09-28 | E60: 709.95 | F60: 707.65 | G60: 694.30 | H60: 678.65 | I60: 665.30 | J60: 723.30 | K60: 736.65 | L60: 752.30 | M60: 721 | N60: 692 | O60: 6620000 | P60: 13%
A61: 51 | B61: Others | C61: COROMANDEL | D61: 2023-09-28 | E61: 1129.85 | F61: 1137.82 | G61: 1119.63 | H61: 1109.42 | I61: 1091.23 | J61: 1148.03 | K61: 1166.22 | L61: 1176.43 | M61: 1156 | N61: 1127.6 | O61: 1659000 | P61: 1%
A62: 52 | B62: Capital_Goods | C62: CROMPTON | D62: 2023-09-28 | E62: 317.65 | F62: 317.65 | G62: 314.30 | H62: 310.95 | I62: 307.60 | J62: 321.00 | K62: 324.35 | L62: 327.70 | M62: 321 | N62: 314.3 | O62: 13010400 | P62: 5%
A63: 53 | B63: Banking | C63: CUB | D63: 2023-09-28 | E63: 133.20 | F63: 133.73 | G63: 132.52 | H63: 131.83 | I63: 130.62 | J63: 134.42 | K63: 135.63 | L63: 136.32 | M63: 134.95 | N63: 133.05 | O63: 40170000 | P63: 1%
A64: 54 | B64: Capital_Goods | C64: CUMMINSIND | D64: 2023-09-28 | E64: 1755.05 | F64: 1747.98 | G64: 1735.07 | H64: 1715.08 | I64: 1702.17 | J64: 1767.97 | K64: 1780.88 | L64: 1800.87 | M64: 1760.9 | N64: 1728 | O64: 6448800 | P64: -3%
A65: 55 | B65: FMCG | C65: DABUR | D65: 2023-09-28 | E65: 568.05 | F65: 568.07 | G65: 566.13 | H65: 564.22 | I65: 562.28 | J65: 569.98 | K65: 571.92 | L65: 573.83 | M65: 570 | N65: 566.15 | O65: 17732500 | P65: -1%
A66: 56 | B66: Cement | C66: DALBHARAT | D66: 2023-09-28 | E66: 2332.10 | F66: 2323.72 | G66: 2307.93 | H66: 2283.77 | I66: 2267.98 | J66: 2347.88 | K66: 2363.67 | L66: 2387.83 | M66: 2339.5 | N66: 2299.55 | O66: 1562000 | P66: 7%
A67: 57 | B67: Chemical | C67: DEEPAKNTR | D67: 2023-09-28 | E67: 2325.65 | F67: 2342.35 | G67: 2304.95 | H67: 2284.25 | I67: 2246.85 | J67: 2363.05 | K67: 2400.45 | L67: 2421.15 | M67: 2379.75 | N67: 2321.65 | O67: 2508300 | P67: -3%
A68: 58 | B68: Others | C68: DELTACORP | D68: 2023-09-28 | E68: 185.50 | F68: 185.85 | G68: 184.60 | H68: 183.70 | I68: 182.45 | J68: 186.75 | K68: 188.00 | L68: 188.90 | M68: 187.1 | N68: 184.95 | O68: 17908800 | P68: -3%
A69: 59 | B69: Pharma | C69: DIVISLAB | D69: 2023-09-28 | E69: 3701.55 | F69: 3697.07 | G69: 3678.48 | H69: 3655.42 | I69: 3636.83 | J69: 3720.13 | K69: 3738.72 | L69: 3761.78 | M69: 3715.65 | N69: 3674 | O69: 2456800 | P69: -2%
A70: 60 | B70: Others | C70: DIXON | D70: 2023-09-28 | E70: 5133.75 | F70: 5116.28 | G70: 5086.07 | H70: 5038.38 | I70: 5008.17 | J70: 5163.97 | K70: 5194.18 | L70: 5241.87 | M70: 5146.5 | N70: 5068.6 | O70: 1392800 | P70: -2%
A71: 61 | B71: Realty | C71: DLF | D71: 2023-09-28 | E71: 541.05 | F71: 539.78 | G71: 533.87 | H71: 526.68 | I71: 520.77 | J71: 546.97 | K71: 552.88 | L71: 560.07 | M71: 545.7 | N71: 532.6 | O71: 36653100 | P71: -5%
A72: 62 | B72: Pharma | C72: DRREDDY | D72: 2023-09-28 | E72: 5608.70 | F72: 5610.77 | G72: 5579.53 | H72: 5550.37 | I72: 5519.13 | J72: 5639.93 | K72: 5671.17 | L72: 5700.33 | M72: 5642 | N72: 5581.6 | O72: 2931500 | P72: 1%
A73: 63 | B73: Automobile | C73: EICHERMOT | D73: 2023-09-28 | E73: 3386.60 | F73: 3399.38 | G73: 3369.82 | H73: 3353.03 | I73: 3323.47 | J73: 3416.17 | K73: 3445.73 | L73: 3462.52 | M73: 3428.95 | N73: 3382.6 | O73: 3848425 | P73: 3%
A74: 64 | B74: Automobile | C74: ESCORTS | D74: 2023-09-28 | E74: 3195.10 | F74: 3189.97 | G74: 3172.63 | H74: 3150.17 | I74: 3132.83 | J74: 3212.43 | K74: 3229.77 | L74: 3252.23 | M74: 3207.3 | N74: 3167.5 | O74: 1705825 | P74: -2%
A75: 65 | B75: Automobile | C75: EXIDEIND | D75: 2023-09-28 | E75: 274.55 | F75: 275.07 | G75: 272.48 | H75: 270.42 | I75: 267.83 | J75: 277.13 | K75: 279.72 | L75: 281.78 | M75: 277.65 | N75: 273 | O75: 17978400 | P75: 0%
A76: 66 | B76: Banking | C76: FEDERALBNK | D76: 2023-09-28 | E76: 147.90 | F76: 147.32 | G76: 146.03 | H76: 144.17 | I76: 142.88 | J76: 149.18 | K76: 150.47 | L76: 152.33 | M76: 148.6 | N76: 145.45 | O76: 129720000 | P76: -0%
A77: 67 | B77: Oil_Gas | C77: GAIL | D77: 2023-09-28 | E77: 128.50 | F77: 128.05 | G77: 126.70 | H77: 124.90 | I77: 123.55 | J77: 129.85 | K77: 131.20 | L77: 133.00 | M77: 129.4 | N77: 126.25 | O77: 134752050 | P77: 1%
A78: 68 | B78: Pharma | C78: GLENMARK | D78: 2023-09-28 | E78: 778.30 | F78: 783.03 | G78: 767.52 | H78: 756.73 | I78: 741.22 | J78: 793.82 | K78: 809.33 | L78: 820.12 | M78: 798.55 | N78: 772.25 | O78: 8212800 | P78: 4%
A79: 69 | B79: Infrastructure | C79: GMRINFRA | D79: 2023-09-28 | E79: 64.10 | F79: 64.02 | G79: 63.53 | H79: 62.97 | I79: 62.48 | J79: 64.58 | K79: 65.07 | L79: 65.63 | M79: 64.5 | N79: 63.45 | O79: 125235000 | P79: -3%
A80: 70 | B80: Others | C80: GNFC | D80: 2023-09-28 | E80: 645.55 | F80: 647.87 | G80: 638.98 | H80: 632.42 | I80: 623.53 | J80: 654.43 | K80: 663.32 | L80: 669.88 | M80: 656.75 | N80: 641.3 | O80: 7915700 | P80: -1%
A81: 71 | B81: FMCG | C81: GODREJCP | D81: 2023-09-28 | E81: 1022.15 | F81: 1023.05 | G81: 1015.10 | H81: 1008.05 | I81: 1000.10 | J81: 1030.10 | K81: 1038.05 | L81: 1045.10 | M81: 1031 | N81: 1016 | O81: 8009000 | P81: -0%
A82: 72 | B82: Realty | C82: GODREJPROP | D82: 2023-09-28 | E82: 1701.00 | F82: 1689.72 | G82: 1670.63 | H82: 1640.27 | I82: 1621.18 | J82: 1720.08 | K82: 1739.17 | L82: 1769.53 | M82: 1708.8 | N82: 1659.35 | O82: 3342100 | P82: 6%
A83: 73 | B83: Pharma | C83: GRANULES | D83: 2023-09-28 | E83: 313.85 | F83: 315.57 | G83: 311.38 | H83: 308.92 | I83: 304.73 | J83: 318.03 | K83: 322.22 | L83: 324.68 | M83: 319.75 | N83: 313.1 | O83: 9136000 | P83: 1%
A84: 74 | B84: Cement | C84: GRASIM | D84: 2023-09-28 | E84: 1853.40 | F84: 1856.02 | G84: 1845.58 | H84: 1837.77 | I84: 1827.33 | J84: 1863.83 | K84: 1874.27 | L84: 1882.08 | M84: 1866.45 | N84: 1848.2 | O84: 14637600 | P84: -0%
A85: 75 | B85: Oil_Gas | C85: GUJGASLTD | D85: 2023-09-28 | E85: 458.95 | F85: 459.17 | G85: 456.98 | H85: 455.02 | I85: 452.83 | J85: 461.13 | K85: 463.32 | L85: 465.28 | M85: 461.35 | N85: 457.2 | O85: 8937500 | P85: -0%
A86: 76 | B86: Others | C86: HAL | D86: 2023-09-28 | E86: 4120.75 | F86: 4116.48 | G86: 4071.97 | H86: 4023.18 | I86: 3978.67 | J86: 4165.27 | K86: 4209.78 | L86: 4258.57 | M86: 4161 | N86: 4067.7 | O86: 4869000 | P86: -1%
A87: 77 | B87: Capital_Goods | C87: HAVELLS | D87: 2023-09-28 | E87: 1456.90 | F87: 1432.88 | G87: 1404.12 | H87: 1351.33 | I87: 1322.57 | J87: 1485.67 | K87: 1514.43 | L87: 1567.22 | M87: 1461.65 | N87: 1380.1 | O87: 5792000 | P87: 3%
A88: 78 | B88: Technology | C88: HCLTECH | D88: 2023-09-28 | E88: 1263.60 | F88: 1263.53 | G88: 1256.27 | H88: 1248.93 | I88: 1241.67 | J88: 1270.87 | K88: 1278.13 | L88: 1285.47 | M88: 1270.8 | N88: 1256.2 | O88: 9975700 | P88: 4%
A89: 79 | B89: Finance | C89: HDFCAMC | D89: 2023-09-28 | E89: 2534.15 | F89: 2520.03 | G89: 2497.12 | H89: 2460.08 | I89: 2437.17 | J89: 2557.07 | K89: 2579.98 | L89: 2617.02 | M89: 2542.95 | N89: 2483 | O89: 5375400 | P89: -4%
A90: 80 | B90: Banking | C90: HDFCBANK | D90: 2023-09-28 | E90: 1626.65 | F90: 1625.42 | G90: 1614.83 | H90: 1603.02 | I90: 1592.43 | J90: 1637.23 | K90: 1647.82 | L90: 1659.63 | M90: 1636 | N90: 1613.6 | O90: 132839850 | P90: 1%
A91: 81 | B91: Finance | C91: HDFCLIFE | D91: 2023-09-28 | E91: 657.65 | F91: 657.77 | G91: 653.63 | H91: 649.62 | I91: 645.48 | J91: 661.78 | K91: 665.92 | L91: 669.93 | M91: 661.9 | N91: 653.75 | O91: 16317400 | P91: 1%
A92: 82 | B92: Automobile | C92: HEROMOTOCO | D92: 2023-09-28 | E92: 3009.30 | F92: 3002.68 | G92: 2978.77 | H92: 2948.23 | I92: 2924.32 | J92: 3033.22 | K92: 3057.13 | L92: 3087.67 | M92: 3026.6 | N92: 2972.15 | O92: 3777900 | P92: -0%
A93: 83 | B93: Metals | C93: HINDALCO | D93: 2023-09-28 | E93: 476.90 | F93: 475.42 | G93: 471.08 | H93: 465.27 | I93: 460.93 | J93: 481.23 | K93: 485.57 | L93: 491.38 | M93: 479.75 | N93: 469.6 | O93: 25067000 | P93: 1%
A94: 84 | B94: Metals | C94: HINDCOPPER | D94: 2023-09-28 | E94: 166.20 | F94: 165.80 | G94: 163.40 | H94: 160.60 | I94: 158.20 | J94: 168.60 | K94: 171.00 | L94: 173.80 | M94: 168.2 | N94: 163 | O94: 36527600 | P94: -3%
A95: 85 | B95: Oil_Gas | C95: HINDPETRO | D95: 2023-09-28 | E95: 261.60 | F95: 260.32 | G95: 256.03 | H95: 250.47 | I95: 246.18 | J95: 265.88 | K95: 270.17 | L95: 275.73 | M95: 264.6 | N95: 254.75 | O95: 47736000 | P95: 1%
A96: 86 | B96: FMCG | C96: HINDUNILVR | D96: 2023-09-28 | E96: 2525.25 | F96: 2514.78 | G96: 2498.47 | H96: 2471.68 | I96: 2455.37 | J96: 2541.57 | K96: 2557.88 | L96: 2584.67 | M96: 2531.1 | N96: 2488 | O96: 8815800 | P96: 1%
A97: 87 | B97: Finance | C97: IBULHSGFIN | D97: 2023-09-28 | E97: 186.95 | F97: 187.63 | G97: 184.87 | H97: 182.78 | I97: 180.02 | J97: 189.72 | K97: 192.48 | L97: 194.57 | M97: 190.4 | N97: 185.55 | O97: 65881800 | P97: -1%
A98: 88 | B98: Banking | C98: ICICIBANK | D98: 2023-09-28 | E98: 972.45 | F98: 971.82 | G98: 965.23 | H98: 958.02 | I98: 951.43 | J98: 979.03 | K98: 985.62 | L98: 992.83 | M98: 978.4 | N98: 964.6 | O98: 89580400 | P98: -2%
A99: 89 | B99: Finance | C99: ICICIGI | D99: 2023-09-28 | E99: 1354.65 | F99: 1353.98 | G99: 1340.97 | H99: 1327.28 | I99: 1314.27 | J99: 1367.67 | K99: 1380.68 | L99: 1394.37 | M99: 1367 | N99: 1340.3 | O99: 3171000 | P99: -2%
A100: 90 | B100: Finance | C100: ICICIPRULI | D100: 2023-09-28 | E100: 559.60 | F100: 559.35 | G100: 547.75 | H100: 535.90 | I100: 524.30 | J100: 571.20 | K100: 582.80 | L100: 594.65 | M100: 570.95 | N100: 547.5 | O100: 6942000 | P100: -5%
A101: 91 | B101: Telecom | C101: IDEA | D101: 2023-09-28 | E101: 10.55 | F101: 10.70 | G101: 10.35 | H101: 10.15 | I101: 9.80 | J101: 10.90 | K101: 11.25 | L101: 11.45 | M101: 11.05 | N101: 10.5 | O101: 1122560000 | P101: 3%
A102: 92 | B102: Finance | C102: IDFC | D102: 2023-09-28 | E102: 129.25 | F102: 128.87 | G102: 127.93 | H102: 126.62 | I102: 125.68 | J102: 130.18 | K102: 131.12 | L102: 132.43 | M102: 129.8 | N102: 127.55 | O102: 105800000 | P102: 0%
A103: 93 | B103: Banking | C103: IDFCFIRSTB | D103: 2023-09-28 | E103: 94.90 | F103: 94.85 | G103: 94.05 | H103: 93.20 | I103: 92.40 | J103: 95.70 | K103: 96.50 | L103: 97.35 | M103: 95.65 | N103: 94 | O103: 296460000 | P103: 2%
A104: 94 | B104: Others | C104: IEX | D104: 2023-09-28 | E104: 142.70 | F104: 141.85 | G104: 139.55 | H104: 136.40 | I104: 134.10 | J104: 145.00 | K104: 147.30 | L104: 150.45 | M104: 144.15 | N104: 138.7 | O104: 72806250 | P104: 17%
A105: 95 | B105: Oil_Gas | C105: IGL | D105: 2023-09-28 | E105: 483.35 | F105: 483.45 | G105: 477.90 | H105: 472.45 | I105: 466.90 | J105: 488.90 | K105: 494.45 | L105: 499.90 | M105: 489 | N105: 478 | O105: 12787500 | P105: 6%
A106: 96 | B106: Infrastructure | C106: INDHOTEL | D106: 2023-09-28 | E106: 430.35 | F106: 431.02 | G106: 428.58 | H106: 426.82 | I106: 424.38 | J106: 432.78 | K106: 435.22 | L106: 436.98 | M106: 433.45 | N106: 429.25 | O106: 18886000 | P106: -2%
A107: 97 | B107: Cement | C107: INDIACEM | D107: 2023-09-28 | E107: 248.20 | F107: 249.38 | G107: 244.37 | H107: 240.53 | I107: 235.52 | J107: 253.22 | K107: 258.23 | L107: 262.07 | M107: 254.4 | N107: 245.55 | O107: 25087900 | P107: -2%
A108: 98 | B108: Others | C108: INDIAMART | D108: 2023-09-28 | E108: 3233.30 | F108: 3245.43 | G108: 3215.87 | H108: 3198.43 | I108: 3168.87 | J108: 3262.87 | K108: 3292.43 | L108: 3309.87 | M108: 3275 | N108: 3228 | O108: 633000 | P108: -0%
A109: 99 | B109: Others | C109: INDIGO | D109: 2023-09-28 | E109: 2484.10 | F109: 2487.37 | G109: 2456.78 | H109: 2429.47 | I109: 2398.88 | J109: 2514.68 | K109: 2545.27 | L109: 2572.58 | M109: 2517.95 | N109: 2460.05 | O109: 6197700 | P109: -1%
A110: 100 | B110: Banking | C110: INDUSINDBK | D110: 2023-09-28 | E110: 1452.75 | F110: 1453.63 | G110: 1439.87 | H110: 1426.98 | I110: 1413.22 | J110: 1466.52 | K110: 1480.28 | L110: 1493.17 | M110: 1467.4 | N110: 1440.75 | O110: 21598500 | P110: 2%
A111: 101 | B111: Telecom | C111: INDUSTOWER | D111: 2023-09-28 | E111: 188.45 | F111: 188.87 | G111: 185.23 | H111: 182.02 | I111: 178.38 | J111: 192.08 | K111: 195.72 | L111: 198.93 | M111: 192.5 | N111: 185.65 | O111: 85863600 | P111: -1%
A112: 102 | B112: Technology | C112: INFY | D112: 2023-09-28 | E112: 1474.20 | F112: 1474.07 | G112: 1467.13 | H112: 1460.07 | I112: 1453.13 | J112: 1481.13 | K112: 1488.07 | L112: 1495.13 | M112: 1481 | N112: 1467 | O112: 23096000 | P112: -1%
A113: 103 | B113: Oil_Gas | C113: IOC | D113: 2023-09-28 | E113: 94.45 | F113: 93.92 | G113: 92.33 | H113: 90.22 | I113: 88.63 | J113: 96.03 | K113: 97.62 | L113: 99.73 | M113: 95.5 | N113: 91.8 | O113: 109619250 | P113: 6%
A114: 104 | B114: Pharma | C114: IPCALAB | D114: 2023-09-28 | E114: 897.90 | F114: 897.60 | G114: 890.20 | H114: 882.50 | I114: 875.10 | J114: 905.30 | K114: 912.70 | L114: 920.40 | M114: 905 | N114: 889.9 | O114: 1567150 | P114: -3%
A115: 105 | B115: Others | C115: IRCTC | D115: 2023-09-28 | E115: 727.45 | F115: 733.25 | G115: 704.50 | H115: 681.55 | I115: 652.80 | J115: 756.20 | K115: 784.95 | L115: 807.90 | M115: 762 | N115: 710.3 | O115: 16256625 | P115: 11%
A116: 106 | B116: FMCG | C116: ITC | D116: 2023-09-28 | E116: 444.80 | F116: 445.75 | G116: 442.95 | H116: 441.10 | I116: 438.30 | J116: 447.60 | K116: 450.40 | L116: 452.25 | M116: 448.55 | N116: 443.9 | O116: 70163200 | P116: 4%
A117: 107 | B117: Metals | C117: JINDALSTEL | D117: 2023-09-28 | E117: 700.75 | F117: 702.12 | G117: 695.83 | H117: 690.92 | I117: 684.63 | J117: 707.03 | K117: 713.32 | L117: 718.23 | M117: 708.4 | N117: 697.2 | O117: 23966250 | P117: -1%
A118: 108 | B118: Cement | C118: JKCEMENT | D118: 2023-09-28 | E118: 3317.10 | F118: 3327.02 | G118: 3296.18 | H118: 3275.27 | I118: 3244.43 | J118: 3347.93 | K118: 3378.77 | L118: 3399.68 | M118: 3357.85 | N118: 3306.1 | O118: 734250 | P118: 0%
A119: 109 | B119: Metals | C119: JSWSTEEL | D119: 2023-09-28 | E119: 816.95 | F119: 818.17 | G119: 810.98 | H119: 805.02 | I119: 797.83 | J119: 824.13 | K119: 831.32 | L119: 837.28 | M119: 825.35 | N119: 812.2 | O119: 17774100 | P119: -3%
A120: 110 | B120: Others | C120: JUBLFOOD | D120: 2023-09-28 | E120: 530.90 | F120: 530.92 | G120: 525.58 | H120: 520.27 | I120: 514.93 | J120: 536.23 | K120: 541.57 | L120: 546.88 | M120: 536.25 | N120: 525.6 | O120: 16780000 | P120: 2%
A121: 111 | B121: Banking | C121: KOTAKBANK | D121: 2023-09-28 | E121: 1796.35 | F121: 1797.32 | G121: 1785.83 | H121: 1775.32 | I121: 1763.83 | J121: 1807.83 | K121: 1819.32 | L121: 1829.83 | M121: 1808.8 | N121: 1786.8 | O121: 29476000 | P121: -2%
A122: 112 | B122: Finance | C122: L&TFH | D122: 2023-09-28 | E122: 130.00 | F122: 130.18 | G122: 129.37 | H122: 128.73 | I122: 127.92 | J122: 130.82 | K122: 131.63 | L122: 132.27 | M122: 131 | N122: 129.55 | O122: 67135252 | P122: -1%
A123: 113 | B123: Others | C123: LALPATHLAB | D123: 2023-09-28 | E123: 2213.55 | F123: 2234.37 | G123: 2190.23 | H123: 2166.92 | I123: 2122.78 | J123: 2257.68 | K123: 2301.82 | L123: 2325.13 | M123: 2278.5 | N123: 2211.05 | O123: 709800 | P123: 9%
A124: 114 | B124: Pharma | C124: LAURUSLABS | D124: 2023-09-28 | E124: 409.80 | F124: 407.62 | G124: 404.43 | H124: 399.07 | I124: 395.88 | J124: 412.98 | K124: 416.17 | L124: 421.53 | M124: 410.8 | N124: 402.25 | O124: 10813700 | P124: -0%
A125: 115 | B125: Finance | C125: LICHSGFIN | D125: 2023-09-28 | E125: 455.20 | F125: 455.45 | G125: 451.55 | H125: 447.90 | I125: 444.00 | J125: 459.10 | K125: 463.00 | L125: 466.65 | M125: 459.35 | N125: 451.8 | O125: 21212000 | P125: 1%
A126: 116 | B126: Capital_Goods | C126: LT | D126: 2023-09-28 | E126: 2901.10 | F126: 2900.43 | G126: 2872.87 | H126: 2844.63 | I126: 2817.07 | J126: 2928.67 | K126: 2956.23 | L126: 2984.47 | M126: 2928 | N126: 2872.2 | O126: 7526700 | P126: 2%
A127: 117 | B127: Technology | C127: LTIM | D127: 2023-09-28 | E127: 5492.95 | F127: 5493.12 | G127: 5458.83 | H127: 5424.72 | I127: 5390.43 | J127: 5527.23 | K127: 5561.52 | L127: 5595.63 | M127: 5527.4 | N127: 5459 | O127: 1598550 | P127: -1%
A128: 118 | B128: Technology | C128: LTTS | D128: 2023-09-28 | E128: 4638.00 | F128: 4637.98 | G128: 4610.02 | H128: 4582.03 | I128: 4554.07 | J128: 4665.97 | K128: 4693.93 | L128: 4721.92 | M128: 4665.95 | N128: 4610 | O128: 739800 | P128: -1%
A129: 119 | B129: Pharma | C129: LUPIN | D129: 2023-09-28 | E129: 1134.25 | F129: 1135.75 | G129: 1122.60 | H129: 1110.95 | I129: 1097.80 | J129: 1147.40 | K129: 1160.55 | L129: 1172.20 | M129: 1148.9 | N129: 1124.1 | O129: 6766850 | P129: -2%
A130: 120 | B130: Automobile | C130: M&M | D130: 2023-09-28 | E130: 1574.90 | F130: 1575.58 | G130: 1567.72 | H130: 1560.53 | I130: 1552.67 | J130: 1582.77 | K130: 1590.63 | L130: 1597.82 | M130: 1583.45 | N130: 1568.4 | O130: 14976500 | P130: 2%
A131: 121 | B131: Finance | C131: M&MFIN | D131: 2023-09-28 | E131: 300.75 | F131: 300.58 | G131: 297.27 | H131: 293.78 | I131: 290.47 | J131: 304.07 | K131: 307.38 | L131: 310.87 | M131: 303.9 | N131: 297.1 | O131: 42432000 | P131: -1%
A132: 122 | B132: Finance | C132: MANAPPURAM | D132: 2023-09-28 | E132: 144.90 | F132: 145.63 | G132: 143.72 | H132: 142.53 | I132: 140.62 | J132: 146.82 | K132: 148.73 | L132: 149.92 | M132: 147.55 | N132: 144.45 | O132: 79752000 | P132: -2%
A133: 123 | B133: FMCG | C133: MARICO | D133: 2023-09-28 | E133: 588.95 | F133: 588.82 | G133: 586.08 | H133: 583.22 | I133: 580.48 | J133: 591.68 | K133: 594.42 | L133: 597.28 | M133: 591.55 | N133: 585.95 | O133: 11881200 | P133: 0%
A134: 124 | B134: Automobile | C134: MARUTI | D134: 2023-09-28 | E134: 10352.75 | F134: 10370.10 | G134: 10317.75 | H134: 10282.75 | I134: 10230.40 | J134: 10405.10 | K134: 10457.45 | L134: 10492.45 | M134: 10422.45 | N134: 10335.1 | O134: 2856200 | P134: -2%
A135: 125 | B135: FMCG | C135: MCDOWELL-N | D135: 2023-09-28 | E135: 1059.70 | F135: 1060.50 | G135: 1053.00 | H135: 1046.30 | I135: 1038.80 | J135: 1067.20 | K135: 1074.70 | L135: 1081.40 | M135: 1068 | N135: 1053.8 | O135: 10927700 | P135: -1%
A136: 126 | B136: Others | C136: MCX | D136: 2023-09-28 | E136: 1793.50 | F136: 1790.85 | G136: 1773.45 | H136: 1753.40 | I136: 1736.00 | J136: 1810.90 | K136: 1828.30 | L136: 1848.35 | M136: 1808.25 | N136: 1770.8 | O136: 3034000 | P136: -2%
A137: 127 | B137: Pharma | C137: METROPOLIS | D137: 2023-09-28 | E137: 1422.85 | F137: 1430.20 | G137: 1411.40 | H137: 1399.95 | I137: 1381.15 | J137: 1441.65 | K137: 1460.45 | L137: 1471.90 | M137: 1449 | N137: 1418.75 | O137: 1848400 | P137: -2%
A138: 128 | B138: Finance | C138: MFSL | D138: 2023-09-28 | E138: 939.85 | F138: 941.20 | G138: 929.40 | H138: 918.95 | I138: 907.15 | J138: 951.65 | K138: 963.45 | L138: 973.90 | M138: 953 | N138: 930.75 | O138: 6613600 | P138: -2%
A139: 129 | B139: Oil_Gas | C139: MGL | D139: 2023-09-28 | E139: 1060.05 | F139: 1060.70 | G139: 1056.90 | H139: 1053.75 | I139: 1049.95 | J139: 1063.85 | K139: 1067.65 | L139: 1070.80 | M139: 1064.5 | N139: 1057.55 | O139: 2472000 | P139: -2%
A140: 130 | B140: Automobile | C140: MOTHERSON | D140: 2023-09-28 | E140: 99.95 | F140: 100.13 | G140: 99.47 | H140: 98.98 | I140: 98.32 | J140: 100.62 | K140: 101.28 | L140: 101.77 | M140: 100.8 | N140: 99.65 | O140: 79796900 | P140: 0%
A141: 131 | B141: Technology | C141: MPHASIS | D141: 2023-09-28 | E141: 2470.75 | F141: 2466.37 | G141: 2449.38 | H141: 2428.02 | I141: 2411.03 | J141: 2487.73 | K141: 2504.72 | L141: 2526.08 | M141: 2483.35 | N141: 2445 | O141: 2670800 | P141: 2%
A142: 132 | B142: Automobile | C142: MRF | D142: 2023-09-28 | E142: 109075.05 | F142: 109258.05 | G142: 108817.15 | H142: 108559.25 | I142: 108118.35 | J142: 109515.95 | K142: 109956.85 | L142: 110214.75 | M142: 109698.95 | N142: 109000.15 | O142: 35030 | P142: -1%
A143: 133 | B143: Finance | C143: MUTHOOTFIN | D143: 2023-09-28 | E143: 1283.85 | F143: 1282.45 | G143: 1274.70 | H143: 1265.55 | I143: 1257.80 | J143: 1291.60 | K143: 1299.35 | L143: 1308.50 | M143: 1290.2 | N143: 1273.3 | O143: 6471850 | P143: 0%
A144: 134 | B144: Metals | C144: NATIONALUM | D144: 2023-09-28 | E144: 99.95 | F144: 100.38 | G144: 98.97 | H144: 97.98 | I144: 96.57 | J144: 101.37 | K144: 102.78 | L144: 103.77 | M144: 101.8 | N144: 99.4 | O144: 71812500 | P144: 2%
A145: 135 | B145: Others | C145: NAUKRI | D145: 2023-09-28 | E145: 4483.90 | F145: 4477.45 | G145: 4449.90 | H145: 4415.90 | I145: 4388.35 | J145: 4511.45 | K145: 4539.00 | L145: 4573.00 | M145: 4505 | N145: 4443.45 | O145: 1501350 | P145: -2%
A146: 136 | B146: Chemical | C146: NAVINFLUOR | D146: 2023-09-28 | E146: 4668.65 | F146: 4689.47 | G146: 4640.33 | H146: 4612.02 | I146: 4562.88 | J146: 4717.78 | K146: 4766.92 | L146: 4795.23 | M146: 4738.6 | N146: 4661.15 | O146: 697200 | P146: -2%
A147: 137 | B147: FMCG | C147: NESTLEIND | D147: 2023-09-28 | E147: 21984.65 | F147: 22018.87 | G147: 21876.83 | H147: 21769.02 | I147: 21626.98 | J147: 22126.68 | K147: 22268.72 | L147: 22376.53 | M147: 22160.9 | N147: 21911.05 | O147: 334280 | P147: 2%
A148: 138 | B148: Metals | C148: NMDC | D148: 2023-09-28 | E148: 142.75 | F148: 143.68 | G148: 141.12 | H148: 139.48 | I148: 136.92 | J148: 145.32 | K148: 147.88 | L148: 149.52 | M148: 146.25 | N148: 142.05 | O148: 111861000 | P148: -2%
A149: 139 | B149: Power | C149: NTPC | D149: 2023-09-28 | E149: 241.10 | F149: 240.52 | G149: 236.43 | H149: 231.77 | I149: 227.68 | J149: 245.18 | K149: 249.27 | L149: 253.93 | M149: 244.6 | N149: 235.85 | O149: 75228000 | P149: 6%
A150: 140 | B150: Realty | C150: OBEROIRLTY | D150: 2023-09-28 | E150: 1183.70 | F150: 1178.27 | G150: 1165.93 | H150: 1148.17 | I150: 1135.83 | J150: 1196.03 | K150: 1208.37 | L150: 1226.13 | M150: 1190.6 | N150: 1160.5 | O150: 6620600 | P150: 2%
A151: 141 | B151: Technology | C151: OFSS | D151: 2023-09-28 | E151: 4362.65 | F151: 4334.95 | G151: 4292.95 | H151: 4223.25 | I151: 4181.25 | J151: 4404.65 | K151: 4446.65 | L151: 4516.35 | M151: 4376.95 | N151: 4265.25 | O151: 287200 | P151: 7%
A152: 142 | B152: Oil_Gas | C152: ONGC | D152: 2023-09-28 | E152: 184.60 | F152: 183.95 | G152: 182.75 | H152: 180.90 | I152: 179.70 | J152: 185.80 | K152: 187.00 | L152: 188.85 | M152: 185.15 | N152: 182.1 | O152: 50073100 | P152: 10%
A153: 143 | B153: Textile | C153: PAGEIND | D153: 2023-09-28 | E153: 42024.20 | F153: 42332.20 | G153: 41611.60 | H153: 41199.00 | I153: 40478.40 | J153: 42744.80 | K153: 43465.40 | L153: 43878.00 | M153: 43052.8 | N153: 41919.6 | O153: 161565 | P153: -1%
A154: 144 | B154: Pharma | C154: PEL | D154: 2023-09-28 | E154: 1093.65 | F154: 1091.27 | G154: 1083.08 | H154: 1072.52 | I154: 1064.33 | J154: 1101.83 | K154: 1110.02 | L154: 1120.58 | M154: 1099.45 | N154: 1080.7 | O154: 9729750 | P154: 0%
A155: 145 | B155: Technology | C155: PERSISTENT | D155: 2023-09-28 | E155: 5946.55 | F155: 5919.25 | G155: 5879.50 | H155: 5812.45 | I155: 5772.70 | J155: 5986.30 | K155: 6026.05 | L155: 6093.10 | M155: 5959 | N155: 5852.2 | O155: 1301125 | P155: 2%
A156: 146 | B156: Oil_Gas | C156: PETRONET | D156: 2023-09-28 | E156: 251.40 | F156: 251.72 | G156: 248.23 | H156: 245.07 | I156: 241.58 | J156: 254.88 | K156: 258.37 | L156: 261.53 | M156: 255.2 | N156: 248.55 | O156: 22074000 | P156: 5%
A157: 147 | B157: Finance | C157: PFC | D157: 2023-09-28 | E157: 306.65 | F157: 295.87 | G157: 282.63 | H157: 258.62 | I157: 245.38 | J157: 319.88 | K157: 333.12 | L157: 357.13 | M157: 309.1 | N157: 271.85 | O157: 72230000 | P157: 11%
A158: 148 | B158: FMCG | C158: PIDILITIND | D158: 2023-09-28 | E158: 2517.55 | F158: 2507.98 | G158: 2488.07 | H158: 2458.58 | I158: 2438.67 | J158: 2537.47 | K158: 2557.38 | L158: 2586.87 | M158: 2527.9 | N158: 2478.5 | O158: 2666750 | P158: -0%
A159: 149 | B159: Chemical | C159: PIIND | D159: 2023-09-28 | E159: 3673.15 | F159: 3671.97 | G159: 3653.93 | H159: 3634.72 | I159: 3616.68 | J159: 3691.18 | K159: 3709.22 | L159: 3728.43 | M159: 3690 | N159: 3652.75 | O159: 2616750 | P159: 3%
A160: 150 | B160: Banking | C160: PNB | D160: 2023-09-28 | E160: 67.05 | F160: 66.98 | G160: 66.47 | H160: 65.88 | I160: 65.37 | J160: 67.57 | K160: 68.08 | L160: 68.67 | M160: 67.5 | N160: 66.4 | O160: 330368000 | P160: -5%
A161: 151 | B161: Others | C161: POLYCAB | D161: 2023-09-28 | E161: 5222.90 | F161: 5209.93 | G161: 5189.97 | H161: 5157.03 | I161: 5137.07 | J161: 5242.87 | K161: 5262.83 | L161: 5295.77 | M161: 5229.9 | N161: 5177 | O161: 1728900 | P161: 1%
A162: 152 | B162: Power | C162: POWERGRID | D162: 2023-09-28 | E162: 259.95 | F162: 260.30 | G162: 257.90 | H162: 255.85 | I162: 253.45 | J162: 262.35 | K162: 264.75 | L162: 266.80 | M162: 262.7 | N162: 258.25 | O162: 48726900 | P162: 7%
A163: 153 | B163: Media | C163: PVRINOX | D163: 2023-09-28 | E163: 1855.70 | F163: 1857.67 | G163: 1831.78 | H163: 1807.87 | I163: 1781.98 | J163: 1881.58 | K163: 1907.47 | L163: 1931.38 | M163: 1883.55 | N163: 1833.75 | O163: 4812775 | P163: 4%
A164: 154 | B164: Cement | C164: RAMCOCEM | D164: 2023-09-28 | E164: 897.95 | F164: 894.27 | G164: 888.83 | H164: 879.72 | I164: 874.28 | J164: 903.38 | K164: 908.82 | L164: 917.93 | M164: 899.7 | N164: 885.15 | O164: 3531750 | P164: -1%
A165: 155 | B165: Banking | C165: RBLBANK | D165: 2023-09-28 | E165: 233.80 | F165: 233.98 | G165: 229.37 | H165: 224.93 | I165: 220.32 | J165: 238.42 | K165: 243.03 | L165: 247.47 | M165: 238.6 | N165: 229.55 | O165: 46055000 | P165: 3%
A166: 156 | B166: Power | C166: RECLTD | D166: 2023-09-28 | E166: 271.40 | F166: 263.67 | G166: 253.13 | H166: 234.87 | I166: 224.33 | J166: 281.93 | K166: 292.47 | L166: 310.73 | M166: 274.2 | N166: 245.4 | O166: 64672000 | P166: 9%
A167: 157 | B167: Oil_Gas | C167: RELIANCE | D167: 2023-09-28 | E167: 2461.40 | F167: 2455.15 | G167: 2442.55 | H167: 2423.70 | I167: 2411.10 | J167: 2474.00 | K167: 2486.60 | L167: 2505.45 | M167: 2467.75 | N167: 2436.3 | O167: 45756500 | P167: 3%
A168: 158 | B168: Metals | C168: SAIL | D168: 2023-09-28 | E168: 98.75 | F168: 98.72 | G168: 97.48 | H168: 96.22 | I168: 94.98 | J168: 99.98 | K168: 101.22 | L168: 102.48 | M168: 99.95 | N168: 97.45 | O168: 152056000 | P168: -4%
A169: 159 | B169: Banking | C169: SBICARD | D169: 2023-09-28 | E169: 843.95 | F169: 844.82 | G169: 838.13 | H169: 832.32 | I169: 825.63 | J169: 850.63 | K169: 857.32 | L169: 863.13 | M169: 851.5 | N169: 839 | O169: 8153600 | P169: 1%
A170: 160 | B170: Finance | C170: SBILIFE | D170: 2023-09-28 | E170: 1343.90 | F170: 1345.73 | G170: 1337.67 | H170: 1331.43 | I170: 1323.37 | J170: 1351.97 | K170: 1360.03 | L170: 1366.27 | M170: 1353.8 | N170: 1339.5 | O170: 9660000 | P170: -4%
A171: 161 | B171: Banking | C171: SBIN | D171: 2023-09-28 | E171: 585.10 | F171: 586.02 | G171: 581.58 | H171: 578.07 | I171: 573.63 | J171: 589.53 | K171: 593.97 | L171: 597.48 | M171: 590.45 | N171: 582.5 | O171: 94636500 | P171: -1%
A172: 162 | B172: Cement | C172: SHREECEM | D172: 2023-09-28 | E172: 26000.45 | F172: 25828.65 | G172: 25576.80 | H172: 25153.15 | I172: 24901.30 | J172: 26252.30 | K172: 26504.15 | L172: 26927.80 | M172: 26080.5 | N172: 25405 | O172: 167725 | P172: -2%
A173: 163 | B173: Capital_Goods | C173: SIEMENS | D173: 2023-09-28 | E173: 3964.60 | F173: 3969.05 | G173: 3944.75 | H173: 3924.90 | I173: 3900.60 | J173: 3988.90 | K173: 4013.20 | L173: 4033.05 | M173: 3993.35 | N173: 3949.2 | O173: 1713525 | P173: -1%
A174: 164 | B174: Textile | C174: SRF | D174: 2023-09-28 | E174: 2445.50 | F174: 2457.10 | G174: 2429.50 | H174: 2413.50 | I174: 2385.90 | J174: 2473.10 | K174: 2500.70 | L174: 2516.70 | M174: 2484.7 | N174: 2441.1 | O174: 3039000 | P174: -5%
A175: 165 | B175: Finance | C175: SHRIRAMFIN | D175: 2023-09-28 | E175: 1962.65 | F175: 1945.57 | G175: 1924.78 | H175: 1886.92 | I175: 1866.13 | J175: 1983.43 | K175: 2004.22 | L175: 2042.08 | M175: 1966.35 | N175: 1907.7 | O175: 7330200 | P175: 2%
A176: 166 | B176: Pharma | C176: SUNPHARMA | D176: 2023-09-28 | E176: 1135.80 | F176: 1137.62 | G176: 1131.83 | H176: 1127.87 | I176: 1122.08 | J176: 1141.58 | K176: 1147.37 | L176: 1151.33 | M176: 1143.4 | N176: 1133.65 | O176: 23806300 | P176: 1%
A177: 167 | B177: Media | C177: SUNTV | D177: 2023-09-28 | E177: 621.90 | F177: 623.65 | G177: 618.45 | H177: 615.00 | I177: 609.80 | J177: 627.10 | K177: 632.30 | L177: 635.75 | M177: 628.85 | N177: 620.2 | O177: 7977000 | P177: -1%
A178: 168 | B178: Pharma | C178: SYNGENE | D178: 2023-09-28 | E178: 842.45 | F178: 844.67 | G178: 837.18 | H178: 831.92 | I178: 824.43 | J178: 849.93 | K178: 857.42 | L178: 862.68 | M178: 852.15 | N178: 839.4 | O178: 4256000 | P178: -3%
A179: 169 | B179: Chemical | C179: TATACHEM | D179: 2023-09-28 | E179: 1089.55 | F179: 1091.78 | G179: 1084.07 | H179: 1078.58 | I179: 1070.87 | J179: 1097.27 | K179: 1104.98 | L179: 1110.47 | M179: 1099.5 | N179: 1086.3 | O179: 8394100 | P179: -0%
A180: 170 | B180: Telecom | C180: TATACOMM | D180: 2023-09-28 | E180: 1892.70 | F180: 1892.15 | G180: 1876.30 | H180: 1859.90 | I180: 1844.05 | J180: 1908.55 | K180: 1924.40 | L180: 1940.80 | M180: 1908 | N180: 1875.75 | O180: 6868500 | P180: 1%
A181: 171 | B181: FMCG | C181: TATACONSUM | D181: 2023-09-28 | E181: 856.85 | F181: 860.23 | G181: 852.62 | H181: 848.38 | I181: 840.77 | J181: 864.47 | K181: 872.08 | L181: 876.32 | M181: 867.85 | N181: 856 | O181: 10454400 | P181: 1%
A182: 172 | B182: Automobile | C182: TATAMOTORS | D182: 2023-09-28 | E182: 630.30 | F182: 626.28 | G182: 620.57 | H182: 610.83 | I182: 605.12 | J182: 636.02 | K182: 641.73 | L182: 651.47 | M182: 632 | N182: 616.55 | O182: 66291000 | P182: 3%
A183: 173 | B183: Power | C183: TATAPOWER | D183: 2023-09-28 | E183: 270.05 | F183: 270.68 | G183: 263.92 | H183: 257.78 | I183: 251.02 | J183: 276.82 | K183: 283.58 | L183: 289.72 | M183: 277.45 | N183: 264.55 | O183: 97014375 | P183: -2%
A184: 174 | B184: Metals | C184: TATASTEEL | D184: 2023-09-28 | E184: 129.75 | F184: 130.33 | G184: 128.82 | H184: 127.88 | I184: 126.37 | J184: 131.27 | K184: 132.78 | L184: 133.72 | M184: 131.85 | N184: 129.4 | O184: 216051000 | P184: 1%
A185: 175 | B185: Technology | C185: TCS | D185: 2023-09-28 | E185: 3458.75 | F185: 3464.12 | G185: 3447.43 | H185: 3436.12 | I185: 3419.43 | J185: 3475.43 | K185: 3492.12 | L185: 3503.43 | M185: 3480.8 | N185: 3452.8 | O185: 10326750 | P185: 1%
A186: 176 | B186: Technology | C186: TECHM | D186: 2023-09-28 | E186: 1264.95 | F186: 1269.72 | G186: 1257.23 | H186: 1249.52 | I186: 1237.03 | J186: 1277.43 | K186: 1289.92 | L186: 1297.63 | M186: 1282.2 | N186: 1262 | O186: 12661800 | P186: 2%
A187: 177 | B187: FMCG | C187: TITAN | D187: 2023-09-28 | E187: 3202.35 | F187: 3196.03 | G187: 3182.07 | H187: 3161.78 | I187: 3147.82 | J187: 3216.32 | K187: 3230.28 | L187: 3250.57 | M187: 3210 | N187: 3175.75 | O187: 4853250 | P187: 2%
A188: 178 | B188: Pharma | C188: TORNTPHARM | D188: 2023-09-28 | E188: 1882.30 | F188: 1890.40 | G188: 1863.90 | H188: 1845.50 | I188: 1819.00 | J188: 1908.80 | K188: 1935.30 | L188: 1953.70 | M188: 1916.9 | N188: 1872 | O188: 1957500 | P188: -0%
A189: 179 | B189: Others | C189: TRENT | D189: 2023-09-28 | E189: 2092.35 | F189: 2100.53 | G189: 2066.47 | H189: 2040.58 | I189: 2006.52 | J189: 2126.42 | K189: 2160.48 | L189: 2186.37 | M189: 2134.6 | N189: 2074.65 | O189: 3550400 | P189: -2%
A190: 180 | B190: Automobile | C190: TVSMOTOR | D190: 2023-09-28 | E190: 1485.40 | F190: 1482.73 | G190: 1477.47 | H190: 1469.53 | I190: 1464.27 | J190: 1490.67 | K190: 1495.93 | L190: 1503.87 | M190: 1488 | N190: 1474.8 | O190: 7259700 | P190: -1%
A191: 181 | B191: FMCG | C191: UBL | D191: 2023-09-28 | E191: 1684.80 | F191: 1681.33 | G191: 1669.67 | H191: 1654.53 | I191: 1642.87 | J191: 1696.47 | K191: 1708.13 | L191: 1723.27 | M191: 1693 | N191: 1666.2 | O191: 2180800 | P191: -5%
A192: 182 | B192: Cement | C192: ULTRACEMCO | D192: 2023-09-28 | E192: 8462.45 | F192: 8489.15 | G192: 8413.30 | H192: 8364.15 | I192: 8288.30 | J192: 8538.30 | K192: 8614.15 | L192: 8663.30 | M192: 8565 | N192: 8440 | O192: 1429000 | P192: 2%
A193: 183 | B193: Chemical | C193: UPL | D193: 2023-09-28 | E193: 609.70 | F193: 612.37 | G193: 606.38 | H193: 603.07 | I193: 597.08 | J193: 615.68 | K193: 621.67 | L193: 624.98 | M193: 618.35 | N193: 609.05 | O193: 39062400 | P193: 1%
A194: 184 | B194: Metals | C194: VEDL | D194: 2023-09-28 | E194: 238.50 | F194: 238.77 | G194: 237.03 | H194: 235.57 | I194: 233.83 | J194: 240.23 | K194: 241.97 | L194: 243.43 | M194: 240.5 | N194: 237.3 | O194: 59232000 | P194: 1%
A195: 185 | B195: Capital_Goods | C195: VOLTAS | D195: 2023-09-28 | E195: 908.15 | F195: 905.98 | G195: 899.97 | H195: 891.78 | I195: 885.77 | J195: 914.17 | K195: 920.18 | L195: 928.37 | M195: 912 | N195: 897.8 | O195: 7052400 | P195: 3%
A196: 186 | B196: Technology | C196: WIPRO | D196: 2023-09-28 | E196: 432.05 | F196: 433.00 | G196: 430.35 | H196: 428.65 | I196: 426.00 | J196: 434.70 | K196: 437.35 | L196: 439.05 | M196: 435.65 | N196: 431.3 | O196: 37342500 | P196: 2%
A197: 187 | B197: Media | C197: ZEEL | D197: 2023-09-28 | E197: 278.25 | F197: 280.53 | G197: 274.17 | H197: 270.08 | I197: 263.72 | J197: 284.62 | K197: 290.98 | L197: 295.07 | M197: 286.9 | N197: 276.45 | O197: 94959000 | P197: 0%
A198: 188 | B198: Pharma | C198: ZYDUSLIFE | D198: 2023-09-28 | E198: 631.00 | F198: 630.88 | G198: 625.02 | H198: 619.03 | I198: 613.17 | J198: 636.87 | K198: 642.73 | L198: 648.72 | M198: 636.75 | N198: 624.9 | O198: 7057800 | P198: -1%
A199: 189
A200: 190
A201: 191
A202: 192
A203: 193
A204: 194
A221: Pivot Point: This is trigger point for intra day buy/sell based on the price range of the previous day
A222: As per the tool,the trader should take BUY position just above Pivot and keep the stop loss of pivot point and the first target would be Resistance 1(R1)
... 13 more rows

Sheet Cash Intra
M5: Back to Main Page
A6: FOR INTRA DAY TRADING | K6: =Main!B10 -> 2023-09-11
A8: Sr.no | C8: CLOSE RATE | D8: Pivot Point | E8: Supports | H8: Resistances
E9: S1 | F9: S2 | G9: S3 | H9: R1 | I9: R2 | J9: R3 | K9: HIGH | L9: LOW | M9: Total Trade Quanity in Lakhs
A10: 1 | B10: Nifty 50 | C10: 19819.95 | D10: 19804.72 | E10: 19742.28 | F10: 19664.62 | G10: 19602.18 | H10: 19882.38 | I10: 19944.82 | J10: 20022.48 | K10: 19867.15 | L10: 19727.05
A11: 2 | B11: Nifty Bank | C11: 45156.40 | D11: 45117.30 | E11: 44851.25 | F11: 44546.10 | G11: 44280.05 | H11: 45422.45 | I11: 45688.50 | J11: 45993.65 | K11: 45383.35 | L11: 44812.15
A12: 3 | B12: Nifty CPSE | C12: 3828.30 | D12: 3812.78 | E12: 3776.07 | F12: 3723.83 | G12: 3687.12 | H12: 3865.02 | I12: 3901.73 | J12: 3953.97 | K12: 3849.50 | L12: 3760.55
A13: 4 | B13: Nifty Infra | C13: 6229.15 | D13: 6210.05 | E13: 6177.35 | F13: 6125.55 | G13: 6092.85 | H13: 6261.85 | I13: 6294.55 | J13: 6346.35 | K13: 6242.75 | L13: 6158.25
A14: 5 | B14: Nifty IT | C14: 32415.65 | D14: 32443.43 | E14: 32325.62 | F14: 32235.58 | G14: 32117.77 | H14: 32533.47 | I14: 32651.28 | J14: 32741.32 | K14: 32561.25 | L14: 32353.40
A15: 6 | B15: Nifty PSE | C15: 5965.90 | D15: 5924.13 | E15: 5854.57 | F15: 5743.23 | G15: 5673.67 | H15: 6035.47 | I15: 6105.03 | J15: 6216.37 | K15: 5993.70 | L15: 5812.80
A16: 7 | B16: Nifty Midcap 50 | C16: 11647.15 | D16: 11608.27 | E16: 11559.68 | F16: 11472.22 | G16: 11423.63 | H16: 11695.73 | I16: 11744.32 | J16: 11831.78 | K16: 11656.85 | L16: 11520.80
A17: 8 | B17: ABB | C17: 4458.55 | D17: 4469.52 | E17: 4424.03 | F17: 4389.52 | G17: 4344.03 | H17: 4504.03 | I17: 4549.52 | J17: 4584.03 | K17: 4515 | L17: 4435 | M17: 2.31272
A18: 9 | B18: ABBOTINDIA | C18: 23002.3 | D18: 22985.45 | E18: 22816.90 | F18: 22631.50 | G18: 22462.95 | H18: 23170.85 | I18: 23339.40 | J18: 23524.80 | K18: 23154 | L18: 22800.05 | M18: 0.08725
A19: 10 | B19: ABCAPITAL | C19: 186.9 | D19: 187.42 | E19: 185.98 | F19: 185.07 | G19: 183.63 | H19: 188.33 | I19: 189.77 | J19: 190.68 | K19: 188.85 | L19: 186.5 | M19: 26.13359
A20: 11 | B20: ABFRL | C20: 229.35 | D20: 230.33 | E20: 228.02 | F20: 226.68 | G20: 224.37 | H20: 231.67 | I20: 233.98 | J20: 235.32 | K20: 232.65 | L20: 229 | M20: 22.53393
A21: 12 | B21: ACC | C21: 2024.25 | D21: 2032.42 | E21: 2007.83 | F21: 1991.42 | G21: 1966.83 | H21: 2048.83 | I21: 2073.42 | J21: 2089.83 | K21: 2057 | L21: 2016 | M21: 6.55333
A22: 13 | B22: ADANIENT | C22: 2519.3 | D22: 2521.33 | E22: 2504.07 | F22: 2488.83 | G22: 2471.57 | H22: 2536.57 | I22: 2553.83 | J22: 2569.07 | K22: 2538.6 | L22: 2506.1 | M22: 56.40973
A23: 14 | B23: ADANIGREEN | C23: 1001.2 | D23: 1003.85 | E23: 995.35 | F23: 989.50 | G23: 981.00 | H23: 1009.70 | I23: 1018.20 | J23: 1024.05 | K23: 1012.35 | L23: 998 | M23: 52.54899
A24: 15 | B24: ADANIPORTS | C24: 825 | D24: 821.32 | E24: 813.83 | F24: 802.67 | G24: 795.18 | H24: 832.48 | I24: 839.97 | J24: 851.13 | K24: 828.8 | L24: 810.15 | M24: 116.83222
A25: 16 | B25: ADANIPOWER | C25: 369.15 | D25: 366.18 | E25: 359.97 | F25: 350.78 | G25: 344.57 | H25: 375.37 | I25: 381.58 | J25: 390.77 | K25: 372.4 | L25: 357 | M25: 260.73229
A26: 17 | B26: ALKEM | C26: 3621.25 | D26: 3630.22 | E26: 3603.48 | F26: 3585.72 | G26: 3558.98 | H26: 3647.98 | I26: 3674.72 | J26: 3692.48 | K26: 3656.95 | L26: 3612.45 | M26: 1.19771
A27: 18 | B27: AMBUJACEM | C27: 439.2 | D27: 439.10 | E27: 437.00 | F27: 434.80 | G27: 432.70 | H27: 441.30 | I27: 443.40 | J27: 445.60 | K27: 441.2 | L27: 436.9 | M27: 19.1345
A28: 19 | B28: APOLLOHOSP | C28: 4985.15 | D28: 5004.30 | E28: 4958.80 | F28: 4932.45 | G28: 4886.95 | H28: 5030.65 | I28: 5076.15 | J28: 5102.50 | K28: 5049.8 | L28: 4977.95 | M28: 2.92671
A29: 20 | B29: APOLLOTYRE | C29: 381.65 | D29: 383.15 | E29: 379.55 | F29: 377.45 | G29: 373.85 | H29: 385.25 | I29: 388.85 | J29: 390.95 | K29: 386.75 | L29: 381.05 | M29: 13.30195
A30: 21 | B30: ASHOKLEY | C30: 183.6 | D30: 183.90 | E30: 182.30 | F30: 181.00 | G30: 179.40 | H30: 185.20 | I30: 186.80 | J30: 188.10 | K30: 185.5 | L30: 182.6 | M30: 103.89774
A31: 22 | B31: ASIANPAINT | C31: 3238.05 | D31: 3244.37 | E31: 3225.68 | F31: 3213.32 | G31: 3194.63 | H31: 3256.73 | I31: 3275.42 | J31: 3287.78 | K31: 3263.05 | L31: 3232 | M31: 3.95918
A32: 23 | B32: ASTRAL | C32: 1909.3 | D32: 1906.30 | E32: 1896.15 | F32: 1883.00 | G32: 1872.85 | H32: 1919.45 | I32: 1929.60 | J32: 1942.75 | K32: 1916.45 | L32: 1893.15 | M32: 8.38017
A33: 24 | B33: ATGL | C33: 644.8 | D33: 647.12 | E33: 640.73 | F33: 636.67 | G33: 630.28 | H33: 651.18 | I33: 657.57 | J33: 661.63 | K33: 653.5 | L33: 643.05 | M33: 5.62257
A34: 25 | B34: AUBANK | C34: 734.9 | D34: 731.95 | E34: 726.95 | F34: 719.00 | G34: 714.00 | H34: 739.90 | I34: 744.90 | J34: 752.85 | K34: 736.95 | L34: 724 | M34: 13.87523
A35: 26 | B35: AUROPHARMA | C35: 858.5 | D35: 857.43 | E35: 851.07 | F35: 843.63 | G35: 837.27 | H35: 864.87 | I35: 871.23 | J35: 878.67 | K35: 863.8 | L35: 850 | M35: 10.37792
A36: 27 | B36: AWL | C36: 354.6 | D36: 356.30 | E36: 350.80 | F36: 347.00 | G36: 341.50 | H36: 360.10 | I36: 365.60 | J36: 369.40 | K36: 361.8 | L36: 352.5 | M36: 22.93208
A37: 28 | B37: AXISBANK | C37: 980.3 | D37: 980.03 | E37: 972.77 | F37: 965.23 | G37: 957.97 | H37: 987.57 | I37: 994.83 | J37: 1002.37 | K37: 987.3 | L37: 972.5 | M37: 64.39351
A38: 29 | B38: BAJAJ-AUTO | C38: 4759.55 | D38: 4748.95 | E38: 4713.30 | F38: 4667.05 | G38: 4631.40 | H38: 4795.20 | I38: 4830.85 | J38: 4877.10 | K38: 4784.6 | L38: 4702.7 | M38: 2.09769
A39: 30 | B39: BAJAJFINSV | C39: 1541 | D39: 1541.62 | E39: 1524.43 | F39: 1507.87 | G39: 1490.68 | H39: 1558.18 | I39: 1575.37 | J39: 1591.93 | K39: 1558.8 | L39: 1525.05 | M39: 21.68354
A40: 31 | B40: BAJAJHLDNG | C40: 7141.8 | D40: 7167.43 | E40: 7102.37 | F40: 7062.93 | G40: 6997.87 | H40: 7206.87 | I40: 7271.93 | J40: 7311.37 | K40: 7232.5 | L40: 7128 | M40: 0.13932
A41: 32 | B41: BAJFINANCE | C41: 7410.65 | D41: 7410.20 | E41: 7370.45 | F41: 7330.25 | G41: 7290.50 | H41: 7450.40 | I41: 7490.15 | J41: 7530.35 | K41: 7449.95 | L41: 7370 | M41: 6.24642
A42: 33 | B42: BALKRISIND | C42: 2402.4 | D42: 2401.20 | E42: 2387.45 | F42: 2372.50 | G42: 2358.75 | H42: 2416.15 | I42: 2429.90 | J42: 2444.85 | K42: 2414.95 | L42: 2386.25 | M42: 0.75008
A43: 34 | B43: BANDHANBNK | C43: 243.4 | D43: 242.43 | E43: 239.12 | F43: 234.83 | G43: 231.52 | H43: 246.72 | I43: 250.03 | J43: 254.32 | K43: 245.75 | L43: 238.15 | M43: 152.57354
A44: 35 | B44: BANKBARODA | C44: 197.8 | D44: 198.00 | E44: 196.00 | F44: 194.20 | G44: 192.20 | H44: 199.80 | I44: 201.80 | J44: 203.60 | K44: 200 | L44: 196.2 | M44: 153.79639
A45: 36 | B45: BANKINDIA | C45: 93 | D45: 93.15 | E45: 92.45 | F45: 91.90 | G45: 91.20 | H45: 93.70 | I45: 94.40 | J45: 94.95 | K45: 93.85 | L45: 92.6 | M45: 112.70995
A46: 37 | B46: BATAINDIA | C46: 1723.45 | D46: 1728.48 | E46: 1712.17 | F46: 1700.88 | G46: 1684.57 | H46: 1739.77 | I46: 1756.08 | J46: 1767.37 | K46: 1744.8 | L46: 1717.2 | M46: 1.84008
A47: 38 | B47: BEL | C47: 143.3 | D47: 142.60 | E47: 140.90 | F47: 138.50 | G47: 136.80 | H47: 145.00 | I47: 146.70 | J47: 149.10 | K47: 144.3 | L47: 140.2 | M47: 165.79557
A48: 39 | B48: BERGEPAINT | C48: 716.9 | D48: 715.03 | E48: 710.37 | F48: 703.83 | G48: 699.17 | H48: 721.57 | I48: 726.23 | J48: 732.77 | K48: 719.7 | L48: 708.5 | M48: 4.81837
A49: 40 | B49: BHARATFORG | C49: 1105.4 | D49: 1103.20 | E49: 1096.40 | F49: 1087.40 | G49: 1080.60 | H49: 1112.20 | I49: 1119.00 | J49: 1128.00 | K49: 1110 | L49: 1094.2 | M49: 6.69736
A50: 41 | B50: BHARTIARTL | C50: 885.85 | D50: 884.88 | E50: 879.12 | F50: 872.38 | G50: 866.62 | H50: 891.62 | I50: 897.38 | J50: 904.12 | K50: 890.65 | L50: 878.15 | M50: 37.4147
A51: 42 | B51: BHEL | C51: 145.3 | D51: 143.43 | E51: 140.47 | F51: 135.63 | G51: 132.67 | H51: 148.27 | I51: 151.23 | J51: 156.07 | K51: 146.4 | L51: 138.6 | M51: 717.29474
A52: 43 | B52: BIOCON | C52: 266.4 | D52: 267.18 | E52: 265.12 | F52: 263.83 | G52: 261.77 | H52: 268.47 | I52: 270.53 | J52: 271.82 | K52: 269.25 | L52: 265.9 | M52: 15.73069
A53: 44 | B53: BOSCHLTD | C53: 19403.25 | D53: 19346.08 | E53: 19267.17 | F53: 19131.08 | G53: 19052.17 | H53: 19482.17 | I53: 19561.08 | J53: 19697.17 | K53: 19425 | L53: 19210 | M53: 0.1323
A54: 45 | B54: BPCL | C54: 361.95 | D54: 360.17 | E54: 355.83 | F54: 349.72 | G54: 345.38 | H54: 366.28 | I54: 370.62 | J54: 376.73 | K54: 364.5 | L54: 354.05 | M54: 51.72065
A55: 46 | B55: BRITANNIA | C55: 4540.5 | D55: 4534.30 | E55: 4520.00 | F55: 4499.50 | G55: 4485.20 | H55: 4554.80 | I55: 4569.10 | J55: 4589.60 | K55: 4548.6 | L55: 4513.8 | M55: 2.78293
A56: 47 | B56: CANBK | C56: 339.1 | D56: 339.37 | E56: 335.23 | F56: 331.37 | G56: 327.23 | H56: 343.23 | I56: 347.37 | J56: 351.23 | K56: 343.5 | L56: 335.5 | M56: 72.60594
A57: 48 | B57: CGPOWER | C57: 455.25 | D57: 455.17 | E57: 450.63 | F57: 446.02 | G57: 441.48 | H57: 459.78 | I57: 464.32 | J57: 468.93 | K57: 459.7 | L57: 450.55 | M57: 25.87763
A58: 49 | B58: CHOLAFIN | C58: 1175.95 | D58: 1164.88 | E58: 1143.07 | F58: 1110.18 | G58: 1088.37 | H58: 1197.77 | I58: 1219.58 | J58: 1252.47 | K58: 1186.7 | L58: 1132 | M58: 40.04318
A59: 50 | B59: CIPLA | C59: 1244.6 | D59: 1248.53 | E59: 1235.07 | F59: 1225.53 | G59: 1212.07 | H59: 1258.07 | I59: 1271.53 | J59: 1281.07 | K59: 1262 | L59: 1239 | M59: 7.8771
A60: 51 | B60: COALINDIA | C60: 282.1 | D60: 279.15 | E60: 273.85 | F60: 265.60 | G60: 260.30 | H60: 287.40 | I60: 292.70 | J60: 300.95 | K60: 284.45 | L60: 270.9 | M60: 418.55413
A61: 52 | B61: COFORGE | C61: 5550.6 | D61: 5568.38 | E61: 5511.77 | F61: 5472.93 | G61: 5416.32 | H61: 5607.22 | I61: 5663.83 | J61: 5702.67 | K61: 5625 | L61: 5529.55 | M61: 2.80869
A62: 53 | B62: COLPAL | C62: 2015.4 | D62: 2020.42 | E62: 2002.08 | F62: 1988.77 | G62: 1970.43 | H62: 2033.73 | I62: 2052.07 | J62: 2065.38 | K62: 2038.75 | L62: 2007.1 | M62: 2.97448
A63: 54 | B63: CONCOR | C63: 708.9 | D63: 705.60 | E63: 691.85 | F63: 674.80 | G63: 661.05 | H63: 722.65 | I63: 736.40 | J63: 753.45 | K63: 719.35 | L63: 688.55 | M63: 26.9714
A64: 55 | B64: COROMANDEL | C64: 1124.2 | D64: 1131.68 | E64: 1114.37 | F64: 1104.53 | G64: 1087.22 | H64: 1141.52 | I64: 1158.83 | J64: 1168.67 | K64: 1149 | L64: 1121.85 | M64: 1.98395
A65: 56 | B65: CROMPTON | C65: 316.2 | D65: 316.38 | E65: 313.27 | F65: 310.33 | G65: 307.22 | H65: 319.32 | I65: 322.43 | J65: 325.37 | K65: 319.5 | L65: 313.45 | M65: 36.74917
A66: 57 | B66: CUMMINSIND | C66: 1755.35 | D66: 1751.85 | E66: 1740.90 | F66: 1726.45 | G66: 1715.50 | H66: 1766.30 | I66: 1777.25 | J66: 1791.70 | K66: 1762.8 | L66: 1737.4 | M66: 11.05103
A67: 58 | B67: DABUR | C67: 567.1 | D67: 566.52 | E67: 564.13 | F67: 561.17 | G67: 558.78 | H67: 569.48 | I67: 571.87 | J67: 574.83 | K67: 568.9 | L67: 563.55 | M67: 6.95069
A68: 59 | B68: DALBHARAT | C68: 2322.1 | D68: 2312.35 | E68: 2297.30 | F68: 2272.50 | G68: 2257.45 | H68: 2337.15 | I68: 2352.20 | J68: 2377.00 | K68: 2327.4 | L68: 2287.55 | M68: 4.16878
A69: 60 | B69: DEEPAKNTR | C69: 2319.25 | D69: 2332.15 | E69: 2291.60 | F69: 2263.95 | G69: 2223.40 | H69: 2359.80 | I69: 2400.35 | J69: 2428.00 | K69: 2372.7 | L69: 2304.5 | M69: 5.30366
A70: 61 | B70: DELHIVERY | C70: 437.4 | D70: 440.03 | E70: 433.37 | F70: 429.33 | G70: 422.67 | H70: 444.07 | I70: 450.73 | J70: 454.77 | K70: 446.7 | L70: 436 | M70: 6.67704
A71: 62 | B71: DEVYANI | C71: 222.45 | D71: 223.10 | E71: 220.00 | F71: 217.55 | G71: 214.45 | H71: 225.55 | I71: 228.65 | J71: 231.10 | K71: 226.2 | L71: 220.65 | M71: 30.91725
A72: 63 | B72: DIVISLAB | C72: 3698.8 | D72: 3692.92 | E72: 3674.13 | F72: 3649.47 | G72: 3630.68 | H72: 3717.58 | I72: 3736.37 | J72: 3761.03 | K72: 3711.7 | L72: 3668.25 | M72: 2.47373
A73: 64 | B73: DIXON | C73: 5121.2 | D73: 5110.40 | E73: 5076.35 | F73: 5031.50 | G73: 4997.45 | H73: 5155.25 | I73: 5189.30 | J73: 5234.15 | K73: 5144.45 | L73: 5065.55 | M73: 4.08374
A74: 65 | B74: DLF | C74: 540 | D74: 538.62 | E74: 532.78 | F74: 525.57 | G74: 519.73 | H74: 545.83 | I74: 551.67 | J74: 558.88 | K74: 544.45 | L74: 531.4 | M74: 80.16696
A75: 66 | B75: DMART | C75: 3782.4 | D75: 3794.47 | E75: 3763.93 | F75: 3745.47 | G75: 3714.93 | H75: 3812.93 | I75: 3843.47 | J75: 3861.93 | K75: 3825 | L75: 3776 | M75: 1.552
A76: 67 | B76: DRREDDY | C76: 5583.8 | D76: 5595.82 | E76: 5557.98 | F76: 5532.17 | G76: 5494.33 | H76: 5621.63 | I76: 5659.47 | J76: 5685.28 | K76: 5633.65 | L76: 5570 | M76: 1.8479
A77: 68 | B77: EICHERMOT | C77: 3370.9 | D77: 3381.12 | E77: 3355.88 | F77: 3340.87 | G77: 3315.63 | H77: 3396.13 | I77: 3421.37 | J77: 3436.38 | K77: 3406.35 | L77: 3366.1 | M77: 4.48502
A78: 69 | B78: ESCORTS | C78: 3185.4 | D78: 3174.77 | E78: 3150.63 | F78: 3115.87 | G78: 3091.73 | H78: 3209.53 | I78: 3233.67 | J78: 3268.43 | K78: 3198.9 | L78: 3140 | M78: 3.13212
A79: 70 | B79: FEDERALBNK | C79: 147.5 | D79: 146.95 | E79: 145.60 | F79: 143.70 | G79: 142.35 | H79: 148.85 | I79: 150.20 | J79: 152.10 | K79: 148.3 | L79: 145.05 | M79: 180.10921
A80: 71 | B80: FLUOROCHEM | C80: 3067.3 | D80: 3065.93 | E80: 3016.87 | F80: 2966.43 | G80: 2917.37 | H80: 3116.37 | I80: 3165.43 | J80: 3215.87 | K80: 3115 | L80: 3015.5 | M80: 0.93221
A81: 72 | B81: FORTIS | C81: 339.3 | D81: 338.78 | E81: 334.82 | F81: 330.33 | G81: 326.37 | H81: 343.27 | I81: 347.23 | J81: 351.72 | K81: 342.75 | L81: 334.3 | M81: 23.33674
A82: 73 | B82: GAIL | C82: 128.05 | D82: 127.60 | E82: 126.35 | F82: 124.65 | G82: 123.40 | H82: 129.30 | I82: 130.55 | J82: 132.25 | K82: 128.85 | L82: 125.9 | M82: 202.10938
A83: 74 | B83: GLAND | C83: 1692.35 | D83: 1695.75 | E83: 1681.60 | F83: 1670.85 | G83: 1656.70 | H83: 1706.50 | I83: 1720.65 | J83: 1731.40 | K83: 1709.9 | L83: 1685 | M83: 1.51817
A84: 75 | B84: GODREJCP | C84: 1020.3 | D84: 1018.23 | E84: 1012.97 | F84: 1005.63 | G84: 1000.37 | H84: 1025.57 | I84: 1030.83 | J84: 1038.17 | K84: 1023.5 | L84: 1010.9 | M84: 3.21006
A85: 76 | B85: GODREJPROP | C85: 1693.25 | D85: 1682.78 | E85: 1663.52 | F85: 1633.78 | G85: 1614.52 | H85: 1712.52 | I85: 1731.78 | J85: 1761.52 | K85: 1702.05 | L85: 1653.05 | M85: 6.69455
A86: 77 | B86: GRASIM | C86: 1849.75 | D86: 1848.70 | E86: 1841.15 | F86: 1832.55 | G86: 1825.00 | H86: 1857.30 | I86: 1864.85 | J86: 1873.45 | K86: 1856.25 | L86: 1840.1 | M86: 3.64113
A87: 78 | B87: GUJGASLTD | C87: 464.4 | D87: 464.70 | E87: 462.70 | F87: 461.00 | G87: 459.00 | H87: 466.40 | I87: 468.40 | J87: 470.10 | K87: 466.7 | L87: 463 | M87: 10.22948
A88: 79 | B88: HAL | C88: 4105.55 | D88: 4098.48 | E88: 4058.07 | F88: 4010.58 | G88: 3970.17 | H88: 4145.97 | I88: 4186.38 | J88: 4233.87 | K88: 4138.9 | L88: 4051 | M88: 14.47738
A89: 80 | B89: HAVELLS | C89: 1450.25 | D89: 1426.75 | E89: 1399.50 | F89: 1348.75 | G89: 1321.50 | H89: 1477.50 | I89: 1504.75 | J89: 1555.50 | K89: 1454 | L89: 1376 | M89: 43.77612
A90: 81 | B90: HCLTECH | C90: 1262.05 | D90: 1261.97 | E90: 1254.38 | F90: 1246.72 | G90: 1239.13 | H90: 1269.63 | I90: 1277.22 | J90: 1284.88 | K90: 1269.55 | L90: 1254.3 | M90: 22.80777
A91: 82 | B91: HDFCAMC | C91: 2535.8 | D91: 2530.60 | E91: 2515.20 | F91: 2494.60 | G91: 2479.20 | H91: 2551.20 | I91: 2566.60 | J91: 2587.20 | K91: 2546 | L91: 2510 | M91: 3.20215
A92: 83 | B92: HDFCBANK | C92: 1623.4 | D92: 1621.30 | E92: 1609.70 | F92: 1596.00 | G92: 1584.40 | H92: 1635.00 | I92: 1646.60 | J92: 1660.30 | K92: 1632.9 | L92: 1607.6 | M92: 172.51105
A93: 84 | B93: HDFCLIFE | C93: 657.45 | D93: 657.07 | E93: 653.33 | F93: 649.22 | G93: 645.48 | H93: 661.18 | I93: 664.92 | J93: 669.03 | K93: 660.8 | L93: 652.95 | M93: 16.93851
A94: 85 | B94: HEROMOTOCO | C94: 3008.75 | D94: 2998.63 | E94: 2970.27 | F94: 2931.78 | G94: 2903.42 | H94: 3037.12 | I94: 3065.48 | J94: 3103.97 | K94: 3027 | L94: 2960.15 | M94: 5.69352
A95: 86 | B95: HINDALCO | C95: 476.15 | D95: 474.22 | E95: 469.63 | F95: 463.12 | G95: 458.53 | H95: 480.73 | I95: 485.32 | J95: 491.83 | K95: 478.8 | L95: 467.7 | M95: 56.3799
A96: 87 | B96: HINDPETRO | C96: 260.4 | D96: 259.23 | E96: 255.17 | F96: 249.93 | G96: 245.87 | H96: 264.47 | I96: 268.53 | J96: 273.77 | K96: 263.3 | L96: 254 | M96: 57.51334
A97: 88 | B97: HINDUNILVR | C97: 2513.8 | D97: 2512.13 | E97: 2503.22 | F97: 2492.63 | G97: 2483.72 | H97: 2522.72 | I97: 2531.63 | J97: 2542.22 | K97: 2521.05 | L97: 2501.55 | M97: 10.18234
A98: 89 | B98: HINDZINC | C98: 320.2 | D98: 321.02 | E98: 319.18 | F98: 318.17 | G98: 316.33 | H98: 322.03 | I98: 323.87 | J98: 324.88 | K98: 322.85 | L98: 320 | M98: 2.95099
A99: 90 | B99: HONAUT | C99: 39024.7 | D99: 39053.22 | E99: 38771.48 | F99: 38518.27 | G99: 38236.53 | H99: 39306.43 | I99: 39588.17 | J99: 39841.38 | K99: 39334.95 | L99: 38800 | M99: 0.12
A100: 91 | B100: ICICIBANK | C100: 970.55 | D100: 968.93 | E100: 962.87 | F100: 955.18 | G100: 949.12 | H100: 976.62 | I100: 982.68 | J100: 990.37 | K100: 975 | L100: 961.25 | M100: 130.86915
A101: 92 | B101: ICICIGI | C101: 1349 | D101: 1351.28 | E101: 1341.12 | F101: 1333.23 | G101: 1323.07 | H101: 1359.17 | I101: 1369.33 | J101: 1377.22 | K101: 1361.45 | L101: 1343.4 | M101: 9.02545
A102: 93 | B102: ICICIPRULI | C102: 556.7 | D102: 556.77 | E102: 545.68 | F102: 534.67 | G102: 523.58 | H102: 567.78 | I102: 578.87 | J102: 589.88 | K102: 567.85 | L102: 545.75 | M102: 27.44094
A103: 94 | B103: IDEA | C103: 10.5 | D103: 10.65 | E103: 10.30 | F103: 10.10 | G103: 9.75 | H103: 10.85 | I103: 11.20 | J103: 11.40 | K103: 11 | L103: 10.45 | M103: 3381.42088
A104: 95 | B104: IDFCFIRSTB | C104: 95.35 | D104: 95.68 | E104: 94.32 | F104: 93.28 | G104: 91.92 | H104: 96.72 | I104: 98.08 | J104: 99.12 | K104: 97.05 | L104: 94.65 | M104: 342.95404
A105: 96 | B105: IGL | C105: 481.75 | D105: 481.53 | E105: 476.52 | F105: 471.28 | G105: 466.27 | H105: 486.77 | I105: 491.78 | J105: 497.02 | K105: 486.55 | L105: 476.3 | M105: 23.21331
A106: 97 | B106: INDHOTEL | C106: 429.55 | D106: 429.98 | E106: 427.57 | F106: 425.58 | G106: 423.17 | H106: 431.97 | I106: 434.38 | J106: 436.37 | K106: 432.4 | L106: 428 | M106: 23.26946
A107: 98 | B107: INDIANB | C107: 389.15 | D107: 390.30 | E107: 385.85 | F107: 382.55 | G107: 378.10 | H107: 393.60 | I107: 398.05 | J107: 401.35 | K107: 394.75 | L107: 387 | M107: 7.581
A108: 99 | B108: INDIGO | C108: 2473.5 | D108: 2477.33 | E108: 2445.67 | F108: 2417.83 | G108: 2386.17 | H108: 2505.17 | I108: 2536.83 | J108: 2564.67 | K108: 2509 | L108: 2449.5 | M108: 7.97367
A109: 100 | B109: INDUSINDBK | C109: 1448.85 | D109: 1447.63 | E109: 1435.32 | F109: 1421.78 | G109: 1409.47 | H109: 1461.17 | I109: 1473.48 | J109: 1487.02 | K109: 1459.95 | L109: 1434.1 | M109: 28.62657
A110: 101 | B110: INDUSTOWER | C110: 188 | D110: 188.10 | E110: 184.70 | F110: 181.40 | G110: 178.00 | H110: 191.40 | I110: 194.80 | J110: 198.10 | K110: 191.5 | L110: 184.8 | M110: 149.85676
A111: 102 | B111: INFY | C111: 1469.6 | D111: 1468.18 | E111: 1461.62 | F111: 1453.63 | G111: 1447.07 | H111: 1476.17 | I111: 1482.73 | J111: 1490.72 | K111: 1474.75 | L111: 1460.2 | M111: 31.25838
A112: 103 | B112: IOC | C112: 94 | D112: 93.50 | E112: 92.05 | F112: 90.10 | G112: 88.65 | H112: 95.45 | I112: 96.90 | J112: 98.85 | K112: 94.95 | L112: 91.55 | M112: 292.94769
A113: 104 | B113: IPCALAB | C113: 902.85 | D113: 899.52 | E113: 892.63 | F113: 882.42 | G113: 875.53 | H113: 909.73 | I113: 916.62 | J113: 926.83 | K113: 906.4 | L113: 889.3 | M113: 3.00163
A114: 105 | B114: IRCTC | C114: 725.55 | D114: 730.28 | E114: 702.57 | F114: 679.58 | G114: 651.87 | H114: 753.27 | I114: 780.98 | J114: 803.97 | K114: 758 | L114: 707.3 | M114: 135.72298
A115: 106 | B115: IRFC | C115: 77.1 | D115: 76.57 | E115: 75.18 | F115: 73.27 | G115: 71.88 | H115: 78.48 | I115: 79.87 | J115: 81.78 | K115: 77.95 | L115: 74.65 | M115: 1792.8878
A116: 107 | B116: ITC | C116: 442.65 | D116: 444.13 | E116: 440.37 | F116: 438.08 | G116: 434.32 | H116: 446.42 | I116: 450.18 | J116: 452.47 | K116: 447.9 | L116: 441.85 | M116: 99.39517
A117: 108 | B117: JINDALSTEL | C117: 698.3 | D117: 700.30 | E117: 693.50 | F117: 688.70 | G117: 681.90 | H117: 705.10 | I117: 711.90 | J117: 716.70 | K117: 707.1 | L117: 695.5 | M117: 15.15441
A118: 109 | B118: JSWENERGY | C118: 394.55 | D118: 390.32 | E118: 383.33 | F118: 372.12 | G118: 365.13 | H118: 401.53 | I118: 408.52 | J118: 419.73 | K118: 397.3 | L118: 379.1 | M118: 59.09442
A119: 110 | B119: JSWSTEEL | C119: 815.75 | D119: 816.78 | E119: 809.57 | F119: 803.38 | G119: 796.17 | H119: 822.97 | I119: 830.18 | J119: 836.37 | K119: 824 | L119: 810.6 | M119: 18.6622
A120: 111 | B120: JUBLFOOD | C120: 532.7 | D120: 531.73 | E120: 527.97 | F120: 523.23 | G120: 519.47 | H120: 536.47 | I120: 540.23 | J120: 544.97 | K120: 535.5 | L120: 527 | M120: 15.6603
A121: 112 | B121: KOTAKBANK | C121: 1793.2 | D121: 1793.25 | E121: 1781.50 | F121: 1769.80 | G121: 1758.05 | H121: 1804.95 | I121: 1816.70 | J121: 1828.40 | K121: 1805 | L121: 1781.55 | M121: 23.86182
A122: 113 | B122: L&TFH | C122: 129.35 | D122: 129.58 | E122: 128.77 | F122: 128.18 | G122: 127.37 | H122: 130.17 | I122: 130.98 | J122: 131.57 | K122: 130.4 | L122: 129 | M122: 33.11423
A123: 114 | B123: LALPATHLAB | C123: 2217.4 | D123: 2232.77 | E123: 2195.73 | F123: 2174.07 | G123: 2137.03 | H123: 2254.43 | I123: 2291.47 | J123: 2313.13 | K123: 2269.8 | L123: 2211.1 | M123: 1.65223
A124: 115 | B124: LAURUSLABS | C124: 410.25 | D124: 407.63 | E124: 403.77 | F124: 397.28 | G124: 393.42 | H124: 414.12 | I124: 417.98 | J124: 424.47 | K124: 411.5 | L124: 401.15 | M124: 24.28273
A125: 116 | B125: LICHSGFIN | C125: 452.95 | D125: 453.38 | E125: 449.77 | F125: 446.58 | G125: 442.97 | H125: 456.57 | I125: 460.18 | J125: 463.37 | K125: 457 | L125: 450.2 | M125: 31.61673
A126: 117 | B126: LICI | C126: 674.15 | D126: 677.38 | E126: 669.97 | F126: 665.78 | G126: 658.37 | H126: 681.57 | I126: 688.98 | J126: 693.17 | K126: 684.8 | L126: 673.2 | M126: 15.78942
A127: 118 | B127: LT | C127: 2901.6 | D127: 2900.92 | E127: 2873.13 | F127: 2844.67 | G127: 2816.88 | H127: 2929.38 | I127: 2957.17 | J127: 2985.63 | K127: 2928.7 | L127: 2872.45 | M127: 36.3851
A128: 119 | B128: LTIM | C128: 5478.5 | D128: 5476.50 | E128: 5452.00 | F128: 5425.50 | G128: 5401.00 | H128: 5503.00 | I128: 5527.50 | J128: 5554.00 | K128: 5501 | L128: 5450 | M128: 2.44392
A129: 120 | B129: LTTS | C129: 4654.2 | D129: 4655.40 | E129: 4621.80 | F129: 4589.40 | G129: 4555.80 | H129: 4687.80 | I129: 4721.40 | J129: 4753.80 | K129: 4689 | L129: 4623 | M129: 1.3309
A130: 121 | B130: LUPIN | C130: 1128.6 | D130: 1130.23 | E130: 1117.02 | F130: 1105.43 | G130: 1092.22 | H130: 1141.82 | I130: 1155.03 | J130: 1166.62 | K130: 1143.45 | L130: 1118.65 | M130: 5.78212
A131: 122 | B131: M&M | C131: 1567.55 | D131: 1568.52 | E131: 1559.03 | F131: 1550.52 | G131: 1541.03 | H131: 1577.03 | I131: 1586.52 | J131: 1595.03 | K131: 1578 | L131: 1560 | M131: 12.2391
A132: 123 | B132: M&MFIN | C132: 301.65 | D132: 303.15 | E132: 298.85 | F132: 296.05 | G132: 291.75 | H132: 305.95 | I132: 310.25 | J132: 313.05 | K132: 307.45 | L132: 300.35 | M132: 47.81667
A133: 124 | B133: MANKIND | C133: 1756.55 | D133: 1766.17 | E133: 1743.38 | F133: 1730.22 | G133: 1707.43 | H133: 1779.33 | I133: 1802.12 | J133: 1815.28 | K133: 1788.95 | L133: 1753 | M133: 5.41562
A134: 125 | B134: MARICO | C134: 586.65 | D134: 586.13 | E134: 583.27 | F134: 579.88 | G134: 577.02 | H134: 589.52 | I134: 592.38 | J134: 595.77 | K134: 589 | L134: 582.75 | M134: 4.43934
A135: 126 | B135: MARUTI | C135: 10332 | D135: 10344.00 | E135: 10288.00 | F135: 10244.00 | G135: 10188.00 | H135: 10388.00 | I135: 10444.00 | J135: 10488.00 | K135: 10400 | L135: 10300 | M135: 4.39721
A136: 127 | B136: MAXHEALTH | C136: 603 | D136: 601.63 | E136: 594.47 | F136: 585.93 | G136: 578.77 | H136: 610.17 | I136: 617.33 | J136: 625.87 | K136: 608.8 | L136: 593.1 | M136: 13.05445
A137: 128 | B137: MCDOWELL-N | C137: 1055.2 | D137: 1055.42 | E137: 1047.83 | F137: 1040.47 | G137: 1032.88 | H137: 1062.78 | I137: 1070.37 | J137: 1077.73 | K137: 1063 | L137: 1048.05 | M137: 6.71258
A138: 129 | B138: MFSL | C138: 935.5 | D138: 937.95 | E138: 925.20 | F138: 914.90 | G138: 902.15 | H138: 948.25 | I138: 961.00 | J138: 971.30 | K138: 950.7 | L138: 927.65 | M138: 13.23618
A139: 130 | B139: MOTHERSON | C139: 99.55 | D139: 99.72 | E139: 99.13 | F139: 98.72 | G139: 98.13 | H139: 100.13 | I139: 100.72 | J139: 101.13 | K139: 100.3 | L139: 99.3 | M139: 64.94964
A140: 131 | B140: MPHASIS | C140: 2466.15 | D140: 2464.65 | E140: 2444.30 | F140: 2422.45 | G140: 2402.10 | H140: 2486.50 | I140: 2506.85 | J140: 2528.70 | K140: 2485 | L140: 2442.8 | M140: 1.98731
A141: 132 | B141: MRF | C141: 108858.4 | D141: 108959.78 | E141: 108498.82 | F141: 108139.23 | G141: 107678.27 | H141: 109319.37 | I141: 109780.33 | J141: 110139.92 | K141: 109420.75 | L141: 108600.2 | M141: 0.02652
A142: 133 | B142: MSUMI | C142: 66.7 | D142: 66.50 | E142: 66.00 | F142: 65.30 | G142: 64.80 | H142: 67.20 | I142: 67.70 | J142: 68.40 | K142: 67 | L142: 65.8 | M142: 61.59456
A143: 134 | B143: MUTHOOTFIN | C143: 1284.2 | D143: 1284.07 | E143: 1276.98 | F143: 1269.77 | G143: 1262.68 | H143: 1291.28 | I143: 1298.37 | J143: 1305.58 | K143: 1291.15 | L143: 1276.85 | M143: 1.63796
A144: 135 | B144: NAUKRI | C144: 4477.75 | D144: 4465.88 | E144: 4441.92 | F144: 4406.08 | G144: 4382.12 | H144: 4501.72 | I144: 4525.68 | J144: 4561.52 | K144: 4489.85 | L144: 4430.05 | M144: 1.90981
A145: 136 | B145: NAVINFLUOR | C145: 4662.45 | D145: 4678.90 | E145: 4633.55 | F145: 4604.65 | G145: 4559.30 | H145: 4707.80 | I145: 4753.15 | J145: 4782.05 | K145: 4724.25 | L145: 4650 | M145: 0.73909
A146: 137 | B146: NESTLEIND | C146: 21883.25 | D146: 21897.53 | E146: 21815.72 | F146: 21748.18 | G146: 21666.37 | H146: 21965.07 | I146: 22046.88 | J146: 22114.42 | K146: 21979.35 | L146: 21830 | M146: 0.30477
A147: 138 | B147: NHPC | C147: 52.8 | D147: 53.08 | E147: 51.92 | F147: 51.03 | G147: 49.87 | H147: 53.97 | I147: 55.13 | J147: 56.02 | K147: 54.25 | L147: 52.2 | M147: 327.92462
A148: 139 | B148: NMDC | C148: 142.4 | D148: 143.25 | E148: 140.90 | F148: 139.40 | G148: 137.05 | H148: 144.75 | I148: 147.10 | J148: 148.60 | K148: 145.6 | L148: 141.75 | M148: 135.72409
A149: 140 | B149: NTPC | C149: 240.25 | D149: 239.62 | E149: 235.63 | F149: 231.02 | G149: 227.03 | H149: 244.23 | I149: 248.22 | J149: 252.83 | K149: 243.6 | L149: 235 | M149: 288.5642
A150: 141 | B150: NYKAA | C150: 146.05 | D150: 145.98 | E150: 144.07 | F150: 142.08 | G150: 140.17 | H150: 147.97 | I150: 149.88 | J150: 151.87 | K150: 147.9 | L150: 144 | M150: 51.0212
A151: 142 | B151: OBEROIRLTY | C151: 1179.6 | D151: 1173.83 | E151: 1160.17 | F151: 1140.73 | G151: 1127.07 | H151: 1193.27 | I151: 1206.93 | J151: 1226.37 | K151: 1187.5 | L151: 1154.4 | M151: 6.0295
A152: 143 | B152: OFSS | C152: 4347.75 | D152: 4321.93 | E152: 4280.32 | F152: 4212.88 | G152: 4171.27 | H152: 4389.37 | I152: 4430.98 | J152: 4498.42 | K152: 4363.55 | L152: 4254.5 | M152: 0.98861
A153: 144 | B153: OIL | C153: 281.35 | D153: 282.18 | E153: 279.97 | F153: 278.58 | G153: 276.37 | H153: 283.57 | I153: 285.78 | J153: 287.17 | K153: 284.4 | L153: 280.8 | M153: 11.6373
A154: 145 | B154: ONGC | C154: 184.45 | D154: 183.80 | E154: 182.65 | F154: 180.85 | G154: 179.70 | H154: 185.60 | I154: 186.75 | J154: 188.55 | K154: 184.95 | L154: 182 | M154: 97.37214
A155: 146 | B155: PAGEIND | C155: 41858 | D155: 42176.48 | E155: 41467.97 | F155: 41077.93 | G155: 40369.42 | H155: 42566.52 | I155: 43275.03 | J155: 43665.07 | K155: 42885 | L155: 41786.45 | M155: 0.21057
A156: 147 | B156: PATANJALI | C156: 1291.1 | D156: 1285.37 | E156: 1270.73 | F156: 1250.37 | G156: 1235.73 | H156: 1305.73 | I156: 1320.37 | J156: 1340.73 | K156: 1300 | L156: 1265 | M156: 1.21426
A157: 148 | B157: PAYTM | C157: 905.4 | D157: 902.77 | E157: 886.03 | F157: 866.67 | G157: 849.93 | H157: 922.13 | I157: 938.87 | J157: 958.23 | K157: 919.5 | L157: 883.4 | M157: 25.29568
A158: 149 | B158: PEL | C158: 1089.45 | D158: 1085.92 | E158: 1076.83 | F158: 1064.22 | G158: 1055.13 | H158: 1098.53 | I158: 1107.62 | J158: 1120.23 | K158: 1095 | L158: 1073.3 | M158: 7.74334
A159: 150 | B159: PERSISTENT | C159: 5971.05 | D159: 5940.00 | E159: 5882.05 | F159: 5793.05 | G159: 5735.10 | H159: 6029.00 | I159: 6086.95 | J159: 6175.95 | K159: 5997.95 | L159: 5851 | M159: 3.4274
A160: 151 | B160: PETRONET | C160: 250.2 | D160: 250.03 | E160: 246.12 | F160: 242.03 | G160: 238.12 | H160: 254.12 | I160: 258.03 | J160: 262.12 | K160: 253.95 | L160: 245.95 | M160: 54.26714
A161: 152 | B161: PFC | C161: 305.1 | D161: 294.33 | E161: 281.77 | F161: 258.43 | G161: 245.87 | H161: 317.67 | I161: 330.23 | J161: 353.57 | K161: 306.9 | L161: 271 | M161: 662.32926
A162: 153 | B162: PGHH | C162: 17137.9 | D162: 17061.65 | E162: 16798.30 | F162: 16458.70 | G162: 16195.35 | H162: 17401.25 | I162: 17664.60 | J162: 18004.20 | K162: 17325 | L162: 16722.05 | M162: 0.1201
A163: 154 | B163: PIDILITIND | C163: 2505.05 | D163: 2504.90 | E163: 2491.85 | F163: 2478.65 | G163: 2465.60 | H163: 2518.10 | I163: 2531.15 | J163: 2544.35 | K163: 2517.95 | L163: 2491.7 | M163: 5.86237
A164: 155 | B164: PIIND | C164: 3655.5 | D164: 3655.30 | E164: 3633.25 | F164: 3611.00 | G164: 3588.95 | H164: 3677.55 | I164: 3699.60 | J164: 3721.85 | K164: 3677.35 | L164: 3633.05 | M164: 1.2798
A165: 156 | B165: PNB | C165: 66.85 | D165: 66.80 | E165: 66.30 | F165: 65.75 | G165: 65.25 | H165: 67.35 | I165: 67.85 | J165: 68.40 | K165: 67.3 | L165: 66.25 | M165: 386.92009
A166: 157 | B166: POLICYBZR | C166: 799.25 | D166: 793.60 | E166: 781.20 | F166: 763.15 | G166: 750.75 | H166: 811.65 | I166: 824.05 | J166: 842.10 | K166: 806 | L166: 775.55 | M166: 14.22798
A167: 158 | B167: POLYCAB | C167: 5199.3 | D167: 5191.25 | E167: 5173.05 | F167: 5146.80 | G167: 5128.60 | H167: 5217.50 | I167: 5235.70 | J167: 5261.95 | K167: 5209.45 | L167: 5165 | M167: 3.7242
A168: 159 | B168: POONAWALLA | C168: 389.95 | D168: 391.38 | E168: 387.17 | F168: 384.38 | G168: 380.17 | H168: 394.17 | I168: 398.38 | J168: 401.17 | K168: 395.6 | L168: 388.6 | M168: 23.4174
A169: 160 | B169: POWERGRID | C169: 258.65 | D169: 259.02 | E169: 256.73 | F169: 254.82 | G169: 252.53 | H169: 260.93 | I169: 263.22 | J169: 265.13 | K169: 261.3 | L169: 257.1 | M169: 125.86314
A170: 161 | B170: PRESTIGE | C170: 647.8 | D170: 645.08 | E170: 634.17 | F170: 620.53 | G170: 609.62 | H170: 658.72 | I170: 669.63 | J170: 683.27 | K170: 656 | L170: 631.45 | M170: 11.57151
A171: 162 | B171: RAMCOCEM | C171: 902.5 | D171: 899.37 | E171: 892.73 | F171: 882.97 | G171: 876.33 | H171: 909.13 | I171: 915.77 | J171: 925.53 | K171: 906 | L171: 889.6 | M171: 2.44365
A172: 163 | B172: RECLTD | C172: 270.15 | D172: 262.45 | E172: 252.10 | F172: 234.05 | G172: 223.70 | H172: 280.50 | I172: 290.85 | J172: 308.90 | K172: 272.8 | L172: 244.4 | M172: 637.9667
A173: 164 | B173: RELIANCE | C173: 2448.2 | D173: 2442.38 | E173: 2428.77 | F173: 2409.33 | G173: 2395.72 | H173: 2461.82 | I173: 2475.43 | J173: 2494.87 | K173: 2456 | L173: 2422.95 | M173: 115.54644
A174: 165 | B174: SAIL | C174: 98.9 | D174: 99.10 | E174: 97.80 | F174: 96.70 | G174: 95.40 | H174: 100.20 | I174: 101.50 | J174: 102.60 | K174: 100.4 | L174: 98 | M174: 213.81211
A175: 166 | B175: SBICARD | C175: 839.9 | D175: 840.47 | E175: 833.93 | F175: 827.97 | G175: 821.43 | H175: 846.43 | I175: 852.97 | J175: 858.93 | K175: 847 | L175: 834.5 | M175: 9.88318
A176: 167 | B176: SBILIFE | C176: 1341.45 | D176: 1341.75 | E176: 1334.05 | F176: 1326.65 | G176: 1318.95 | H176: 1349.15 | I176: 1356.85 | J176: 1364.25 | K176: 1349.45 | L176: 1334.35 | M176: 12.14231
A177: 168 | B177: SBIN | C177: 583.45 | D177: 583.88 | E177: 579.27 | F177: 575.08 | G177: 570.47 | H177: 588.07 | I177: 592.68 | J177: 596.87 | K177: 588.5 | L177: 579.7 | M177: 140.32068
A178: 169 | B178: SHREECEM | C178: 25973.1 | D178: 25890.77 | E178: 25732.33 | F178: 25491.57 | G178: 25333.13 | H178: 26131.53 | I178: 26289.97 | J178: 26530.73 | K178: 26049.2 | L178: 25650 | M178: 0.30009
A179: 170 | B179: SHRIRAMFIN | C179: 1953.85 | D179: 1938.87 | E179: 1917.78 | F179: 1881.72 | G179: 1860.63 | H179: 1974.93 | I179: 1996.02 | J179: 2032.08 | K179: 1959.95 | L179: 1902.8 | M179: 14.57511
A180: 171 | B180: SIEMENS | C180: 3945.6 | D180: 3949.18 | E180: 3924.47 | F180: 3903.33 | G180: 3878.62 | H180: 3970.32 | I180: 3995.03 | J180: 4016.17 | K180: 3973.9 | L180: 3928.05 | M180: 1.57838
A181: 172 | B181: SONACOMS | C181: 591.9 | D181: 588.68 | E181: 584.37 | F181: 576.83 | G181: 572.52 | H181: 596.22 | I181: 600.53 | J181: 608.07 | K181: 593 | L181: 581.15 | M181: 7.45266
A182: 173 | B182: SRF | C182: 2440.3 | D182: 2451.27 | E182: 2427.03 | F182: 2413.77 | G182: 2389.53 | H182: 2464.53 | I182: 2488.77 | J182: 2502.03 | K182: 2475.5 | L182: 2438 | M182: 4.31834
A183: 174 | B183: SUNPHARMA | C183: 1130.45 | D183: 1132.33 | E183: 1126.62 | F183: 1122.78 | G183: 1117.07 | H183: 1136.17 | I183: 1141.88 | J183: 1145.72 | K183: 1138.05 | L183: 1128.5 | M183: 17.89037
A184: 175 | B184: SUNTV | C184: 619.95 | D184: 620.93 | E184: 615.07 | F184: 610.18 | G184: 604.32 | H184: 625.82 | I184: 631.68 | J184: 636.57 | K184: 626.8 | L184: 616.05 | M184: 8.11102
A185: 176 | B185: SYNGENE | C185: 839.5 | D185: 842.50 | E185: 834.00 | F185: 828.50 | G185: 820.00 | H185: 848.00 | I185: 856.50 | J185: 862.00 | K185: 851 | L185: 837 | M185: 6.31797
A186: 177 | B186: TATACHEM | C186: 1085.3 | D186: 1087.07 | E186: 1079.83 | F186: 1074.37 | G186: 1067.13 | H186: 1092.53 | I186: 1099.77 | J186: 1105.23 | K186: 1094.3 | L186: 1081.6 | M186: 4.73019
A187: 178 | B187: TATACOMM | C187: 1885.25 | D187: 1887.05 | E187: 1869.75 | F187: 1854.25 | G187: 1836.95 | H187: 1902.55 | I187: 1919.85 | J187: 1935.35 | K187: 1904.35 | L187: 1871.55 | M187: 6.61621
A188: 179 | B188: TATACONSUM | C188: 853.1 | D188: 856.57 | E188: 848.28 | F188: 843.47 | G188: 835.18 | H188: 861.38 | I188: 869.67 | J188: 874.48 | K188: 864.85 | L188: 851.75 | M188: 9.01217
A189: 180 | B189: TATAELXSI | C189: 7366.2 | D189: 7388.38 | E189: 7332.82 | F189: 7299.43 | G189: 7243.87 | H189: 7421.77 | I189: 7477.33 | J189: 7510.72 | K189: 7443.95 | L189: 7355 | M189: 0.60782
A190: 181 | B190: TATAMOTORS | C190: 627.25 | D190: 623.45 | E190: 618.00 | F190: 608.75 | G190: 603.30 | H190: 632.70 | I190: 638.15 | J190: 647.40 | K190: 628.9 | L190: 614.2 | M190: 161.90749
A191: 182 | B191: TATAPOWER | C191: 268.85 | D191: 269.68 | E191: 262.87 | F191: 256.88 | G191: 250.07 | H191: 275.67 | I191: 282.48 | J191: 288.47 | K191: 276.5 | L191: 263.7 | M191: 530.19645
A192: 183 | B192: TATASTEEL | C192: 129.5 | D192: 130.12 | E192: 128.58 | F192: 127.67 | G192: 126.13 | H192: 131.03 | I192: 132.57 | J192: 133.48 | K192: 131.65 | L192: 129.2 | M192: 343.13523
A193: 184 | B193: TCS | C193: 3441.9 | D193: 3447.32 | E193: 3429.63 | F193: 3417.37 | G193: 3399.68 | H193: 3459.58 | I193: 3477.27 | J193: 3489.53 | K193: 3465 | L193: 3435.05 | M193: 15.18917
A194: 185 | B194: TECHM | C194: 1262.95 | D194: 1266.67 | E194: 1255.33 | F194: 1247.72 | G194: 1236.38 | H194: 1274.28 | I194: 1285.62 | J194: 1293.23 | K194: 1278 | L194: 1259.05 | M194: 17.31105
A195: 186 | B195: TIINDIA | C195: 3313 | D195: 3296.00 | E195: 3247.00 | F195: 3181.00 | G195: 3132.00 | H195: 3362.00 | I195: 3411.00 | J195: 3477.00 | K195: 3345 | L195: 3230 | M195: 5.21567
A196: 187 | B196: TITAN | C196: 3199.1 | D196: 3192.30 | E196: 3179.60 | F196: 3160.10 | G196: 3147.40 | H196: 3211.80 | I196: 3224.50 | J196: 3244.00 | K196: 3205 | L196: 3172.8 | M196: 7.00158
A197: 188 | B197: TORNTPHARM | C197: 1872.75 | D197: 1878.22 | E197: 1856.53 | F197: 1840.32 | G197: 1818.63 | H197: 1894.43 | I197: 1916.12 | J197: 1932.33 | K197: 1899.9 | L197: 1862 | M197: 4.98277
A198: 189 | B198: TORNTPOWER | C198: 725.45 | D198: 725.70 | E198: 719.00 | F198: 712.55 | G198: 705.85 | H198: 732.15 | I198: 738.85 | J198: 745.30 | K198: 732.4 | L198: 719.25 | M198: 6.97714
A199: 190 | B199: TRENT | C199: 2086.55 | D199: 2095.13 | E199: 2058.72 | F199: 2030.88 | G199: 1994.47 | H199: 2122.97 | I199: 2159.38 | J199: 2187.22 | K199: 2131.55 | L199: 2067.3 | M199: 5.48262
A200: 191 | B200: TRIDENT | C200: 40.55 | D200: 40.90 | E200: 40.10 | F200: 39.65 | G200: 38.85 | H200: 41.35 | I200: 42.15 | J200: 42.60 | K200: 41.7 | L200: 40.45 | M200: 216.6946
A201: 192 | B201: TTML | C201: 95.4 | D201: 95.72 | E201: 94.53 | F201: 93.67 | G201: 92.48 | H201: 96.58 | I201: 97.77 | J201: 98.63 | K201: 96.9 | L201: 94.85 | M201: 70.24965
A202: 193 | B202: TVSMOTOR | C202: 1480.55 | D202: 1480.50 | E202: 1474.15 | F202: 1467.75 | G202: 1461.40 | H202: 1486.90 | I202: 1493.25 | J202: 1499.65 | K202: 1486.85 | L202: 1474.1 | M202: 5.15325
A203: 194 | B203: UBL | C203: 1680.05 | D203: 1676.47 | E203: 1665.93 | F203: 1651.82 | G203: 1641.28 | H203: 1690.58 | I203: 1701.12 | J203: 1715.23 | K203: 1687 | L203: 1662.35 | M203: 5.57692
A204: 195 | B204: ULTRACEMCO | C204: 8430.55 | D204: 8460.18 | E204: 8370.37 | F204: 8310.18 | G204: 8220.37 | H204: 8520.37 | I204: 8610.18 | J204: 8670.37 | K204: 8550 | L204: 8400 | M204: 1.25962
A205: 196 | B205: UNIONBANK | C205: 88.1 | D205: 88.43 | E205: 87.47 | F205: 86.83 | G205: 85.87 | H205: 89.07 | I205: 90.03 | J205: 90.67 | K205: 89.4 | L205: 87.8 | M205: 126.63533
... 28 more rows

Sheet MidCap Intra
L5: Back To Main Page
A6: FOR INTRA DAY TRADING | K6: =Main!B10 -> 2023-09-11
A9: Sr.no | B9: Scrip | C9: CLOSE RATE | D9: Pivot Point | E9: Supports | H9: Resistances
E10: S1 | F10: S2 | G10: S3 | H10: R1 | I10: R2 | J10: R3 | K10: HIGH | L10: LOW | M10: Total Trade Quanity in Lakhs
A11: 1 | B11: 360ONE | C11: 520.35 | D11: 520.47 | E11: 513.38 | F11: 506.42 | G11: 499.33 | H11: 527.43 | I11: 534.52 | J11: 541.48 | K11: 527.55 | L11: 513.5 | M11: 14.18883
A12: 2 | B12: 3MINDIA | C12: 32914.85 | D12: 32707.70 | E12: 32222.30 | F12: 31529.75 | G12: 31044.35 | H12: 33400.25 | I12: 33885.65 | J12: 34578.20 | K12: 33193.1 | L12: 32015.15 | M12: 0.03707
A13: 3 | B13: AARTIDRUGS | C13: 619.55 | D13: 618.85 | E13: 613.40 | F13: 607.25 | G13: 601.80 | H13: 625.00 | I13: 630.45 | J13: 636.60 | K13: 624.3 | L13: 612.7 | M13: 5.14248
A14: 4 | B14: AARTIIND | C14: 517.3 | D14: 519.27 | E14: 513.63 | F14: 509.97 | G14: 504.33 | H14: 522.93 | I14: 528.57 | J14: 532.23 | K14: 524.9 | L14: 515.6 | M14: 15.58053
A15: 5 | B15: AAVAS | C15: 1665.05 | D15: 1671.28 | E15: 1643.77 | F15: 1622.48 | G15: 1594.97 | H15: 1692.57 | I15: 1720.08 | J15: 1741.37 | K15: 1698.8 | L15: 1650 | M15: 3.75061
A16: 6 | B16: ABB | C16: 4458.55 | D16: 4469.52 | E16: 4424.03 | F16: 4389.52 | G16: 4344.03 | H16: 4504.03 | I16: 4549.52 | J16: 4584.03 | K16: 4515 | L16: 4435 | M16: 2.31272
A17: 7 | B17: ABBOTINDIA | C17: 23002.3 | D17: 22985.45 | E17: 22816.90 | F17: 22631.50 | G17: 22462.95 | H17: 23170.85 | I17: 23339.40 | J17: 23524.80 | K17: 23154 | L17: 22800.05 | M17: 0.08725
A18: 8 | B18: ACC | C18: 2024.25 | D18: 2032.42 | E18: 2007.83 | F18: 1991.42 | G18: 1966.83 | H18: 2048.83 | I18: 2073.42 | J18: 2089.83 | K18: 2057 | L18: 2016 | M18: 6.55333
A19: 9 | B19: ADANIENT | C19: 2519.3 | D19: 2521.33 | E19: 2504.07 | F19: 2488.83 | G19: 2471.57 | H19: 2536.57 | I19: 2553.83 | J19: 2569.07 | K19: 2538.6 | L19: 2506.1 | M19: 56.40973
A20: 10 | B20: ADANIGREEN | C20: 1001.2 | D20: 1003.85 | E20: 995.35 | F20: 989.50 | G20: 981.00 | H20: 1009.70 | I20: 1018.20 | J20: 1024.05 | K20: 1012.35 | L20: 998 | M20: 52.54899
A21: 11 | B21: ADANIPORTS | C21: 825 | D21: 821.32 | E21: 813.83 | F21: 802.67 | G21: 795.18 | H21: 832.48 | I21: 839.97 | J21: 851.13 | K21: 828.8 | L21: 810.15 | M21: 116.83222
A22: 12 | B22: ADANIPOWER | C22: 369.15 | D22: 366.18 | E22: 359.97 | F22: 350.78 | G22: 344.57 | H22: 375.37 | I22: 381.58 | J22: 390.77 | K22: 372.4 | L22: 357 | M22: 260.73229
A23: 13 | B23: ATGL | C23: 644.8 | D23: 647.12 | E23: 640.73 | F23: 636.67 | G23: 630.28 | H23: 651.18 | I23: 657.57 | J23: 661.63 | K23: 653.5 | L23: 643.05 | M23: 5.62257
A24: 14 | B24: AWL | C24: 354.6 | D24: 356.30 | E24: 350.80 | F24: 347.00 | G24: 341.50 | H24: 360.10 | I24: 365.60 | J24: 369.40 | K24: 361.8 | L24: 352.5 | M24: 22.93208
A25: 15 | B25: ABCAPITAL | C25: 186.9 | D25: 187.42 | E25: 185.98 | F25: 185.07 | G25: 183.63 | H25: 188.33 | I25: 189.77 | J25: 190.68 | K25: 188.85 | L25: 186.5 | M25: 26.13359
A26: 16 | B26: ABFRL | C26: 229.35 | D26: 230.33 | E26: 228.02 | F26: 226.68 | G26: 224.37 | H26: 231.67 | I26: 233.98 | J26: 235.32 | K26: 232.65 | L26: 229 | M26: 22.53393
A27: 17 | B27: AEGISCHEM | C27: 351.75 | D27: 353.22 | E27: 349.53 | F27: 347.32 | G27: 343.63 | H27: 355.43 | I27: 359.12 | J27: 361.33 | K27: 356.9 | L27: 351 | M27: 2.03721
A28: 18 | B28: AETHER | C28: 994.65 | D28: 993.88 | E28: 987.77 | F28: 980.88 | G28: 974.77 | H28: 1000.77 | I28: 1006.88 | J28: 1013.77 | K28: 1000 | L28: 987 | M28: 1.2438
A29: 19 | B29: AFFLE | C29: 1159.1 | D29: 1150.60 | E29: 1129.95 | F29: 1100.80 | G29: 1080.15 | H29: 1179.75 | I29: 1200.40 | J29: 1229.55 | K29: 1171.25 | L29: 1121.45 | M29: 9.44888
A30: 20 | B30: AIAENG | C30: 3723.15 | D30: 3702.40 | E30: 3664.85 | F30: 3606.55 | G30: 3569.00 | H30: 3760.70 | I30: 3798.25 | J30: 3856.55 | K30: 3739.95 | L30: 3644.1 | M30: 0.51601
A31: 21 | B31: AJANTPHARM | C31: 1731.6 | D31: 1743.90 | E31: 1709.30 | F31: 1687.00 | G31: 1652.40 | H31: 1766.20 | I31: 1800.80 | J31: 1823.10 | K31: 1778.5 | L31: 1721.6 | M31: 1.75474
A32: 22 | B32: APLLTD | C32: 764.45 | D32: 769.03 | E32: 756.47 | F32: 748.48 | G32: 735.92 | H32: 777.02 | I32: 789.58 | J32: 797.57 | K32: 781.6 | L32: 761.05 | M32: 0.91855
A33: 23 | B33: ALKEM | C33: 3621.25 | D33: 3630.22 | E33: 3603.48 | F33: 3585.72 | G33: 3558.98 | H33: 3647.98 | I33: 3674.72 | J33: 3692.48 | K33: 3656.95 | L33: 3612.45 | M33: 1.19771
A34: 24 | B34: ALKYLAMINE | C34: 2487.85 | D34: 2495.95 | E34: 2465.90 | F34: 2443.95 | G34: 2413.90 | H34: 2517.90 | I34: 2547.95 | J34: 2569.90 | K34: 2526 | L34: 2474 | M34: 0.30881
A35: 25 | B35: AMARAJABAT | C35: 656.2 | D35: 661.40 | E35: 648.80 | F35: 641.40 | G35: 628.80 | H35: 668.80 | I35: 681.40 | J35: 688.80 | K35: 674 | L35: 654 | M35: 12.57935
A36: 26 | B36: AMBER | C36: 3028.65 | D36: 3038.92 | E36: 3004.03 | F36: 2979.42 | G36: 2944.53 | H36: 3063.53 | I36: 3098.42 | J36: 3123.03 | K36: 3073.8 | L36: 3014.3 | M36: 0.55566
A37: 27 | B37: AMBUJACEM | C37: 439.2 | D37: 439.10 | E37: 437.00 | F37: 434.80 | G37: 432.70 | H37: 441.30 | I37: 443.40 | J37: 445.60 | K37: 441.2 | L37: 436.9 | M37: 19.1345
A38: 28 | B38: ANGELONE | C38: 1876.8 | D38: 1865.87 | E38: 1842.93 | F38: 1809.07 | G38: 1786.13 | H38: 1899.73 | I38: 1922.67 | J38: 1956.53 | K38: 1888.8 | L38: 1832 | M38: 3.85985
A39: 29 | B39: ANURAS | C39: 984.3 | D39: 991.18 | E39: 974.17 | F39: 964.03 | G39: 947.02 | H39: 1001.32 | I39: 1018.33 | J39: 1028.47 | K39: 1008.2 | L39: 981.05 | M39: 0.7703
A40: 30 | B40: APARINDS | C40: 4870.75 | D40: 4882.18 | E40: 4840.07 | F40: 4809.38 | G40: 4767.27 | H40: 4912.87 | I40: 4954.98 | J40: 4985.67 | K40: 4924.3 | L40: 4851.5 | M40: 0.85648
A41: 31 | B41: APLAPOLLO | C41: 1716.45 | D41: 1721.47 | E41: 1697.98 | F41: 1679.52 | G41: 1656.03 | H41: 1739.93 | I41: 1763.42 | J41: 1781.88 | K41: 1744.95 | L41: 1703 | M41: 6.49443
A42: 32 | B42: APOLLOHOSP | C42: 4985.15 | D42: 5004.30 | E42: 4958.80 | F42: 4932.45 | G42: 4886.95 | H42: 5030.65 | I42: 5076.15 | J42: 5102.50 | K42: 5049.8 | L42: 4977.95 | M42: 2.92671
A43: 33 | B43: APOLLOTYRE | C43: 381.65 | D43: 383.15 | E43: 379.55 | F43: 377.45 | G43: 373.85 | H43: 385.25 | I43: 388.85 | J43: 390.95 | K43: 386.75 | L43: 381.05 | M43: 13.30195
A44: 34 | B44: APTUS | C44: 276.4 | D44: 277.53 | E44: 274.62 | F44: 272.83 | G44: 269.92 | H44: 279.32 | I44: 282.23 | J44: 284.02 | K44: 280.45 | L44: 275.75 | M44: 5.26703
A45: 35 | B45: ACI | C45: 633.2 | D45: 632.38 | E45: 624.97 | F45: 616.73 | G45: 609.32 | H45: 640.62 | I45: 648.03 | J45: 656.27 | K45: 639.8 | L45: 624.15 | M45: 3.12152
A46: 36 | B46: ASAHIINDIA | C46: 584.4 | D46: 588.17 | E46: 578.38 | F46: 572.37 | G46: 562.58 | H46: 594.18 | I46: 603.97 | J46: 609.98 | K46: 597.95 | L46: 582.15 | M46: 1.74192
A47: 37 | B47: ASHOKLEY | C47: 183.6 | D47: 183.90 | E47: 182.30 | F47: 181.00 | G47: 179.40 | H47: 185.20 | I47: 186.80 | J47: 188.10 | K47: 185.5 | L47: 182.6 | M47: 103.89774
A48: 38 | B48: ASIANPAINT | C48: 3238.05 | D48: 3244.37 | E48: 3225.68 | F48: 3213.32 | G48: 3194.63 | H48: 3256.73 | I48: 3275.42 | J48: 3287.78 | K48: 3263.05 | L48: 3232 | M48: 3.95918
A49: 39 | B49: ASTERDM | C49: 341 | D49: 341.10 | E49: 337.95 | F49: 334.90 | G49: 331.75 | H49: 344.15 | I49: 347.30 | J49: 350.35 | K49: 344.25 | L49: 338.05 | M49: 3.47415
A50: 40 | B50: ASTRAL | C50: 1909.3 | D50: 1906.30 | E50: 1896.15 | F50: 1883.00 | G50: 1872.85 | H50: 1919.45 | I50: 1929.60 | J50: 1942.75 | K50: 1916.45 | L50: 1893.15 | M50: 8.38017
A51: 41 | B51: ATUL | C51: 7521.55 | D51: 7485.15 | E51: 7432.50 | F51: 7343.45 | G51: 7290.80 | H51: 7574.20 | I51: 7626.85 | J51: 7715.90 | K51: 7537.8 | L51: 7396.1 | M51: 0.4799
A52: 42 | B52: AUBANK | C52: 734.9 | D52: 731.95 | E52: 726.95 | F52: 719.00 | G52: 714.00 | H52: 739.90 | I52: 744.90 | J52: 752.85 | K52: 736.95 | L52: 724 | M52: 13.87523
A53: 43 | B53: AUROPHARMA | C53: 858.5 | D53: 857.43 | E53: 851.07 | F53: 843.63 | G53: 837.27 | H53: 864.87 | I53: 871.23 | J53: 878.67 | K53: 863.8 | L53: 850 | M53: 10.37792
A54: 44 | B54: AVANTIFEED | C54: 442 | D54: 441.87 | E54: 438.13 | F54: 434.27 | G54: 430.53 | H54: 445.73 | I54: 449.47 | J54: 453.33 | K54: 445.6 | L54: 438 | M54: 7.15458
A55: 45 | B55: DMART | C55: 3782.4 | D55: 3794.47 | E55: 3763.93 | F55: 3745.47 | G55: 3714.93 | H55: 3812.93 | I55: 3843.47 | J55: 3861.93 | K55: 3825 | L55: 3776 | M55: 1.552
A56: 46 | B56: AXISBANK | C56: 980.3 | D56: 980.03 | E56: 972.77 | F56: 965.23 | G56: 957.97 | H56: 987.57 | I56: 994.83 | J56: 1002.37 | K56: 987.3 | L56: 972.5 | M56: 64.39351
A57: 47 | B57: BAJAJ-AUTO | C57: 4759.55 | D57: 4748.95 | E57: 4713.30 | F57: 4667.05 | G57: 4631.40 | H57: 4795.20 | I57: 4830.85 | J57: 4877.10 | K57: 4784.6 | L57: 4702.7 | M57: 2.09769
A58: 48 | B58: BAJFINANCE | C58: 7410.65 | D58: 7410.20 | E58: 7370.45 | F58: 7330.25 | G58: 7290.50 | H58: 7450.40 | I58: 7490.15 | J58: 7530.35 | K58: 7449.95 | L58: 7370 | M58: 6.24642
A59: 49 | B59: BAJAJFINSV | C59: 1541 | D59: 1541.62 | E59: 1524.43 | F59: 1507.87 | G59: 1490.68 | H59: 1558.18 | I59: 1575.37 | J59: 1591.93 | K59: 1558.8 | L59: 1525.05 | M59: 21.68354
A60: 50 | B60: BAJAJHLDNG | C60: 7141.8 | D60: 7167.43 | E60: 7102.37 | F60: 7062.93 | G60: 6997.87 | H60: 7206.87 | I60: 7271.93 | J60: 7311.37 | K60: 7232.5 | L60: 7128 | M60: 0.13932
A61: 51 | B61: BALAMINES | C61: 2235.75 | D61: 2241.98 | E61: 2215.87 | F61: 2195.98 | G61: 2169.87 | H61: 2261.87 | I61: 2287.98 | J61: 2307.87 | K61: 2268.1 | L61: 2222.1 | M61: 0.56137
A62: 52 | B62: BALKRISIND | C62: 2402.4 | D62: 2401.20 | E62: 2387.45 | F62: 2372.50 | G62: 2358.75 | H62: 2416.15 | I62: 2429.90 | J62: 2444.85 | K62: 2414.95 | L62: 2386.25 | M62: 0.75008
A63: 53 | B63: BALRAMCHIN | C63: 406.9 | D63: 410.00 | E63: 402.30 | F63: 397.70 | G63: 390.00 | H63: 414.60 | I63: 422.30 | J63: 426.90 | K63: 417.7 | L63: 405.4 | M63: 21.96079
A64: 54 | B64: BANDHANBNK | C64: 243.4 | D64: 242.43 | E64: 239.12 | F64: 234.83 | G64: 231.52 | H64: 246.72 | I64: 250.03 | J64: 254.32 | K64: 245.75 | L64: 238.15 | M64: 152.57354
A65: 55 | B65: BANKBARODA | C65: 197.8 | D65: 198.00 | E65: 196.00 | F65: 194.20 | G65: 192.20 | H65: 199.80 | I65: 201.80 | J65: 203.60 | K65: 200 | L65: 196.2 | M65: 153.79639
A66: 56 | B66: BANKINDIA | C66: 93 | D66: 93.15 | E66: 92.45 | F66: 91.90 | G66: 91.20 | H66: 93.70 | I66: 94.40 | J66: 94.95 | K66: 93.85 | L66: 92.6 | M66: 112.70995
A67: 57 | B67: MAHABANK | C67: 42.05 | D67: 42.23 | E67: 41.67 | F67: 41.28 | G67: 40.72 | H67: 42.62 | I67: 43.18 | J67: 43.57 | K67: 42.8 | L67: 41.85 | M67: 326.78301
A68: 58 | B68: BASF | C68: 2819.6 | D68: 2831.70 | E68: 2794.45 | F68: 2769.30 | G68: 2732.05 | H68: 2856.85 | I68: 2894.10 | J68: 2919.25 | K68: 2868.95 | L68: 2806.55 | M68: 0.287
A69: 59 | B69: BATAINDIA | C69: 1723.45 | D69: 1728.48 | E69: 1712.17 | F69: 1700.88 | G69: 1684.57 | H69: 1739.77 | I69: 1756.08 | J69: 1767.37 | K69: 1744.8 | L69: 1717.2 | M69: 1.84008
A70: 60 | B70: BAYERCROP | C70: 5305.55 | D70: 5294.93 | E70: 5252.67 | F70: 5199.78 | G70: 5157.52 | H70: 5347.82 | I70: 5390.08 | J70: 5442.97 | K70: 5337.2 | L70: 5242.05 | M70: 0.24539
A71: 61 | B71: BEML | C71: 2594.2 | D71: 2561.15 | E71: 2485.05 | F71: 2375.90 | G71: 2299.80 | H71: 2670.30 | I71: 2746.40 | J71: 2855.55 | K71: 2637.25 | L71: 2452 | M71: 11.58833
A72: 62 | B72: BERGEPAINT | C72: 716.9 | D72: 715.03 | E72: 710.37 | F72: 703.83 | G72: 699.17 | H72: 721.57 | I72: 726.23 | J72: 732.77 | K72: 719.7 | L72: 708.5 | M72: 4.81837
A73: 63 | B73: BDL | C73: 1191.8 | D73: 1201.38 | E73: 1178.37 | F73: 1164.93 | G73: 1141.92 | H73: 1214.82 | I73: 1237.83 | J73: 1251.27 | K73: 1224.4 | L73: 1187.95 | M73: 11.93979
A74: 64 | B74: BEL | C74: 143.3 | D74: 142.60 | E74: 140.90 | F74: 138.50 | G74: 136.80 | H74: 145.00 | I74: 146.70 | J74: 149.10 | K74: 144.3 | L74: 140.2 | M74: 165.79557
A75: 65 | B75: BHARATFORG | C75: 1105.4 | D75: 1103.20 | E75: 1096.40 | F75: 1087.40 | G75: 1080.60 | H75: 1112.20 | I75: 1119.00 | J75: 1128.00 | K75: 1110 | L75: 1094.2 | M75: 6.69736
A76: 66 | B76: BHEL | C76: 145.3 | D76: 143.43 | E76: 140.47 | F76: 135.63 | G76: 132.67 | H76: 148.27 | I76: 151.23 | J76: 156.07 | K76: 146.4 | L76: 138.6 | M76: 717.29474
A77: 67 | B77: BPCL | C77: 361.95 | D77: 360.17 | E77: 355.83 | F77: 349.72 | G77: 345.38 | H77: 366.28 | I77: 370.62 | J77: 376.73 | K77: 364.5 | L77: 354.05 | M77: 51.72065
A78: 68 | B78: BHARTIARTL | C78: 885.85 | D78: 884.88 | E78: 879.12 | F78: 872.38 | G78: 866.62 | H78: 891.62 | I78: 897.38 | J78: 904.12 | K78: 890.65 | L78: 878.15 | M78: 37.4147
A79: 69 | B79: BIKAJI | C79: 527.05 | D79: 524.38 | E79: 515.77 | F79: 504.48 | G79: 495.87 | H79: 535.67 | I79: 544.28 | J79: 555.57 | K79: 533 | L79: 513.1 | M79: 10.19677
A80: 70 | B80: BIOCON | C80: 266.4 | D80: 267.18 | E80: 265.12 | F80: 263.83 | G80: 261.77 | H80: 268.47 | I80: 270.53 | J80: 271.82 | K80: 269.25 | L80: 265.9 | M80: 15.73069
A81: 71 | B81: BIRLACORPN | C81: 1300.8 | D81: 1292.97 | E81: 1256.93 | F81: 1213.07 | G81: 1177.03 | H81: 1336.83 | I81: 1372.87 | J81: 1416.73 | K81: 1329 | L81: 1249.1 | M81: 6.04824
A82: 72 | B82: BSOFT | C82: 518.5 | D82: 518.12 | E82: 514.38 | F82: 510.27 | G82: 506.53 | H82: 522.23 | I82: 525.97 | J82: 530.08 | K82: 521.85 | L82: 514 | M82: 13.10209
A83: 73 | B83: BLS | C83: 296.1 | D83: 297.70 | E83: 293.40 | F83: 290.70 | G83: 286.40 | H83: 300.40 | I83: 304.70 | J83: 307.40 | K83: 302 | L83: 295 | M83: 19.97706
A84: 74 | B84: BLUEDART | C84: 6300.85 | D84: 6300.68 | E84: 6241.42 | F84: 6181.98 | G84: 6122.72 | H84: 6360.12 | I84: 6419.38 | J84: 6478.82 | K84: 6359.95 | L84: 6241.25 | M84: 0.24249
A85: 75 | B85: BLUESTARCO | C85: 807.1 | D85: 799.63 | E85: 789.77 | F85: 772.43 | G85: 762.57 | H85: 816.97 | I85: 826.83 | J85: 844.17 | K85: 809.5 | L85: 782.3 | M85: 2.8299
A86: 76 | B86: BBTC | C86: 1276.7 | D86: 1228.53 | E86: 1159.32 | F86: 1041.93 | G86: 972.72 | H86: 1345.92 | I86: 1415.13 | J86: 1532.52 | K86: 1297.75 | L86: 1111.15 | M86: 19.10825
A87: 77 | B87: BORORENEW | C87: 438.4 | D87: 439.62 | E87: 435.28 | F87: 432.17 | G87: 427.83 | H87: 442.73 | I87: 447.07 | J87: 450.18 | K87: 443.95 | L87: 436.5 | M87: 4.18984
A88: 78 | B88: BOSCHLTD | C88: 19403.25 | D88: 19346.08 | E88: 19267.17 | F88: 19131.08 | G88: 19052.17 | H88: 19482.17 | I88: 19561.08 | J88: 19697.17 | K88: 19425 | L88: 19210 | M88: 0.1323
A89: 79 | B89: BRIGADE | C89: 637.7 | D89: 637.60 | E89: 632.45 | F89: 627.20 | G89: 622.05 | H89: 642.85 | I89: 648.00 | J89: 653.25 | K89: 642.75 | L89: 632.35 | M89: 1.97866
A90: 80 | B90: BCG | C90: 13.85 | D90: 13.48 | E90: 13.12 | F90: 12.38 | G90: 12.02 | H90: 14.22 | I90: 14.58 | J90: 15.32 | K90: 13.85 | L90: 12.75 | M90: 561.02492
A91: 81 | B91: BRITANNIA | C91: 4540.5 | D91: 4534.30 | E91: 4520.00 | F91: 4499.50 | G91: 4485.20 | H91: 4554.80 | I91: 4569.10 | J91: 4589.60 | K91: 4548.6 | L91: 4513.8 | M91: 2.78293
A92: 82 | B92: BSE | C92: 1324.45 | D92: 1309.15 | E92: 1270.30 | F92: 1216.15 | G92: 1177.30 | H92: 1363.30 | I92: 1402.15 | J92: 1456.30 | K92: 1348 | L92: 1255 | M92: 28.34442
A93: 83 | B93: MAPMYINDIA | C93: 1734.85 | D93: 1733.40 | E93: 1709.40 | F93: 1683.95 | G93: 1659.95 | H93: 1758.85 | I93: 1782.85 | J93: 1808.30 | K93: 1757.4 | L93: 1707.95 | M93: 0.65973
A94: 84 | B94: CAMPUS | C94: 313.2 | D94: 309.23 | E94: 302.97 | F94: 292.73 | G94: 286.47 | H94: 319.47 | I94: 325.73 | J94: 335.97 | K94: 315.5 | L94: 299 | M94: 65.70919
A95: 85 | B95: CANFINHOME | C95: 773.65 | D95: 776.00 | E95: 768.05 | F95: 762.45 | G95: 754.50 | H95: 781.60 | I95: 789.55 | J95: 795.15 | K95: 783.95 | L95: 770.4 | M95: 3.71319
A96: 86 | B96: CANBK | C96: 339.1 | D96: 339.37 | E96: 335.23 | F96: 331.37 | G96: 327.23 | H96: 343.23 | I96: 347.37 | J96: 351.23 | K96: 343.5 | L96: 335.5 | M96: 72.60594
A97: 87 | B97: CGCL | C97: 809.8 | D97: 812.45 | E97: 803.60 | F97: 797.40 | G97: 788.55 | H97: 818.65 | I97: 827.50 | J97: 833.70 | K97: 821.3 | L97: 806.25 | M97: 1.65406
A98: 88 | B98: CARBORUNIV | C98: 1209.95 | D98: 1202.32 | E98: 1188.63 | F98: 1167.32 | G98: 1153.63 | H98: 1223.63 | I98: 1237.32 | J98: 1258.63 | K98: 1216 | L98: 1181 | M98: 1.88651
A99: 89 | B99: CASTROLIND | C99: 156.45 | D99: 157.98 | E99: 153.97 | F99: 151.48 | G99: 147.47 | H99: 160.47 | I99: 164.48 | J99: 166.97 | K99: 162 | L99: 155.5 | M99: 37.9994
A100: 90 | B100: CCL | C100: 673.5 | D100: 668.92 | E100: 661.88 | F100: 650.27 | G100: 643.23 | H100: 680.53 | I100: 687.57 | J100: 699.18 | K100: 675.95 | L100: 657.3 | M100: 3.4187
A101: 91 | B101: CEATLTD | C101: 2208.65 | D101: 2220.60 | E101: 2194.05 | F101: 2179.45 | G101: 2152.90 | H101: 2235.20 | I101: 2261.75 | J101: 2276.35 | K101: 2247.15 | L101: 2206 | M101: 0.78809
A102: 92 | B102: CENTRALBK | C102: 39.3 | D102: 39.40 | E102: 38.90 | F102: 38.50 | G102: 38.00 | H102: 39.80 | I102: 40.30 | J102: 40.70 | K102: 39.9 | L102: 39 | M102: 201.42013
A103: 93 | B103: CDSL | C103: 1282.3 | D103: 1261.15 | E103: 1229.05 | F103: 1175.80 | G103: 1143.70 | H103: 1314.40 | I103: 1346.50 | J103: 1399.75 | K103: 1293.25 | L103: 1207.9 | M103: 41.51516
A104: 94 | B104: CENTURYPLY | C104: 696.85 | D104: 693.78 | E104: 679.27 | F104: 661.68 | G104: 647.17 | H104: 711.37 | I104: 725.88 | J104: 743.47 | K104: 708.3 | L104: 676.2 | M104: 8.38144
A105: 95 | B105: CENTURYTEX | C105: 1082.7 | D105: 1085.07 | E105: 1075.13 | F105: 1067.57 | G105: 1057.63 | H105: 1092.63 | I105: 1102.57 | J105: 1110.13 | K105: 1095 | L105: 1077.5 | M105: 1.05643
A106: 96 | B106: CERA | C106: 9082.7 | D106: 9130.43 | E106: 8972.27 | F106: 8861.83 | G106: 8703.67 | H106: 9240.87 | I106: 9399.03 | J106: 9509.47 | K106: 9288.6 | L106: 9020 | M106: 0.22318
A107: 97 | B107: CESC | C107: 92.9 | D107: 92.60 | E107: 90.80 | F107: 88.70 | G107: 86.90 | H107: 94.70 | I107: 96.50 | J107: 98.60 | K107: 94.4 | L107: 90.5 | M107: 137.4894
A108: 98 | B108: CGPOWER | C108: 455.25 | D108: 455.17 | E108: 450.63 | F108: 446.02 | G108: 441.48 | H108: 459.78 | I108: 464.32 | J108: 468.93 | K108: 459.7 | L108: 450.55 | M108: 25.87763
A109: 99 | B109: CHALET | C109: 565.3 | D109: 560.00 | E109: 552.00 | F109: 538.70 | G109: 530.70 | H109: 573.30 | I109: 581.30 | J109: 594.60 | K109: 568 | L109: 546.7 | M109: 2.95073
A110: 100 | B110: CHAMBLFERT | C110: 283.45 | D110: 285.72 | E110: 280.03 | F110: 276.62 | G110: 270.93 | H110: 289.13 | I110: 294.82 | J110: 298.23 | K110: 291.4 | L110: 282.3 | M110: 38.4598
A111: 101 | B111: CHEMPLASTS | C111: 520.7 | D111: 524.35 | E111: 514.50 | F111: 508.30 | G111: 498.45 | H111: 530.55 | I111: 540.40 | J111: 546.60 | K111: 534.2 | L111: 518.15 | M111: 1.2878
A112: 102 | B112: CHOLAHLDNG | C112: 1073.35 | D112: 1066.97 | E112: 1053.93 | F112: 1034.52 | G112: 1021.48 | H112: 1086.38 | I112: 1099.42 | J112: 1118.83 | K112: 1080 | L112: 1047.55 | M112: 2.61117
A113: 103 | B113: CHOLAFIN | C113: 1175.95 | D113: 1164.88 | E113: 1143.07 | F113: 1110.18 | G113: 1088.37 | H113: 1197.77 | I113: 1219.58 | J113: 1252.47 | K113: 1186.7 | L113: 1132 | M113: 40.04318
A114: 104 | B114: CIEINDIA | C114: 503.35 | D114: 504.22 | E114: 495.83 | F114: 488.32 | G114: 479.93 | H114: 511.73 | I114: 520.12 | J114: 527.63 | K114: 512.6 | L114: 496.7 | M114: 5.19179
A115: 105 | B115: CIPLA | C115: 1244.6 | D115: 1248.53 | E115: 1235.07 | F115: 1225.53 | G115: 1212.07 | H115: 1258.07 | I115: 1271.53 | J115: 1281.07 | K115: 1262 | L115: 1239 | M115: 7.8771
A116: 106 | B116: CUB | C116: 132.55 | D116: 133.12 | E116: 131.73 | F116: 130.92 | G116: 129.53 | H116: 133.93 | I116: 135.32 | J116: 136.13 | K116: 134.5 | L116: 132.3 | M116: 56.56884
A117: 107 | B117: CLEAN | C117: 1458.1 | D117: 1466.00 | E117: 1445.10 | F117: 1432.10 | G117: 1411.20 | H117: 1479.00 | I117: 1499.90 | J117: 1512.90 | K117: 1486.9 | L117: 1453 | M117: 1.33074
A118: 108 | B118: COALINDIA | C118: 282.1 | D118: 279.15 | E118: 273.85 | F118: 265.60 | G118: 260.30 | H118: 287.40 | I118: 292.70 | J118: 300.95 | K118: 284.45 | L118: 270.9 | M118: 418.55413
A119: 109 | B119: COCHINSHIP | C119: 1209.45 | D119: 1210.90 | E119: 1163.30 | F119: 1117.15 | G119: 1069.55 | H119: 1257.05 | I119: 1304.65 | J119: 1350.80 | K119: 1258.5 | L119: 1164.75 | M119: 183.49377
A120: 110 | B120: COFORGE | C120: 5550.6 | D120: 5568.38 | E120: 5511.77 | F120: 5472.93 | G120: 5416.32 | H120: 5607.22 | I120: 5663.83 | J120: 5702.67 | K120: 5625 | L120: 5529.55 | M120: 2.80869
A121: 111 | B121: COLPAL | C121: 2015.4 | D121: 2020.42 | E121: 2002.08 | F121: 1988.77 | G121: 1970.43 | H121: 2033.73 | I121: 2052.07 | J121: 2065.38 | K121: 2038.75 | L121: 2007.1 | M121: 2.97448
A122: 112 | B122: CAMS | C122: 2464.6 | D122: 2467.20 | E122: 2444.40 | F122: 2424.20 | G122: 2401.40 | H122: 2487.40 | I122: 2510.20 | J122: 2530.40 | K122: 2490 | L122: 2447 | M122: 0.78774
A123: 113 | B123: CONCOR | C123: 708.9 | D123: 705.60 | E123: 691.85 | F123: 674.80 | G123: 661.05 | H123: 722.65 | I123: 736.40 | J123: 753.45 | K123: 719.35 | L123: 688.55 | M123: 26.9714
A124: 114 | B124: COROMANDEL | C124: 1124.2 | D124: 1131.68 | E124: 1114.37 | F124: 1104.53 | G124: 1087.22 | H124: 1141.52 | I124: 1158.83 | J124: 1168.67 | K124: 1149 | L124: 1121.85 | M124: 1.98395
A125: 115 | B125: CRAFTSMAN | C125: 4817.75 | D125: 4837.60 | E125: 4755.20 | F125: 4692.65 | G125: 4610.25 | H125: 4900.15 | I125: 4982.55 | J125: 5045.10 | K125: 4920 | L125: 4775.05 | M125: 0.234
A126: 116 | B126: CREDITACC | C126: 1432.5 | D126: 1442.65 | E126: 1413.85 | F126: 1395.20 | G126: 1366.40 | H126: 1461.30 | I126: 1490.10 | J126: 1508.75 | K126: 1471.45 | L126: 1424 | M126: 0.91802
A127: 117 | B127: CRISIL | C127: 3897.15 | D127: 3880.80 | E127: 3852.60 | F127: 3808.05 | G127: 3779.85 | H127: 3925.35 | I127: 3953.55 | J127: 3998.10 | K127: 3909 | L127: 3836.25 | M127: 0.18818
A128: 118 | B128: CROMPTON | C128: 316.2 | D128: 316.38 | E128: 313.27 | F128: 310.33 | G128: 307.22 | H128: 319.32 | I128: 322.43 | J128: 325.37 | K128: 319.5 | L128: 313.45 | M128: 36.74917
A129: 119 | B129: CSBBANK | C129: 328.3 | D129: 328.68 | E129: 325.87 | F129: 323.43 | G129: 320.62 | H129: 331.12 | I129: 333.93 | J129: 336.37 | K129: 331.5 | L129: 326.25 | M129: 2.13398
A130: 120 | B130: CUMMINSIND | C130: 1755.35 | D130: 1751.85 | E130: 1740.90 | F130: 1726.45 | G130: 1715.50 | H130: 1766.30 | I130: 1777.25 | J130: 1791.70 | K130: 1762.8 | L130: 1737.4 | M130: 11.05103
A131: 121 | B131: CYIENT | C131: 1788 | D131: 1805.40 | E131: 1766.80 | F131: 1745.60 | G131: 1707.00 | H131: 1826.60 | I131: 1865.20 | J131: 1886.40 | K131: 1844 | L131: 1784.2 | M131: 3.39081
A132: 122 | B132: DABUR | C132: 567.1 | D132: 566.52 | E132: 564.13 | F132: 561.17 | G132: 558.78 | H132: 569.48 | I132: 571.87 | J132: 574.83 | K132: 568.9 | L132: 563.55 | M132: 6.95069
A133: 123 | B133: DALBHARAT | C133: 2322.1 | D133: 2312.35 | E133: 2297.30 | F133: 2272.50 | G133: 2257.45 | H133: 2337.15 | I133: 2352.20 | J133: 2377.00 | K133: 2327.4 | L133: 2287.55 | M133: 4.16878
A134: 124 | B134: DATAPATTNS | C134: 2155.75 | D134: 2184.10 | E134: 2122.20 | F134: 2088.65 | G134: 2026.75 | H134: 2217.65 | I134: 2279.55 | J134: 2313.10 | K134: 2246 | L134: 2150.55 | M134: 4.0077
A135: 125 | B135: DCMSHRIRAM | C135: 996.25 | D135: 998.98 | E135: 987.37 | F135: 978.48 | G135: 966.87 | H135: 1007.87 | I135: 1019.48 | J135: 1028.37 | K135: 1010.6 | L135: 990.1 | M135: 0.41251
A136: 126 | B136: DEEPAKFERT | C136: 666.15 | D136: 667.40 | E136: 660.75 | F136: 655.35 | G136: 648.70 | H136: 672.80 | I136: 679.45 | J136: 684.85 | K136: 674.05 | L136: 662 | M136: 14.11761
A137: 127 | B137: DEEPAKNTR | C137: 2319.25 | D137: 2332.15 | E137: 2291.60 | F137: 2263.95 | G137: 2223.40 | H137: 2359.80 | I137: 2400.35 | J137: 2428.00 | K137: 2372.7 | L137: 2304.5 | M137: 5.30366
A138: 128 | B138: DELHIVERY | C138: 437.4 | D138: 440.03 | E138: 433.37 | F138: 429.33 | G138: 422.67 | H138: 444.07 | I138: 450.73 | J138: 454.77 | K138: 446.7 | L138: 436 | M138: 6.67704
A139: 129 | B139: DELTACORP | C139: 185.1 | D139: 185.48 | E139: 184.12 | F139: 183.13 | G139: 181.77 | H139: 186.47 | I139: 187.83 | J139: 188.82 | K139: 186.85 | L139: 184.5 | M139: 26.8906
A140: 130 | B140: DEVYANI | C140: 222.45 | D140: 223.10 | E140: 220.00 | F140: 217.55 | G140: 214.45 | H140: 225.55 | I140: 228.65 | J140: 231.10 | K140: 226.2 | L140: 220.65 | M140: 30.91725
A141: 131 | B141: DIVISLAB | C141: 3698.8 | D141: 3692.92 | E141: 3674.13 | F141: 3649.47 | G141: 3630.68 | H141: 3717.58 | I141: 3736.37 | J141: 3761.03 | K141: 3711.7 | L141: 3668.25 | M141: 2.47373
A142: 132 | B142: DIXON | C142: 5121.2 | D142: 5110.40 | E142: 5076.35 | F142: 5031.50 | G142: 4997.45 | H142: 5155.25 | I142: 5189.30 | J142: 5234.15 | K142: 5144.45 | L142: 5065.55 | M142: 4.08374
A143: 133 | B143: DLF | C143: 540 | D143: 538.62 | E143: 532.78 | F143: 525.57 | G143: 519.73 | H143: 545.83 | I143: 551.67 | J143: 558.88 | K143: 544.45 | L143: 531.4 | M143: 80.16696
A144: 134 | B144: LALPATHLAB | C144: 2217.4 | D144: 2232.77 | E144: 2195.73 | F144: 2174.07 | G144: 2137.03 | H144: 2254.43 | I144: 2291.47 | J144: 2313.13 | K144: 2269.8 | L144: 2211.1 | M144: 1.65223
A145: 135 | B145: DRREDDY | C145: 5583.8 | D145: 5595.82 | E145: 5557.98 | F145: 5532.17 | G145: 5494.33 | H145: 5621.63 | I145: 5659.47 | J145: 5685.28 | K145: 5633.65 | L145: 5570 | M145: 1.8479
A146: 136 | B146: EIDPARRY | C146: 519.85 | D146: 521.45 | E146: 511.90 | F146: 503.95 | G146: 494.40 | H146: 529.40 | I146: 538.95 | J146: 546.90 | K146: 531 | L146: 513.5 | M146: 9.66986
A147: 137 | B147: EASEMYTRIP | C147: 38.7 | D147: 38.88 | E147: 38.17 | F147: 37.63 | G147: 36.92 | H147: 39.42 | I147: 40.13 | J147: 40.67 | K147: 39.6 | L147: 38.35 | M147: 231.69208
A148: 138 | B148: ECLERX | C148: 1709.5 | D148: 1701.55 | E148: 1684.00 | F148: 1658.50 | G148: 1640.95 | H148: 1727.05 | I148: 1744.60 | J148: 1770.10 | K148: 1719.1 | L148: 1676.05 | M148: 0.48471
A149: 139 | B149: EICHERMOT | C149: 3370.9 | D149: 3381.12 | E149: 3355.88 | F149: 3340.87 | G149: 3315.63 | H149: 3396.13 | I149: 3421.37 | J149: 3436.38 | K149: 3406.35 | L149: 3366.1 | M149: 4.48502
A150: 140 | B150: EIHOTEL | C150: 251.3 | D150: 252.45 | E150: 248.50 | F150: 245.70 | G150: 241.75 | H150: 255.25 | I150: 259.20 | J150: 262.00 | K150: 256.4 | L150: 249.65 | M150: 6.93085
A151: 141 | B151: ELGIEQUIP | C151: 492.65 | D151: 495.30 | E151: 487.70 | F151: 482.75 | G151: 475.15 | H151: 500.25 | I151: 507.85 | J151: 512.80 | K151: 502.9 | L151: 490.35 | M151: 1.87414
A152: 142 | B152: EMAMILTD | C152: 539.75 | D152: 537.13 | E152: 532.27 | F152: 524.78 | G152: 519.92 | H152: 544.62 | I152: 549.48 | J152: 556.97 | K152: 542 | L152: 529.65 | M152: 7.29424
A153: 143 | B153: ENDURANCE | C153: 1618.9 | D153: 1622.73 | E153: 1605.47 | F153: 1592.03 | G153: 1574.77 | H153: 1636.17 | I153: 1653.43 | J153: 1666.87 | K153: 1640 | L153: 1609.3 | M153: 0.34164
A154: 144 | B154: ENGINERSIN | C154: 158 | D154: 157.92 | E154: 156.68 | F154: 155.37 | G154: 154.13 | H154: 159.23 | I154: 160.47 | J154: 161.78 | K154: 159.15 | L154: 156.6 | M154: 34.51735
A155: 145 | B155: EPL | C155: 209.75 | D155: 211.13 | E155: 207.32 | F155: 204.88 | G155: 201.07 | H155: 213.57 | I155: 217.38 | J155: 219.82 | K155: 214.95 | L155: 208.7 | M155: 13.13315
A156: 146 | B156: EQUITASBNK | C156: 87.95 | D156: 87.08 | E156: 85.57 | F156: 83.18 | G156: 81.67 | H156: 89.47 | I156: 90.98 | J156: 93.37 | K156: 88.6 | L156: 84.7 | M156: 109.18483
A157: 147 | B157: ERIS | C157: 826 | D157: 825.62 | E157: 818.23 | F157: 810.47 | G157: 803.08 | H157: 833.38 | I157: 840.77 | J157: 848.53 | K157: 833 | L157: 817.85 | M157: 0.44386
A158: 148 | B158: ESCORTS | C158: 3185.4 | D158: 3174.77 | E158: 3150.63 | F158: 3115.87 | G158: 3091.73 | H158: 3209.53 | I158: 3233.67 | J158: 3268.43 | K158: 3198.9 | L158: 3140 | M158: 3.13212
A159: 149 | B159: EXIDEIND | C159: 273.45 | D159: 274.25 | E159: 271.55 | F159: 269.65 | G159: 266.95 | H159: 276.15 | I159: 278.85 | J159: 280.75 | K159: 276.95 | L159: 272.35 | M159: 21.13514
A160: 150 | B160: FDC | C160: 397.75 | D160: 399.67 | E160: 391.08 | F160: 384.42 | G160: 375.83 | H160: 406.33 | I160: 414.92 | J160: 421.58 | K160: 408.25 | L160: 393 | M160: 3.12755
A161: 151 | B161: FEDERALBNK | C161: 147.5 | D161: 146.95 | E161: 145.60 | F161: 143.70 | G161: 142.35 | H161: 148.85 | I161: 150.20 | J161: 152.10 | K161: 148.3 | L161: 145.05 | M161: 180.10921
A162: 152 | B162: FACT | C162: 518.1 | D162: 524.23 | E162: 507.47 | F162: 496.83 | G162: 480.07 | H162: 534.87 | I162: 551.63 | J162: 562.27 | K162: 541 | L162: 513.6 | M162: 24.7523
A163: 153 | B163: FINEORG | C163: 4984 | D163: 4970.68 | E163: 4950.42 | F163: 4916.83 | G163: 4896.57 | H163: 5004.27 | I163: 5024.53 | J163: 5058.12 | K163: 4990.95 | L163: 4937.1 | M163: 0.29646
A164: 154 | B164: FINCABLES | C164: 1133.85 | D164: 1128.92 | E164: 1115.83 | F164: 1097.82 | G164: 1084.73 | H164: 1146.93 | I164: 1160.02 | J164: 1178.03 | K164: 1142 | L164: 1110.9 | M164: 3.25642
A165: 155 | B165: FINPIPE | C165: 241.85 | D165: 244.62 | E165: 238.28 | F165: 234.72 | G165: 228.38 | H165: 248.18 | I165: 254.52 | J165: 258.08 | K165: 250.95 | L165: 241.05 | M165: 9.315
A166: 156 | B166: FSL | C166: 169.2 | D166: 168.90 | E166: 166.05 | F166: 162.90 | G166: 160.05 | H166: 172.05 | I166: 174.90 | J166: 178.05 | K166: 171.75 | L166: 165.75 | M166: 27.86964
A167: 157 | B167: FIVESTAR | C167: 728.7 | D167: 718.03 | E167: 703.97 | F167: 679.23 | G167: 665.17 | H167: 742.77 | I167: 756.83 | J167: 781.57 | K167: 732.1 | L167: 693.3 | M167: 14.59324
A168: 158 | B168: FORTIS | C168: 339.3 | D168: 338.78 | E168: 334.82 | F168: 330.33 | G168: 326.37 | H168: 343.27 | I168: 347.23 | J168: 351.72 | K168: 342.75 | L168: 334.3 | M168: 23.33674
A169: 159 | B169: NYKAA | C169: 146.05 | D169: 145.98 | E169: 144.07 | F169: 142.08 | G169: 140.17 | H169: 147.97 | I169: 149.88 | J169: 151.87 | K169: 147.9 | L169: 144 | M169: 51.0212
A170: 160 | B170: GRINFRA | C170: 1270.05 | D170: 1273.32 | E170: 1261.73 | F170: 1253.42 | G170: 1241.83 | H170: 1281.63 | I170: 1293.22 | J170: 1301.53 | K170: 1284.9 | L170: 1265 | M170: 0.31861
A171: 161 | B171: GAIL | C171: 128.05 | D171: 127.60 | E171: 126.35 | F171: 124.65 | G171: 123.40 | H171: 129.30 | I171: 130.55 | J171: 132.25 | K171: 128.85 | L171: 125.9 | M171: 202.10938
A172: 162 | B172: GALAXYSURF | C172: 2770.35 | D172: 2751.30 | E172: 2724.15 | F172: 2677.95 | G172: 2650.80 | H172: 2797.50 | I172: 2824.65 | J172: 2870.85 | K172: 2778.45 | L172: 2705.1 | M172: 0.43498
A173: 163 | B173: GARFIBRES | C173: 3251.7 | D173: 3241.90 | E173: 3218.80 | F173: 3185.90 | G173: 3162.80 | H173: 3274.80 | I173: 3297.90 | J173: 3330.80 | K173: 3265 | L173: 3209 | M173: 0.16516
A174: 164 | B174: GICRE | C174: 225 | D174: 224.47 | E174: 222.53 | F174: 220.07 | G174: 218.13 | H174: 226.93 | I174: 228.87 | J174: 231.33 | K174: 226.4 | L174: 222 | M174: 7.34012
A175: 165 | B175: GLAND | C175: 1692.35 | D175: 1695.75 | E175: 1681.60 | F175: 1670.85 | G175: 1656.70 | H175: 1706.50 | I175: 1720.65 | J175: 1731.40 | K175: 1709.9 | L175: 1685 | M175: 1.51817
A176: 166 | B176: GLAXO | C176: 1461.5 | D176: 1450.78 | E176: 1435.92 | F176: 1410.33 | G176: 1395.47 | H176: 1476.37 | I176: 1491.23 | J176: 1516.82 | K176: 1465.65 | L176: 1425.2 | M176: 0.79063
A177: 167 | B177: GLENMARK | C177: 776.85 | D177: 781.22 | E177: 766.88 | F177: 756.92 | G177: 742.58 | H177: 791.18 | I177: 805.52 | J177: 815.48 | K177: 795.55 | L177: 771.25 | M177: 11.98297
A178: 168 | B178: MEDANTA | C178: 695.25 | D178: 696.13 | E178: 689.12 | F178: 682.98 | G178: 675.97 | H178: 702.27 | I178: 709.28 | J178: 715.42 | K178: 703.15 | L178: 690 | M178: 3.59438
A179: 169 | B179: GMMPFAUDLR | C179: 1778.85 | D179: 1773.77 | E179: 1752.63 | F179: 1726.42 | G179: 1705.28 | H179: 1799.98 | I179: 1821.12 | J179: 1847.33 | K179: 1794.9 | L179: 1747.55 | M179: 3.32092
A180: 170 | B180: GMRINFRA | C180: 63.8 | D180: 63.72 | E180: 63.18 | F180: 62.57 | G180: 62.03 | H180: 64.33 | I180: 64.87 | J180: 65.48 | K180: 64.25 | L180: 63.1 | M180: 84.80182
A181: 171 | B181: GOCOLORS | C181: 1380.65 | D181: 1382.53 | E181: 1365.07 | F181: 1349.48 | G181: 1332.02 | H181: 1398.12 | I181: 1415.58 | J181: 1431.17 | K181: 1400 | L181: 1366.95 | M181: 0.39849
A182: 172 | B182: GODFRYPHLP | C182: 2123.3 | D182: 2122.52 | E182: 2095.78 | F182: 2068.27 | G182: 2041.53 | H182: 2150.03 | I182: 2176.77 | J182: 2204.28 | K182: 2149.25 | L182: 2095 | M182: 0.48468
A183: 173 | B183: GODREJAGRO | C183: 496.05 | D183: 495.05 | E183: 491.10 | F183: 486.15 | G183: 482.20 | H183: 500.00 | I183: 503.95 | J183: 508.90 | K183: 499 | L183: 490.1 | M183: 2.48579
A184: 174 | B184: GODREJCP | C184: 1020.3 | D184: 1018.23 | E184: 1012.97 | F184: 1005.63 | G184: 1000.37 | H184: 1025.57 | I184: 1030.83 | J184: 1038.17 | K184: 1023.5 | L184: 1010.9 | M184: 3.21006
A185: 175 | B185: GODREJIND | C185: 584.25 | D185: 573.67 | E185: 557.33 | F185: 530.42 | G185: 514.08 | H185: 600.58 | I185: 616.92 | J185: 643.83 | K185: 590 | L185: 546.75 | M185: 8.12941
A186: 176 | B186: GODREJPROP | C186: 1693.25 | D186: 1682.78 | E186: 1663.52 | F186: 1633.78 | G186: 1614.52 | H186: 1712.52 | I186: 1731.78 | J186: 1761.52 | K186: 1702.05 | L186: 1653.05 | M186: 6.69455
A187: 177 | B187: GRANULES | C187: 312.85 | D187: 314.52 | E187: 310.03 | F187: 307.22 | G187: 302.73 | H187: 317.33 | I187: 321.82 | J187: 324.63 | K187: 319 | L187: 311.7 | M187: 11.3647
A188: 178 | B188: GRAPHITE | C188: 518.3 | D188: 516.10 | E188: 485.20 | F188: 452.10 | G188: 421.20 | H188: 549.20 | I188: 580.10 | J188: 613.20 | K188: 547 | L188: 483 | M188: 158.61032
A189: 179 | B189: GRASIM | C189: 1849.75 | D189: 1848.70 | E189: 1841.15 | F189: 1832.55 | G189: 1825.00 | H189: 1857.30 | I189: 1864.85 | J189: 1873.45 | K189: 1856.25 | L189: 1840.1 | M189: 3.64113
A190: 180 | B190: GESHIP | C190: 824.9 | D190: 830.90 | E190: 814.00 | F190: 803.10 | G190: 786.20 | H190: 841.80 | I190: 858.70 | J190: 869.60 | K190: 847.8 | L190: 820 | M190: 15.76742
A191: 181 | B191: GREENPANEL | C191: 383.45 | D191: 383.57 | E191: 380.18 | F191: 376.92 | G191: 373.53 | H191: 386.83 | I191: 390.22 | J191: 393.48 | K191: 386.95 | L191: 380.3 | M191: 2.99784
A192: 182 | B192: GRINDWELL | C192: 2222.3 | D192: 2212.43 | E192: 2194.87 | F192: 2167.43 | G192: 2149.87 | H192: 2239.87 | I192: 2257.43 | J192: 2284.87 | K192: 2230 | L192: 2185 | M192: 0.6753
A193: 183 | B193: GUJALKALI | C193: 739.85 | D193: 742.50 | E193: 735.40 | F193: 730.95 | G193: 723.85 | H193: 746.95 | I193: 754.05 | J193: 758.50 | K193: 749.6 | L193: 738.05 | M193: 1.00963
A194: 184 | B194: GAEL | C194: 285.6 | D194: 286.15 | E194: 279.50 | F194: 273.40 | G194: 266.75 | H194: 292.25 | I194: 298.90 | J194: 305.00 | K194: 292.8 | L194: 280.05 | M194: 5.42493
A195: 185 | B195: FLUOROCHEM | C195: 3067.3 | D195: 3065.93 | E195: 3016.87 | F195: 2966.43 | G195: 2917.37 | H195: 3116.37 | I195: 3165.43 | J195: 3215.87 | K195: 3115 | L195: 3015.5 | M195: 0.93221
A196: 186 | B196: GUJGASLTD | C196: 464.4 | D196: 464.70 | E196: 462.70 | F196: 461.00 | G196: 459.00 | H196: 466.40 | I196: 468.40 | J196: 470.10 | K196: 466.7 | L196: 463 | M196: 10.22948
A197: 187 | B197: GNFC | C197: 643.05 | D197: 645.52 | E197: 637.63 | F197: 632.22 | G197: 624.33 | H197: 650.93 | I197: 658.82 | J197: 664.23 | K197: 653.4 | L197: 640.1 | M197: 11.24312
A198: 188 | B198: GPPL | C198: 137.6 | D198: 137.72 | E198: 134.08 | F198: 130.57 | G198: 126.93 | H198: 141.23 | I198: 144.87 | J198: 148.38 | K198: 141.35 | L198: 134.2 | M198: 61.65904
A199: 189 | B199: GSFC | C199: 173.25 | D199: 173.90 | E199: 171.10 | F199: 168.95 | G199: 166.15 | H199: 176.05 | I199: 178.85 | J199: 181.00 | K199: 176.7 | L199: 171.75 | M199: 30.98539
A200: 190 | B200: GSPL | C200: 282.6 | D200: 285.03 | E200: 278.87 | F200: 275.13 | G200: 268.97 | H200: 288.77 | I200: 294.93 | J200: 298.67 | K200: 291.2 | L200: 281.3 | M200: 18.9002
A201: 191 | B201: HEG | C201: 1821.15 | D201: 1833.43 | E201: 1752.87 | F201: 1684.58 | G201: 1604.02 | H201: 1901.72 | I201: 1982.28 | J201: 2050.57 | K201: 1914 | L201: 1765.15 | M201: 26.32693
A202: 192 | B202: HAPPSTMNDS | C202: 939.5 | D202: 937.48 | E202: 920.02 | F202: 900.53 | G202: 883.07 | H202: 956.97 | I202: 974.43 | J202: 993.92 | K202: 954.95 | L202: 918 | M202: 16.90687
A203: 193 | B203: HAVELLS | C203: 1450.25 | D203: 1426.75 | E203: 1399.50 | F203: 1348.75 | G203: 1321.50 | H203: 1477.50 | I203: 1504.75 | J203: 1555.50 | K203: 1454 | L203: 1376 | M203: 43.77612
A204: 194 | B204: HCLTECH | C204: 1262.05 | D204: 1261.97 | E204: 1254.38 | F204: 1246.72 | G204: 1239.13 | H204: 1269.63 | I204: 1277.22 | J204: 1284.88 | K204: 1269.55 | L204: 1254.3 | M204: 22.80777
A205: 195 | B205: HDFCAMC | C205: 2535.8 | D205: 2530.60 | E205: 2515.20 | F205: 2494.60 | G205: 2479.20 | H205: 2551.20 | I205: 2566.60 | J205: 2587.20 | K205: 2546 | L205: 2510 | M205: 3.20215
A206: 196 | B206: HDFCBANK | C206: 1623.4 | D206: 1621.30 | E206: 1609.70 | F206: 1596.00 | G206: 1584.40 | H206: 1635.00 | I206: 1646.60 | J206: 1660.30 | K206: 1632.9 | L206: 1607.6 | M206: 172.51105
... 319 more rows

Sheet Bulk Deals
E6: Back To Main Page
A7: Subject : | B7: BULK DEAL | D7: =Main!B10 -> 2023-09-11
A9: Date | B9: Scrip code | C9: Scrip Name | D9: Client Name | E9: Buy / Sell | F9: Quantity Traded | G9: Trade Price / Wt.Avg.trade price | H9: Exchange
A10: 2023-09-08 | B10: 540615 | C10: 7NR | D10: AGRAWAL NIKUNJ | E10: SELL | F10: 7,650,000 | G10: 0.56 | H10: BSE
A11: 2023-09-08 | B11: 543938 | C11: ACCELERATE | D11: SHETH BROTHER | E11: SELL | F11: 11,200 | G11: 296.56 | H11: BSE
A12: 2023-09-08 | B12: 543938 | C12: ACCELERATE | D12: SHETH BROTHER | E12: BUY | F12: 9,600 | G12: 293.04 | H12: BSE
A13: 2023-09-08 | B13: 543938 | C13: ACCELERATE | D13: SUMICKSHA | E13: SELL | F13: 24,000 | G13: 304.56 | H13: BSE
A14: 2023-09-08 | B14: 543938 | C14: ACCELERATE | D14: SUMICKSHA | E14: BUY | F14: 22,400 | G14: 300.56 | H14: BSE
A15: 2023-09-08 | B15: 543938 | C15: ACCELERATE | D15: LATIN MANHARLAL SECURITIES PVT LTD | E15: BUY | F15: 20,800 | G15: 299.75 | H15: BSE
A16: 2023-09-08 | B16: 543938 | C16: ACCELERATE | D16: LATIN MANHARLAL SECURITIES PVT LTD | E16: SELL | F16: 9,600 | G16: 294.43 | H16: BSE
A17: 2023-09-08 | B17: 543938 | C17: ACCELERATE | D17: YUGA STOCKS AND COMMODITIES PRIVATE LIMITED . | E17: SELL | F17: 22,400 | G17: 308.28 | H17: BSE
A18: 2023-09-08 | B18: 543938 | C18: ACCELERATE | D18: YUGA STOCKS AND COMMODITIES PRIVATE LIMITED . | E18: BUY | F18: 16,000 | G18: 308.7 | H18: BSE
A19: 2023-09-08 | B19: 543941 | C19: AHASOLAR | D19: SUNFLOWER BROKING PRIVATE LIMITED | E19: BUY | F19: 4,000 | G19: 340.47 | H19: BSE
A20: 2023-09-08 | B20: 543941 | C20: AHASOLAR | D20: SUNFLOWER BROKING PRIVATE LIMITED | E20: SELL | F20: 32,000 | G20: 340.26 | H20: BSE
A21: 2023-09-08 | B21: 539546 | C21: BNL | D21: B B COMMERCIAL LTD | E21: SELL | F21: 43,096 | G21: 61.6 | H21: BSE
A22: 2023-09-08 | B22: 539546 | C22: BNL | D22: B B COMMERCIAL LTD | E22: BUY | F22: 33,800 | G22: 62.14 | H22: BSE
A23: 2023-09-08 | B23: 540023 | C23: COLORCHIPS | D23: ANKITA VISHAL SHAH | E23: SELL | F23: 467,372 | G23: 3.93 | H23: BSE
A24: 2023-09-08 | B24: 543921 | C24: COMRADE | D24: SHERWOOD SECURITIES PVT LTD | E24: SELL | F24: 38,000 | G24: 163 | H24: BSE
A25: 2023-09-08 | B25: 543921 | C25: COMRADE | D25: ARUN KUMAR GANERIWALA | E25: BUY | F25: 60,000 | G25: 164.33 | H25: BSE
A26: 2023-09-08 | B26: 540811 | C26: DML | D26: HARNISH B SHAH HUF | E26: SELL | F26: 50,000 | G26: 22.5 | H26: BSE
A27: 2023-09-08 | B27: 542724 | C27: EARUM | D27: AMRAPALI CAPITAL AND FINANCE SERVICES LIMITED | E27: SELL | F27: 1,750,000 | G27: 1.01 | H27: BSE
A28: 2023-09-08 | B28: 532022 | C28: FILATFASH | D28: DINESH SURANA | E28: SELL | F28: 1,375,000 | G28: 13.03 | H28: BSE
A29: 2023-09-08 | B29: 539032 | C29: FRASER | D29: ANKUR SEVANTILAL SHAH | E29: SELL | F29: 71,181 | G29: 7.36 | H29: BSE
A30: 2023-09-08 | B30: 539032 | C30: FRASER | D30: LOREM INVESTMENT | E30: BUY | F30: 114,842 | G30: 7.24 | H30: BSE
A31: 2023-09-08 | B31: 541703 | C31: GFIL | D31: AMIT BAJAJ HUF | E31: BUY | F31: 16,000 | G31: 17.1 | H31: BSE
A32: 2023-09-08 | B32: 541703 | C32: GFIL | D32: GAURAV KUMAR | E32: SELL | F32: 25,600 | G32: 17.02 | H32: BSE
A33: 2023-09-08 | B33: 540614 | C33: GGENG | D33: MULTIPLIER SHARE & STOCK ADVISORS PRIVATE LIMITED | E33: BUY | F33: 1,000,000 | G33: 1.2 | H33: BSE
A34: 2023-09-08 | B34: 540614 | C34: GGENG | D34: MULTIPLIER SHARE & STOCK ADVISORS PRIVATE LIMITED | E34: SELL | F34: 7,027,781 | G34: 1.24 | H34: BSE
A35: 2023-09-08 | B35: 540614 | C35: GGENG | D35: DIPTI BHAVINKUMAR SHAH | E35: SELL | F35: 5,290,000 | G35: 1.21 | H35: BSE
A36: 2023-09-08 | B36: 540936 | C36: GGL | D36: MEENA WASAN | E36: SELL | F36: 56,513 | G36: 12.55 | H36: BSE
A37: 2023-09-08 | B37: 540936 | C37: GGL | D37: MEENA WASAN | E37: BUY | F37: 86,591 | G37: 11.79 | H37: BSE
A38: 2023-09-08 | B38: 514386 | C38: GUJCOTEX | D38: VIVEK KANDA | E38: BUY | F38: 73,500 | G38: 3.08 | H38: BSE
A39: 2023-09-08 | B39: 532467 | C39: HAZOOR | D39: NAVRATRI SHARE TRADING PRIVATE LIMITED | E39: SELL | F39: 123,018 | G39: 138.39 | H39: BSE
A40: 2023-09-08 | B40: 535667 | C40: IFINSEC | D40: GANGA DEVI BANSAL | E40: BUY | F40: 1,207,000 | G40: 28.44 | H40: BSE
A41: 2023-09-08 | B41: 535667 | C41: IFINSEC | D41: TIA ENTERPRISES PRIVATE LIMITED | E41: SELL | F41: 1,207,000 | G41: 28.44 | H41: BSE
A42: 2023-09-08 | B42: 543806 | C42: ITCONS | D42: RIMPY MITTAL | E42: BUY | F42: 56,000 | G42: 52.19 | H42: BSE
A43: 2023-09-08 | B43: 543806 | C43: ITCONS | D43: RIMPY MITTAL | E43: SELL | F43: 56,000 | G43: 52.67 | H43: BSE
A44: 2023-09-08 | B44: 543806 | C44: ITCONS | D44: PANKAJ MITTAL | E44: BUY | F44: 14,000 | G44: 52.8 | H44: BSE
A45: 2023-09-08 | B45: 543806 | C45: ITCONS | D45: PANKAJ MITTAL | E45: SELL | F45: 32,000 | G45: 53.06 | H45: BSE
A46: 2023-09-08 | B46: 542924 | C46: JANUSCORP | D46: MULTIPLIER SHARE & STOCK ADVISORS PRIVATE LIMITED | E46: BUY | F46: 70,000 | G46: 4.27 | H46: BSE
A47: 2023-09-08 | B47: 542924 | C47: JANUSCORP | D47: PALLAVI ROY | E47: SELL | F47: 217,000 | G47: 4.27 | H47: BSE
A48: 2023-09-08 | B48: 513250 | C48: JYOTISTRUC | D48: FOLLIS ADVISORY LLP | E48: SELL | F48: 3,723,568 | G48: 10.97 | H48: BSE
A49: 2023-09-08 | B49: 531784 | C49: KCLINFRA | D49: JIGNESH AMRUTLAL THOBHANI | E49: SELL | F49: 5,000,000 | G49: 1.82 | H49: BSE
A50: 2023-09-08 | B50: 531784 | C50: KCLINFRA | D50: FREQUENT STOCK AND SHARES PRIVATE LIMITED | E50: BUY | F50: 845,000 | G50: 1.82 | H50: BSE
A51: 2023-09-08 | B51: 531784 | C51: KCLINFRA | D51: SUSHILA DEVI BAPNA | E51: BUY | F51: 875,000 | G51: 1.82 | H51: BSE
A52: 2023-09-08 | B52: 531328 | C52: KRETTOSYS | D52: AMEENMOHAMMAD | E52: SELL | F52: 579,312 | G52: 0.65 | H52: BSE
A53: 2023-09-08 | B53: 531328 | C53: KRETTOSYS | D53: AMEENMOHAMMAD | E53: BUY | F53: 909,964 | G53: 0.66 | H53: BSE
A54: 2023-09-08 | B54: 543624 | C54: MAAGHADV | D54: NNM SECURITIES PVT LTD | E54: SELL | F54: 26,000 | G54: 28.07 | H54: BSE
A55: 2023-09-08 | B55: 543624 | C55: MAAGHADV | D55: SYNEMATIC MEDIA AND CONSULTING PRIVATE LIMITED | E55: BUY | F55: 26,000 | G55: 28.16 | H55: BSE
A56: 2023-09-08 | B56: 508922 | C56: MSRINDIA | D56: GOPI KISHAN MALANI | E56: SELL | F56: 580,000 | G56: 10.38 | H56: BSE
A57: 2023-09-08 | B57: 531834 | C57: NATHUEC | D57: HAL CLYDE DENISON LIMITED | E57: BUY | F57: 63,600 | G57: 3.71 | H57: BSE
A58: 2023-09-08 | B58: 531834 | C58: NATHUEC | D58: SHREE GAJRAJ FINLEASE PRIVATE LIMITED | E58: SELL | F58: 70,820 | G58: 3.71 | H58: BSE
A59: 2023-09-08 | B59: 540386 | C59: ONTIC | D59: MALTI SALVI | E59: SELL | F59: 511,099 | G59: 0.7 | H59: BSE
A60: 2023-09-08 | B60: 526773 | C60: PRESSURS | D60: KRUPESH GHANSHYAMBHAI THAKKAR | E60: SELL | F60: 951,809 | G60: 6.7 | H60: BSE
A61: 2023-09-08 | B61: 533122 | C61: RTNPOWER | D61: ABARC AST 002 TRUST | E61: SELL | F61: 40,195,825 | G61: 7.31 | H61: BSE
A62: 2023-09-08 | B62: 543366 | C62: SBLI | D62: NARMADABEN VAGHELA | E62: SELL | F62: 6,000 | G62: 76.49 | H62: BSE
A63: 2023-09-08 | B63: 543366 | C63: SBLI | D63: LILABEN JASVANTSINH KHATEDIYA | E63: SELL | F63: 9,600 | G63: 77.06 | H63: BSE
A64: 2023-09-08 | B64: 543391 | C64: SGFRL | D64: SANJAY POPATLAL JAIN | E64: SELL | F64: 225,000 | G64: 57.9 | H64: BSE
A65: 2023-09-08 | B65: 543391 | C65: SGFRL | D65: KAMLABAI POPATLAL JAIN | E65: SELL | F65: 135,000 | G65: 57.5 | H65: BSE
A66: 2023-09-08 | B66: 543391 | C66: SGFRL | D66: RAJSHIKHAR EDIFICE LLP | E66: SELL | F66: 402,000 | G66: 57.5 | H66: BSE
A67: 2023-09-08 | B67: 512499 | C67: SHALPRO | D67: TOPGAIN FINANCE PRIVATE LIMITED | E67: SELL | F67: 7,038,590 | G67: 0.49 | H67: BSE
A68: 2023-09-08 | B68: 512499 | C68: SHALPRO | D68: TOPGAIN FINANCE PRIVATE LIMITED | E68: SELL | F68: 267,618 | G68: 0.5 | H68: BSE
A69: 2023-09-08 | B69: 533019 | C69: SIMPLXPAP | D69: MILLENNIUM STOCK BROKING PVT LTD | E69: SELL | F69: 217 | G69: 1049.6 | H69: BSE
A70: 2023-09-08 | B70: 539118 | C70: VRLLOG | D70: ANAND VIJAY SANKESHWAR | E70: SELL | F70: 3,500,000 | G70: 681.08 | H70: BSE
A71: 2023-09-08 | B71: 539118 | C71: VRLLOG | D71: SBI MUTUAL FUND | E71: SELL | F71: 574,804 | G71: 681 | H71: BSE
A72: 2023-09-08 | B72: 539118 | C72: VRLLOG | D72: SBI MUTUAL FUND | E72: SELL | F72: 1,354,201 | G72: 681 | H72: BSE
A73: 2023-09-08 | B73: BAJAJHCARE | C73: Bajaj Healthcare Limited | D73: GRAVITON RESEARCH CAPITAL LLP | E73: BUY | F73: 211,856 | G73: 393.63 | H73: NSE
A74: 2023-09-08 | B74: BIRLACABLE | C74: Birla Cable Limited | D74: MULTIPLIER SHARE & STOCK ADVISORS PRIVATE LIMITED | E74: BUY | F74: 214,073 | G74: 402.51 | H74: NSE
A75: 2023-09-08 | B75: BURNPUR | C75: Burnpur Cement Limited | D75: NX BLOCK TRADES PRIVATE LIMITED | E75: BUY | F75: 500,000 | G75: 5.28 | H75: NSE
A76: 2023-09-08 | B76: CADSYS | C76: Cadsys (India) Limited | D76: MULTIPLIER SHARE & STOCK ADVISORS PRIVATE LIMITED | E76: BUY | F76: 26,000 | G76: 171.6 | H76: NSE
A77: 2023-09-08 | B77: CHENNPETRO | C77: Chennai Petroleum Corp | D77: GRAVITON RESEARCH CAPITAL LLP | E77: BUY | F77: 747,342 | G77: 468.4 | H77: NSE
A78: 2023-09-08 | B78: COCHINSHIP | C78: Cochin Shipyard Limited | D78: GRAVITON RESEARCH CAPITAL LLP | E78: BUY | F78: 1,662,644 | G78: 1220.61 | H78: NSE
A79: 2023-09-08 | B79: COCHINSHIP | C79: Cochin Shipyard Limited | D79: NK SECURITIES RESEARCH PRIVATE LIMITED | E79: BUY | F79: 761,466 | G79: 1222.25 | H79: NSE
A80: 2023-09-08 | B80: CPS | C80: C P S Shapers Limited | D80: MANISH VIDYASAGAR | E80: BUY | F80: 10,800 | G80: 495.91 | H80: NSE
A81: 2023-09-08 | B81: CPS | C81: C P S Shapers Limited | D81: SHRENI SHARES PRIVATE LIMITED | E81: BUY | F81: 1,200 | G81: 496.1 | H81: NSE
A82: 2023-09-08 | B82: CUPID | C82: Cupid Limited | D82: RADHARANI SALES PRIVATE LIMITED | E82: BUY | F82: 101,319 | G82: 392.42 | H82: NSE
A83: 2023-09-08 | B83: DONEAR | C83: Donear Industries Limited | D83: GRAVITON RESEARCH CAPITAL LLP | E83: BUY | F83: 336,256 | G83: 118.18 | H83: NSE
A84: 2023-09-08 | B84: EMMBI | C84: Emmbi Industries Ltd | D84: GRAVITON RESEARCH CAPITAL LLP | E84: BUY | F84: 130,505 | G84: 110.29 | H84: NSE
A85: 2023-09-08 | B85: EXCEL | C85: Excel Realty N Infra Ltd | D85: MULTIPLIER SHARE & STOCK ADVISORS PRIVATE LIMITED | E85: BUY | F85: 14,990,749 | G85: 0.4 | H85: NSE
A86: 2023-09-08 | B86: GOACARBON | C86: Goa Carbon Ltd | D86: GRAVITON RESEARCH CAPITAL LLP | E86: BUY | F86: 66,885 | G86: 569.18 | H86: NSE
A87: 2023-09-08 | B87: GRAPHITE | C87: Graphite India Limited | D87: GRAVITON RESEARCH CAPITAL LLP | E87: BUY | F87: 1,432,725 | G87: 526.6 | H87: NSE
A88: 2023-09-08 | B88: GRSE | C88: Garden Reach Ship | D88: GRAVITON RESEARCH CAPITAL LLP | E88: BUY | F88: 1,077,030 | G88: 926.62 | H88: NSE
A89: 2023-09-08 | B89: GTL | C89: GTL Limited | D89: BALWANT SINGH | E89: BUY | F89: 811,018 | G89: 10.41 | H89: NSE
A90: 2023-09-08 | B90: HEG | C90: HEG Ltd | D90: GRAVITON RESEARCH CAPITAL LLP | E90: BUY | F90: 297,816 | G90: 1863.18 | H90: NSE
A91: 2023-09-08 | B91: HITECH | C91: Hi-Tech Pipes Limited | D91: DREAM ACHIEVER CONSULTANCY SERVICES PRIVATE LIMITED | E91: BUY | F91: 1,000,000 | G91: 75.9 | H91: NSE
A92: 2023-09-08 | B92: INFIBEAM | C92: Infibeam Avenues Limited | D92: CITADEL SECURITIES INDIA MARKETS PRIVATE LIMITED | E92: BUY | F92: 13,887,954 | G92: 15.82 | H92: NSE
A93: 2023-09-08 | B93: IRCON | C93: Ircon International Ltd | D93: HRTI PRIVATE LIMITED | E93: BUY | F93: 4,705,475 | G93: 129.55 | H93: NSE
A94: 2023-09-08 | B94: JPPOWER | C94: Jaiprakash Power Ven. Lt | D94: JAINAM BROKING LIMITED | E94: BUY | F94: 49,541,751 | G94: 9.66 | H94: NSE
A95: 2023-09-08 | B95: JPPOWER | C95: Jaiprakash Power Ven. Lt | D95: HRTI PRIVATE LIMITED | E95: BUY | F95: 44,493,745 | G95: 9.62 | H95: NSE
A96: 2023-09-08 | B96: JYOTISTRUC | C96: Jyoti Structures Ltd | D96: VENKATKRISHNA MOHAN PRABHALA | E96: BUY | F96: 3,500,000 | G96: 10.89 | H96: NSE
A97: 2023-09-08 | B97: KHFM | C97: KHFM Hos Fac Mana Ser Ltd | D97: LIESHA CORPORATION PRIVATE LIMITED . | E97: BUY | F97: 111,600 | G97: 57.05 | H97: NSE
A98: 2023-09-08 | B98: MANGLMCEM | C98: Mangalam Cement Ltd | D98: RAMBARA TRADING PRIVATE LIMITED | E98: BUY | F98: 200,000 | G98: 366.56 | H98: NSE
A99: 2023-09-08 | B99: MAZDOCK | C99: Mazagon Dock Shipbuil Ltd | D99: NK SECURITIES RESEARCH PRIVATE LIMITED | E99: BUY | F99: 1,089,984 | G99: 2305.81 | H99: NSE
A100: 2023-09-08 | B100: MONOPHARMA | C100: Mono Pharmacare Limited | D100: MULTIPLIER SHARE & STOCK ADVISORS PRIVATE LIMITED | E100: BUY | F100: 8,000 | G100: 31.95 | H100: NSE
A101: 2023-09-08 | B101: MONOPHARMA | C101: Mono Pharmacare Limited | D101: ANANT WEALTH CONSULTANTS PRIVATE LIMITED | E101: BUY | F101: 124,000 | G101: 31.95 | H101: NSE
A102: 2023-09-08 | B102: MOXSH | C102: Moxsh Overseas Educon Ltd | D102: DHARMESHKUMAR HARSHADBHAI VAGHANI | E102: BUY | F102: 22,400 | G102: 126.52 | H102: NSE
A103: 2023-09-08 | B103: PARAS | C103: Paras Def and Spce Tech L | D103: GRAVITON RESEARCH CAPITAL LLP | E103: BUY | F103: 287,551 | G103: 826.98 | H103: NSE
A104: 2023-09-08 | B104: RPOWER | C104: Reliance Power Limited | D104: HRTI PRIVATE LIMITED | E104: BUY | F104: 26,329,654 | G104: 21.4 | H104: NSE
A105: 2023-09-08 | B105: SCI | C105: Shipping Corp of India | D105: GRAVITON RESEARCH CAPITAL LLP | E105: BUY | F105: 3,235,447 | G105: 156.25 | H105: NSE
A106: 2023-09-08 | B106: SHRENIK | C106: Shrenik Limited | D106: AJAY SALVI | E106: BUY | F106: 3,137,369 | G106: 1.08 | H106: NSE
A107: 2023-09-08 | B107: SOBHA | C107: Sobha Limited | D107: GRAVITON RESEARCH CAPITAL LLP | E107: BUY | F107: 614,757 | G107: 666.68 | H107: NSE
A108: 2023-09-08 | B108: SSFL | C108: Srivari Spices N Foods L | D108: LODHA CHANCHAL DEVI | E108: BUY | F108: 90,000 | G108: 136.4 | H108: NSE
A109: 2023-09-08 | B109: SURANI | C109: Surani Steel Tubes Ltd. | D109: SANJAY GUPTA | E109: BUY | F109: 50,000 | G109: 243.05 | H109: NSE
A110: 2023-09-08 | B110: TNPETRO | C110: Tamilnadu Petro Prod Ltd | D110: GRAVITON RESEARCH CAPITAL LLP | E110: BUY | F110: 742,215 | G110: 98.27 | H110: NSE
A111: 2023-09-08 | B111: TREL | C111: Transindia Real Estate L | D111: CRONY VYAPAR PVT LTD | E111: BUY | F111: 1,920,165 | G111: 44.03 | H111: NSE
A112: 2023-09-08 | B112: TRU | C112: TruCap Finance Limited | D112: ESAAR (INDIA) LIMITED | E112: BUY | F112: 761,887 | G112: 60.91 | H112: NSE
A113: 2023-09-08 | B113: VCL | C113: Vaxtex Cotfab Limited | D113: MAKWANA DIXIT CHANDUBHAI | E113: BUY | F113: 4,960,000 | G113: 2.01 | H113: NSE
A114: 2023-09-08 | B114: VCL | C114: Vaxtex Cotfab Limited | D114: ASHOKBHAI MADHUBHAI KORAT | E114: BUY | F114: 4,000,800 | G114: 2.05 | H114: NSE
A115: 2023-09-08 | B115: VCL | C115: Vaxtex Cotfab Limited | D115: AGRAWAL NIKUNJ | E115: BUY | F115: 5,129,910 | G115: 2.02 | H115: NSE
A116: 2023-09-08 | B116: VCL | C116: Vaxtex Cotfab Limited | D116: SHIVANG R VACHHETA | E116: BUY | F116: 4,695,006 | G116: 2 | H116: NSE
A117: 2023-09-08 | B117: VCL | C117: Vaxtex Cotfab Limited | D117: A S ENTERPRISE | E117: BUY | F117: 2,150,066 | G117: 2.05 | H117: NSE
A118: 2023-09-08 | B118: VIKASECO | C118: Vikas EcoTech Limited | D118: QE SECURITIES LLP | E118: BUY | F118: 12,658,328 | G118: 3.56 | H118: NSE
A119: 2023-09-08 | B119: VIKASECO | C119: Vikas EcoTech Limited | D119: VISHWAS FINCAP SERVICES PRIVATE LIMITED | E119: BUY | F119: 24,373,643 | G119: 3.5 | H119: NSE
A120: 2023-09-08 | B120: VIKASLIFE | C120: Vikas Lifecare Limited | D120: ACHINTYA SECURITIES PRIVATE LIMITED | E120: BUY | F120: 9,208,143 | G120: 5.28 | H120: NSE
A121: 2023-09-08 | B121: VIKASLIFE | C121: Vikas Lifecare Limited | D121: HI GROWTH CORPORATE SERVICES PVT LTD | E121: BUY | F121: 18,966,675 | G121: 5.29 | H121: NSE
A122: 2023-09-08 | B122: VPRPL | C122: Vishnu Prakash R Pungli L | D122: GRAVITON RESEARCH CAPITAL LLP | E122: BUY | F122: 715,162 | G122: 169.44 | H122: NSE
A123: 2023-09-08 | B123: AARTECH | C123: Aartech Solonics Limited | D123: MOHTA SARITA | E123: SELL | F123: 58,996 | G123: 180.85 | H123: NSE
A124: 2023-09-08 | B124: BAJAJHCARE | C124: Bajaj Healthcare Limited | D124: GRAVITON RESEARCH CAPITAL LLP | E124: SELL | F124: 211,856 | G124: 394.43 | H124: NSE
A125: 2023-09-08 | B125: BIRLACABLE | C125: Birla Cable Limited | D125: MULTIPLIER SHARE & STOCK ADVISORS PRIVATE LIMITED | E125: SELL | F125: 14,102 | G125: 402.5 | H125: NSE
A126: 2023-09-08 | B126: BURNPUR | C126: Burnpur Cement Limited | D126: NX BLOCK TRADES PRIVATE LIMITED | E126: SELL | F126: 50,000 | G126: 5.3 | H126: NSE
A127: 2023-09-08 | B127: CADSYS | C127: Cadsys (India) Limited | D127: MULTIPLIER SHARE & STOCK ADVISORS PRIVATE LIMITED | E127: SELL | F127: 42,000 | G127: 171.6 | H127: NSE
A128: 2023-09-08 | B128: CHENNPETRO | C128: Chennai Petroleum Corp | D128: GRAVITON RESEARCH CAPITAL LLP | E128: SELL | F128: 747,342 | G128: 468.26 | H128: NSE
A129: 2023-09-08 | B129: COCHINSHIP | C129: Cochin Shipyard Limited | D129: NK SECURITIES RESEARCH PRIVATE LIMITED | E129: SELL | F129: 761,466 | G129: 1222.8 | H129: NSE
A130: 2023-09-08 | B130: COCHINSHIP | C130: Cochin Shipyard Limited | D130: GRAVITON RESEARCH CAPITAL LLP | E130: SELL | F130: 1,662,644 | G130: 1221.19 | H130: NSE
A131: 2023-09-08 | B131: CPS | C131: C P S Shapers Limited | D131: SHITU GUPTA | E131: SELL | F131: 10,800 | G131: 489.12 | H131: NSE
A132: 2023-09-08 | B132: CPS | C132: C P S Shapers Limited | D132: SHRENI SHARES PRIVATE LIMITED | E132: SELL | F132: 16,800 | G132: 460.26 | H132: NSE
A133: 2023-09-08 | B133: DONEAR | C133: Donear Industries Limited | D133: GRAVITON RESEARCH CAPITAL LLP | E133: SELL | F133: 336,256 | G133: 118.13 | H133: NSE
A134: 2023-09-08 | B134: EMMBI | C134: Emmbi Industries Ltd | D134: GRAVITON RESEARCH CAPITAL LLP | E134: SELL | F134: 130,505 | G134: 110.48 | H134: NSE
A135: 2023-09-08 | B135: GOACARBON | C135: Goa Carbon Ltd | D135: GRAVITON RESEARCH CAPITAL LLP | E135: SELL | F135: 66,885 | G135: 569.59 | H135: NSE
A136: 2023-09-08 | B136: GRAPHITE | C136: Graphite India Limited | D136: GRAVITON RESEARCH CAPITAL LLP | E136: SELL | F136: 1,432,725 | G136: 526.93 | H136: NSE
A137: 2023-09-08 | B137: GRSE | C137: Garden Reach Ship | D137: GRAVITON RESEARCH CAPITAL LLP | E137: SELL | F137: 1,077,030 | G137: 927 | H137: NSE
A138: 2023-09-08 | B138: GTL | C138: GTL Limited | D138: BALWANT SINGH | E138: SELL | F138: 811,018 | G138: 10.43 | H138: NSE
A139: 2023-09-08 | B139: HEG | C139: HEG Ltd | D139: GRAVITON RESEARCH CAPITAL LLP | E139: SELL | F139: 297,816 | G139: 1864.03 | H139: NSE
A140: 2023-09-08 | B140: INFIBEAM | C140: Infibeam Avenues Limited | D140: CITADEL SECURITIES INDIA MARKETS PRIVATE LIMITED | E140: SELL | F140: 3,112,240 | G140: 16.08 | H140: NSE
A141: 2023-09-08 | B141: IRCON | C141: Ircon International Ltd | D141: HRTI PRIVATE LIMITED | E141: SELL | F141: 5,016,964 | G141: 129.55 | H141: NSE
A142: 2023-09-08 | B142: JPPOWER | C142: Jaiprakash Power Ven. Lt | D142: HRTI PRIVATE LIMITED | E142: SELL | F142: 44,043,056 | G142: 9.64 | H142: NSE
A143: 2023-09-08 | B143: JPPOWER | C143: Jaiprakash Power Ven. Lt | D143: JAINAM BROKING LIMITED | E143: SELL | F143: 49,510,757 | G143: 9.67 | H143: NSE
A144: 2023-09-08 | B144: JYOTISTRUC | C144: Jyoti Structures Ltd | D144: FOLLIS ADVISORY LLP | E144: SELL | F144: 11,010,564 | G144: 11.05 | H144: NSE
A145: 2023-09-08 | B145: KHFM | C145: KHFM Hos Fac Mana Ser Ltd | D145: LIESHA CORPORATION PRIVATE LIMITED . | E145: SELL | F145: 89,900 | G145: 56.9 | H145: NSE
A146: 2023-09-08 | B146: MANGLMCEM | C146: Mangalam Cement Ltd | D146: JATAYU TEXTILES & INDUSTRIES LTD | E146: SELL | F146: 168,246 | G146: 366.01 | H146: NSE
A147: 2023-09-08 | B147: MAZDOCK | C147: Mazagon Dock Shipbuil Ltd | D147: NK SECURITIES RESEARCH PRIVATE LIMITED | E147: SELL | F147: 1,089,984 | G147: 2307.01 | H147: NSE
A148: 2023-09-08 | B148: MONOPHARMA | C148: Mono Pharmacare Limited | D148: MULTIPLIER SHARE & STOCK ADVISORS PRIVATE LIMITED | E148: SELL | F148: 100,000 | G148: 31.95 | H148: NSE
A149: 2023-09-08 | B149: MONOPHARMA | C149: Mono Pharmacare Limited | D149: ANANT WEALTH CONSULTANTS PRIVATE LIMITED | E149: SELL | F149: 12,000 | G149: 31.5 | H149: NSE
A150: 2023-09-08 | B150: PARAS | C150: Paras Def and Spce Tech L | D150: GRAVITON RESEARCH CAPITAL LLP | E150: SELL | F150: 287,551 | G150: 827.47 | H150: NSE
A151: 2023-09-08 | B151: RPOWER | C151: Reliance Power Limited | D151: HRTI PRIVATE LIMITED | E151: SELL | F151: 27,418,337 | G151: 21.38 | H151: NSE
A152: 2023-09-08 | B152: RTNPOWER | C152: RattanIndia Power Limited | D152: ABARC-AST-002-TRUST | E152: SELL | F152: 39,804,175 | G152: 7.21 | H152: NSE
A153: 2023-09-08 | B153: SCI | C153: Shipping Corp of India | D153: GRAVITON RESEARCH CAPITAL LLP | E153: SELL | F153: 3,235,447 | G153: 156.31 | H153: NSE
A154: 2023-09-08 | B154: SECURCRED | C154: SecUR Credentials Limited | D154: JANAK NAVINBHAI PANCHAL | E154: SELL | F154: 222,444 | G154: 16.94 | H154: NSE
A155: 2023-09-08 | B155: SOBHA | C155: Sobha Limited | D155: GRAVITON RESEARCH CAPITAL LLP | E155: SELL | F155: 614,757 | G155: 667.07 | H155: NSE
A156: 2023-09-08 | B156: TNPETRO | C156: Tamilnadu Petro Prod Ltd | D156: GRAVITON RESEARCH CAPITAL LLP | E156: SELL | F156: 742,215 | G156: 98.29 | H156: NSE
A157: 2023-09-08 | B157: TREL | C157: Transindia Real Estate L | D157: CRONY VYAPAR PVT LTD | E157: SELL | F157: 1,367,093 | G157: 44.15 | H157: NSE
A158: 2023-09-08 | B158: TRU | C158: TruCap Finance Limited | D158: ESAAR (INDIA) LIMITED | E158: SELL | F158: 810,088 | G158: 60.54 | H158: NSE
A159: 2023-09-08 | B159: VCL | C159: Vaxtex Cotfab Limited | D159: VICKY RAJESH JHAVERI | E159: SELL | F159: 971,077 | G159: 2.05 | H159: NSE
A160: 2023-09-08 | B160: VCL | C160: Vaxtex Cotfab Limited | D160: RATHOD MANOJ CHHAGANLAL HUF | E160: SELL | F160: 18,850,000 | G160: 2.03 | H160: NSE
A161: 2023-09-08 | B161: VCL | C161: Vaxtex Cotfab Limited | D161: ASHOKBHAI MADHUBHAI KORAT | E161: SELL | F161: 100,100 | G161: 1.98 | H161: NSE
A162: 2023-09-08 | B162: VCL | C162: Vaxtex Cotfab Limited | D162: SETU SECURITIES PVT LTD | E162: SELL | F162: 1,500,000 | G162: 1.95 | H162: NSE
A163: 2023-09-08 | B163: VIKASECO | C163: Vikas EcoTech Limited | D163: VISHWAS FINCAP SERVICES PRIVATE LIMITED | E163: SELL | F163: 22,773,643 | G163: 3.52 | H163: NSE
A164: 2023-09-08 | B164: VIKASECO | C164: Vikas EcoTech Limited | D164: QE SECURITIES LLP | E164: SELL | F164: 12,658,328 | G164: 3.56 | H164: NSE
A165: 2023-09-08 | B165: VIKASLIFE | C165: Vikas Lifecare Limited | D165: HI GROWTH CORPORATE SERVICES PVT LTD | E165: SELL | F165: 17,793,000 | G165: 5.31 | H165: NSE
A166: 2023-09-08 | B166: VIKASLIFE | C166: Vikas Lifecare Limited | D166: ACHINTYA SECURITIES PRIVATE LIMITED | E166: SELL | F166: 8,434,143 | G166: 5.3 | H166: NSE
A167: 2023-09-08 | B167: VPRPL | C167: Vishnu Prakash R Pungli L | D167: GRAVITON RESEARCH CAPITAL LLP | E167: SELL | F167: 715,162 | G167: 169.45 | H167: NSE

Sheet Call Tracker (Equity & F&O)
M5: Back To Main Page
A6: Retail Research Technical Calls & Fundamental Performance Report for the month of September-2023
M7: =Main!B10 -> 2023-09-11
B8: Positional Call
A9: Sr.no | B9: Date | D9: Company | E9: Rec | F9: Rec Price | G9: Stop Loss*** | H9: Call Closed At | I9: Target | J9: Remark | K9: Profit / Loss per Share | L9: All charges | M9: Net Gain / Loss % | N9: Status | O9: Closed Date | P9: Market Closing Price
A10: 1 | B10: 2023-07-12 | D10: HDFCBANK | E10: Accu | F10: 1595-1655 | G10: 1540 | I10: 1800-1900 | J10: Open | P10: =VLOOKUP(D10,'MidCap Intra'!$B$11:$C$568,2,0) -> 1623.40 | R10: H
A11: 2 | B11: 2023-07-26 | D11: BANKBARODA | E11: Accu | F11: 191-197 | G11: 185 | I11: 215-225 | J11: Open | P11: =VLOOKUP(D11,'MidCap Intra'!$B$11:$C$568,2,0) -> 197.80 | R11: H
A12: 3 | B12: 2023-07-26 | D12: RVNL | E12: Accu | F12: 127.5 | G12: 118 | H12: 134.75 | I12: 145-150 | J12: Profit of Rs.7.25/- | K12: =H12-F12 -> 7.25 | L12: =(F12*-0.3)/100 -> -0.38 | M12: =(K12+L12)/F12 -> 5.39% | N12: Successful | O12: 2023-09-01 | R12: H
A13: 4 | B13: 2023-08-04 | D13: VINATIORGA | E13: Accu <> | F13: 1823 | G13: 1738 | H13: 1925 | I13: 1993-2043 | J13: Profit of Rs.102/- | K13: =H13-F13 -> 102 | L13: =(F13*-0.3)/100 -> -5.47 | M13: =(K13+L13)/F13 -> 5.30% | N13: Successful | O13: 2023-09-05 | R13: H
A14: 5 | B14: 2023-08-07 | D14: TATAMTRDVR | E14: Accu | F14: 381-399 | G14: 365 | I14: 440-460 | J14: Open | P14: =VLOOKUP(D14,'MidCap Intra'!$B$11:$C$568,2,0) -> 424.60 | R14: H
A15: 6 | B15: 2023-08-29 | D15: FLUOROCHEM | E15: Accu | F15: 2935 | G15: 2700 | H15: 3125 | I15: 3180-3380 | J15: Profit of Rs.190/- | K15: =H15-F15 -> 190 | L15: =(F15*-0.3)/100 -> -8.81 | M15: =(K15+L15)/F15 -> 6.17% | N15: Successful | O15: 2023-09-04 | R15: H
A16: 7 | B16: 2023-08-29 | D16: JAMNAAUTO | E16: Accu | F16: 114.5 | G16: 105 | H16: 122.25 | I16: 124-130 | J16: Profit of Rs.7.75/- | K16: =H16-F16 -> 7.75 | L16: =(F16*-0.3)/100 -> -0.34 | M16: =(K16+L16)/F16 -> 6.47% | N16: Successful | O16: 2023-09-01 | R16: H
A17: 8 | B17: 2023-08-30 | D17: AMARAJABAT | E17: Accu | F17: 627 | G17: 577 | H17: 671 | I17: 670-700 | J17: Profit of Rs.44/- | K17: =H17-F17 -> 44 | L17: =(F17*-0.3)/100 -> -1.88 | M17: =(K17+L17)/F17 -> 6.72% | N17: Successful | O17: 2023-09-08 | R17: H
A18: 9 | B18: 2023-08-31 | D18: GMMPFAUDLR | E18: Accu | F18: 1530 | G18: 1415 | H18: 1612.5 | I18: 1640-1700 | J18: Profit of Rs.82.5/- | K18: =H18-F18 -> 82.5 | L18: =(F18*-0.3)/100 -> -4.59 | M18: =(K18+L18)/F18 -> 5.09% | N18: Successful | O18: 2023-09-01 | R18: H
A19: 10 | B19: 2023-09-01 | D19: TATASTEEL | E19: Accu | F19: 123.5-126.5 | G19: 119 | I19: 134-140 | J19: Open | P19: =VLOOKUP(D19,'MidCap Intra'!$B$11:$C$568,2,0) -> 129.50
A20: 11 | B20: 2023-09-01 | D20: FEDERALBNK | E20: Accu | F20: 136.5-141.5 | G20: 133 | I20: 149-155 | J20: Open | P20: =VLOOKUP(D20,'MidCap Intra'!$B$11:$C$568,2,0) -> 147.50
A21: 12 | B21: 2023-09-04 | D21: PRSMJOHNSN | E21: Accu | F21: 133.5 | G21: 124 | H21: 142 | I21: 140-145 | J21: Profit of Rs.8.5/- | K21: =H21-F21 -> 8.5 | L21: =(F21*-0.02)/100 -> -0.03 | M21: =(K21+L21)/F21 -> 6.35% | N21: Successful | O21: 2023-09-04
A22: 13 | B22: 2023-09-04 | D22: TCS | E22: Accu | F22: 3310-3410 | G22: 3195 | I22: 3650-3750 | J22: Open | P22: =VLOOKUP(D22,'MidCap Intra'!$B$11:$C$568,2,0) -> 3441.90
A23: 14 | B23: 2023-09-05 | D23: PRSMJOHNSN | E23: Accu | F23: 133.5-139.5 | G23: 129 | I23: 150-160 | J23: Open | P23: =VLOOKUP(D23,'MidCap Intra'!$B$11:$C$568,2,0) -> 142.20
A24: 15 | B24: 2023-09-05 | D24: FLUOROCHEM | E24: Accu | F24: 2915-3015 | G24: 2785 | I24: 3200-3400 | J24: Open | P24: =VLOOKUP(D24,'MidCap Intra'!$B$11:$C$568,2,0) -> 3067.30
A25: 16 | B25: 2023-09-06 | D25: EIDPARRY | E25: Accu | F25: 502-522 | G25: 485 | I25: 560-590 | J25: Open | P25: =VLOOKUP(D25,'MidCap Intra'!$B$11:$C$568,2,0) -> 519.85
A33: CLBS = Closing Basis ***
A34: Dividend adjusted <> | F34: Reinitiated $
A35: Part book {} | D35: s | F35: Revised stoploss #
A39: Master Trade High Risk
A40: Sr.no | B40: Date | D40: Company | E40: Rec | F40: Rec Price | G40: Stop Loss | H40: Call Closed At | I40: Target | J40: Remark | K40: Profit / Loss per share | L40: All charges | M40: Gain / Loss per Lot | N40: Lot | O40: Status | P40: Closed Date
A41: 1 | B41: 2023-08-31 | D41: NAUKRI SEPT FUT | E41: Buy | F41: 4380 | G41: 4300 | H41: 4435 | I41: 4470-4530 | J41: Profit of Rs.55/- | K41: =H41-F41 -> 55 | L41: =(H41*N41)*0.03% -> 199.58 | M41: =(K41*N41)-L41 -> 8050.4 | N41: 150 | O41: Successful | P41: 2023-09-04 | R41: N
A42: 2 | B42: 2023-08-31 | D42: RELIANCE SEPT FUT | E42: Buy | F42: 2428-2432 | G42: 2385 | I42: 2480-2520 | J42: Open | R42: H
A43: 3 | B43: 2023-09-01 | D43: LUPIN SEPT FUT | E43: Buy | F43: 1096.5 | G43: 1082 | H43: 1106.5 | I43: 1115-1125 | J43: Profit of Rs.10/- | K43: =H43-F43 -> 10 | L43: =(H43*N43)*0.03% -> 282.16 | M43: =(K43*N43)-L43 -> 8217.8 | N43: 850 | O43: Successful | P43: 2023-09-04
A44: 4 | B44: 2023-09-01 | D44: ATUL SEPT FUT | E44: Buy | F44: 7345 | G44: 7170 | H44: 7445 | I44: 7500-7600 | J44: Profit of Rs.100/- | K44: =H44-F44 -> 100 | L44: =(H44*N44)*0.03% -> 167.51 | M44: =(K44*N44)-L44 -> 7332.5 | N44: 75 | O44: Successful | P44: 2023-09-05
A45: 5 | B45: 2023-09-04 | D45: ICICIGI SEP FUT | E45: Buy | F45: 1362-1365 | G45: 1325 | I45: 1390-1415 | J45: Open
A46: 6 | B46: 2023-09-04 | D46: OFSS SEPT FUT | E46: Buy | F46: 4145 | G46: 4090 | H46: 4185 | I46: 4210-4250 | J46: Profit of Rs.40/- | K46: =H46-F46 -> 40 | L46: =(H46*N46)*0.03% -> 251.10 | M46: =(K46*N46)-L46 -> 7748.9 | N46: 200 | O46: Successful | P46: 2023-09-05
A47: 7 | B47: 2023-09-05 | D47: BATAINDIA SEPT FUT | E47: Buy | F47: 1676.5 | G47: 1646 | H47: 1696.5 | I47: 1710-1730 | J47: Profit of Rs.20/- | K47: =H47-F47 -> 20 | L47: =(H47*N47)*0.03% -> 190.86 | M47: =(K47*N47)-L47 -> 7309.1 | N47: 375 | O47: Successful | P47: 2023-09-06
A48: 8 | B48: 2023-09-05 | D48: IPCALAB SEPT FUT | E48: Buy | F48: 890 | G48: 870 | H48: 906.5 | I48: 910-930 | J48: Profit of Rs.16.5/- | K48: =H48-F48 -> 16.5 | L48: =(H48*N48)*0.03% -> 176.77 | M48: =(K48*N48)-L48 -> 10548.2 | N48: 650 | O48: Successful | P48: 2023-09-06
A49: 9 | B49: 2023-09-06 | D49: GLENMARK AUG FUT | E49: Buy | F49: 782 | G49: 775 | H49: 790 | I49: 789-803 | J49: Profit of Rs.8/- | K49: =H49-F49 -> 8 | L49: =(H49*N49)*0.03% -> 343.65 | M49: =(K49*N49)-L49 -> 11256.4 | N49: 1450 | O49: Successful | P49: 2023-09-06
A50: 10 | B50: 2023-09-07 | D50: METROPOLIS SEPT FUT | E50: Buy | F50: 1430-1432 | G50: 1405 | I50: 1460-1480 | J50: Open
A51: 11 | B51: 2023-09-07 | D51: LT SEPT FUT | E51: Buy | F51: 2737.5 | G51: 2698 | H51: 2781 | I51: 2780-2800 | J51: Profit of Rs.43.5/- | K51: =H51-F51 -> 43.5 | L51: =(H51*N51)*0.03% -> 250.29 | M51: =(K51*N51)-L51 -> 12799.7 | N51: 300 | O51: Successful | P51: 2023-09-07
A52: 12 | B52: 2023-09-08 | D52: POWERGRID SEPT FUT | E52: Buy | F52: 260-261 | G52: 256.5 | I52: 267-270 | J52: Open
A57: Master Trade Medium Risk
A58: Sr.no | B58: Date | D58: Company | E58: Rec | F58: Rec Price | G58: Stop Loss | H58: Call Closed At | I58: Target | J58: Remark | K58: Profit/ Loss per lot | L58: All charges | M58: Gain / Loss per Lot | N58: Lot | O58: Status | P58: Closed Date
A59: 1 | B59: 2023-08-30 | D59: HINDUNILVR 2560 CE 28-SEPT | E59: Buy | F59: 36.5 | G59: 20 | H59: 23 | I59: 60-75 | J59: Loss of Rs.13.5/- | K59: =H59-F59 -> -13.5 | L59: 50.00 | M59: =(K59*N59)-50 -> -4100.0 | N59: 300 | O59: Unsuccessful | P59: 2023-09-01 | R59: N
A60: 2 | B60: 2023-08-30 | D60: RELIANCE 2480 CE 28-SEPT | E60: Buy | F60: 42 | G60: 25 | H60: 41 | I60: 60-70 | J60: Loss of Rs.1/- | K60: -1 | L60: 50.00 | M60: -300.0 | N60: 250 | O60: Unsuccessful | P60: 2023-09-08 | R60: N
A61: 3 | B61: 2023-09-04 | D61: FINNIFTY 19800 CE 05-SEP | E61: Buy | F61: 36 | G61: 10 | H61: 13 | I61: 60-80 | J61: Loss of Rs.23/- | K61: =H61-F61 -> -23 | L61: 50.00 | M61: =(K61*N61)-50 -> -970.0 | N61: 40 | O61: Unsuccessful | P61: 2023-09-05
A62: 4 | B62: 2023-09-06 | D62: NIFTY 19600 PE 07-SEP | E62: Buy | F62: 58 | G62: 35 | H62: 78 | I62: 90-100 | J62: Profit of Rs.20/- | K62: 20 | L62: 50.00 | M62: =(K62*N62)-L62 -> 950.0 | N62: 50 | O62: Successful | P62: 2023-09-06
A63: 5 | B63: 2023-09-07 | D63: SUNPHARMA 1140 CE 28-SEPT | E63: Buy | F63: 15-16 | G63: 9.5 | I63: 22-28 | J63: Open
A64: 6 | B64: 2023-09-07 | D64: NAUKRI 4500 CE 28-SEPT | E64: Buy | F64: 113 | G64: 88 | H64: 130 | I64: 140-160 | J64: Profit of Rs.17/- | K64: =H64-F64 -> 17 | L64: 50.00 | M64: =(K64*N64)-L64 -> 2500.0 | N64: 150 | O64: Successful | P64: 2023-09-08
A65: 7 | B65: 2023-09-07 | D65: MARUTI 10300 CE 28-SEPT | E65: Buy | F65: 183.5 | G65: 142 | H65: 212.5 | I65: 225-250 | J65: Profit of Rs.29/- | K65: =H65-F65 -> 29 | L65: 50.00 | M65: =(K65*N65)-L65 -> 2850.0 | N65: 100 | O65: Successful | P65: 2023-09-07
A66: 8 | B66: 2023-09-08 | D66: TRENT 2120 CE 28-SEP | E66: Buy | F66: 53-55 | G66: 44 | I66: 64-74 | J66: Open
A69: Techno -Funda (positional)
A70: Sr.no | B70: Date | D70: Company | E70: Rec | F70: Rec Price | G70: Stop Loss*** | H70: Call Closed At | I70: Target | J70: Remark | K70: Profit / Loss per Share/Lot | L70: All charges | M70: Net Gain / Loss % | N70: Status | O70: Closed Date | P70: Market Closing Price
A71: 1 | B71: 2023-08-31 | D71: LATENTVIEW | E71: Buy | F71: 380-425 | G71: 350 | I71: 500-550 | J71: Open | R71: H
A72: 2 | B72: 2023-09-04 | D72: LTIM | E72: Buy | F72: 5020-5270 | G72: 4790 | I72: 5700-6000 | J72: Open
A75: CLBS = Closing Basis *** | F75: Reinitiated $
A76: Dividend adjusted <> | F76: Revised stoploss # | H76: .................
B85: Investment Idea
A86: Sr.no | B86: Date | D86: Company | E86: Rec | F86: Rec Price | G86: Point of Review | H86: Close Rate | I86: Target | J86: Remark | K86: Profit / Loss per Share | L86: Gain / Loss % | M86: Status | N86: Closed Date
A87: 1 | B87: 2013-11-01 | D87: L&T Finance Holding | E87: Accu | F87: 82.00 | G87: - | H87: 100 | I87: 100.00 | J87: Target Achieved | K87: =H87-F87 -> 18.00 | L87: =K87/F87 -> 21.95% | M87: Successful | N87: 2016-10-14
A88: 2 | B88: 2014-06-04 | D88: Finolex Inds | E88: Buy | F88: 257.00 | G88: - | H88: 300 | I88: 300.00 | J88: Target Achieved | K88: 43.00 | L88: 16.73% | M88: Successful | N88: 2014-07-02
A89: 3 | B89: 2014-07-08 | D89: JK Cement | E89: Buy | F89: 393.00 | G89: - | H89: 468 | I89: 468.00 | J89: Target Achieved | K89: 75.00 | L89: 19.08% | M89: Successful | N89: 2014-08-12
A90: 4 | B90: 2014-08-06 | D90: Finolex Cables | E90: Buy | F90: 205.00 | G90: - | H90: 275 | I90: 250.00 | J90: Target Achieved | K90: 70.00 | L90: 34.15% | M90: Successful | N90: 2014-11-19
A91: 5 | B91: 2014-09-04 | D91: Exide Inds | E91: Buy | F91: 162.00 | G91: - | H91: 190 | I91: 190.00 | J91: Target Achieved | K91: 28.00 | L91: 17.28% | M91: Successful | N91: 2015-01-02
A92: 6 | B92: 2014-09-04 | D92: Deepak Nitrite | E92: Buy | F92: 75.00 | G92: - | H92: 91.5 | I92: 95-100 | J92: Profit of Rs.16.50/- | K92: 16.50 | L92: 22.00% | M92: Successful | N92: 2014-11-11
A93: 7 | B93: 2014-10-01 | D93: Mercks | E93: Buy | F93: 850.00 | G93: - | H93: 982.5 | I93: 1050.00 | J93: Profit of Rs.132.50/- | K93: 132.50 | L93: 15.59% | M93: Successful | N93: 2015-02-04
A94: 8 | B94: 2014-10-01 | D94: Grindwell Norton | E94: Buy | F94: 475.00 | G94: - | H94: 515 | I94: 600.00 | J94: Profit of Rs.40/- | K94: 40.00 | L94: 8.42% | M94: Successful | N94: 2014-10-27
A95: 9 | B95: 2014-10-01 | D95: Snowman Logistics | E95: Buy | F95: 86.00 | G95: - | H95: 99 | I95: 140.00 | J95: Profit of Rs.13.00/- | K95: 13.00 | L95: 15.12% | M95: Successful | N95: 2014-10-27
A96: 10 | B96: 2014-10-14 | D96: Birla Corp | E96: Buy | F96: 496.60 | G96: - | H96: 621 | I96: 580.00 | J96: Target Achieved | K96: 124.40 | L96: 25.05% | M96: Successful | N96: 2016-08-23
A97: 11 | B97: 2014-10-14 | D97: Ultratech Cem | E97: Buy | F97: 2481.90 | G97: - | H97: 2840 | I97: 2870.00 | J97: Profit of Rs.358.10/- | K97: 358.10 | L97: 14.43% | M97: Successful | N97: 2015-01-13
A98: 12 | B98: 2014-10-16 | D98: Sintex Inds | E98: Buy | F98: 84.50 | G98: - | H98: 93 | I98: 110.00 | J98: Profit of Rs.8.50/- | K98: 8.50 | L98: 10.06% | M98: Successful | N98: 2014-10-27
A99: 13 | B99: 2014-10-16 | D99: HSIL | E99: Buy | F99: 401.00 | G99: - | H99: 428 | I99: 450.00 | J99: Profit of Rs.27.00/- | K99: 27.00 | L99: 6.73% | M99: Successful | N99: 2015-01-16
A100: 14 | B100: 2014-10-16 | D100: Eveready Inds | E100: Buy | F100: 101.00 | G100: - | H100: 112 | I100: 120.00 | J100: Profit of Rs.11.00/- | K100: 11.00 | L100: 10.89% | M100: Successful | N100: 2014-10-27
A101: 15 | B101: 2014-11-11 | D101: Pennar Inds | E101: Buy | F101: 59.00 | G101: - | H101: 76 | I101: 76.00 | J101: Target Achieved | K101: 17.00 | L101: 28.81% | M101: Successful | N101: 2017-10-24
A102: 16 | B102: 2014-11-11 | D102: Snowman Logistics | E102: Buy | F102: 99.00 | G102: - | H102: 120 | I102: 120.00 | J102: Profit of Rs.21/- | K102: 21.00 | L102: 21.21% | M102: Successful | N102: 2014-11-17
A103: 17 | B103: 2014-11-13 | D103: Dharamsi Morarji Chem | E103: Buy | F103: 22.00 | G103: - | H103: 33.55 | I103: 32.00 | J103: Profit of Rs 11.55/- | K103: 11.55 | L103: 52.50% | M103: Successful | N103: 2015-07-03
A104: 18 | B104: 2014-12-03 | D104: Tatachem | E104: Buy | F104: 440.00 | G104: - | H104: 520 | I104: 520.00 | J104: Profit of Rs 80.00/- | K104: 80.00 | L104: 18.18% | M104: Successful | N104: 2015-07-23
A105: 19 | B105: 2014-12-03 | D105: Advanta | E105: Buy | F105: 360.00 | G105: - | H105: 427 | I105: 425.00 | J105: Profit of Rs.67.00/- | K105: 67.00 | L105: 18.61% | M105: Successful | N105: 2015-02-23
A106: 20 | B106: 2015-01-08 | D106: GDL | E106: Buy | F106: 360.00 | G106: - | H106: 455 | I106: 420.00 | J106: Profit of Rs.95.00/- | K106: 95.00 | L106: 26.39% | M106: Successful | N106: 2015-01-20
A107: 21 | B107: 2015-01-08 | D107: NRB Bearing | E107: Buy | F107: 130.00 | H107: 175.5 | I107: 165.00 | J107: Profit of Rs 45.50/- | K107: 45.50 | L107: 35.00% | M107: Successful | N107: 2017-12-19
A108: 22 | B108: 2015-02-05 | D108: GSFC | E108: Accu | F108: 98.00 | H108: 120 | I108: 120.00 | J108: Target Achieved | K108: 22.00 | L108: 22.45% | M108: Successful | N108: 2017-01-18
A109: 23 | B109: 2015-02-05 | D109: Sundrmfast | E109: Accu | F109: 196.00 | H109: 262 | I109: 255.00 | J109: Target Achieved | K109: 66.00 | L109: 33.67% | M109: Successful | N109: 2016-08-17
A110: 24 | B110: 2015-03-04 | D110: GPPL | E110: Accu | F110: 235 | H110: 77.00 | I110: 280-285 | J110: Loss of Rs.158/- | K110: -158.00 | L110: -67.23% | M110: Unsuccessful | N110: 2019-02-26
A111: 25 | B111: 2015-03-04 | D111: ORIENTCEM | E111: Accu | F111: 185.00 | H111: 224 | I111: 220-225 | J111: Target Achieved | K111: 39.00 | L111: 21.08% | M111: Successful | N111: 2016-10-04
A112: 26 | B112: 2015-03-27 | D112: PFS | E112: Accu | F112: 49.5 | H112: 15.85 | I112: 67.00 | J112: Loss of Rs.33.65/- | K112: -33.65 | L112: -68% | M112: Unsuccessful | N112: 2019-06-11
A113: 27 | B113: 2015-03-30 | D113: Walchandnagar Ind Ltd | E113: Accu | F113: 183.50 | H113: 219 | I113: 218.00 | J113: Profit of Rs.35.50/- | K113: 35.50 | L113: 19.35% | M113: Successful | N113: 2015-04-09
A114: 28 | B114: 2015-04-20 | D114: Kalpataru Power Transmission Ltd | E114: Accu | F114: =(227+237)/2 -> 232.00 | H114: 298 | I114: 298.00 | J114: Target Achieved | K114: 66.00 | L114: 28.45% | M114: Successful | N114: 2017-03-29
A115: 29 | B115: 2015-05-04 | D115: Mastek Ltd | E115: Buy | F115: 385.00 | H115: =212.5+331 -> 543.5 | I115: 510.00 | J115: Profit of Rs 158.50/- | K115: 158.50 | L115: 41.17% | M115: Successful | N115: 2015-08-19
A116: 30 | B116: 2015-05-04 | D116: Suprajit Eng | E116: Buy | F116: 115.50 | H116: 146 | I116: 142.00 | J116: Profit of Rs 30.50/- | K116: 30.50 | L116: 26.41% | M116: Successful | N116: 2015-07-17
A117: 31 | B117: 2015-05-27 | D117: TCI | E117: Buy | F117: 237.50 | H117: 279.5 | I117: 278.00 | J117: Target Achieved | K117: 42.00 | L117: 17.68% | M117: Successful | N117: 2015-08-06
A118: 32 | B118: 2015-06-19 | D118: HSIL | E118: Accu | F118: 340.00 | H118: 448 | I118: 448.00 | J118: Target Achieved | K118: 108.00 | L118: 31.76% | M118: Successful | N118: 2017-10-10
A119: 33 | B119: 2015-07-06 | D119: Capital First | E119: Accu | F119: 390.00 | H119: 460 | I119: 460.00 | J119: Target Achieved | K119: 70.00 | L119: 17.95% | M119: Successful | N119: 2016-04-18
A120: 34 | B120: 2015-07-10 | D120: Dolphin OffShore | E120: Accu | F120: 122.5 | H120: 61.00 | I120: 172.00 | J120: Loss of Rs.61.50/- | K120: -61.50 | L120: -50.20% | M120: Unsuccessful | N120: 2018-08-21
A121: 35 | B121: 2015-08-03 | D121: Allcargo logistics | E121: Accu | F121: 297.50 | H121: 350 | I121: 360.00 | J121: Profit of Rs 52.50/- | K121: 52.50 | L121: 17.65% | M121: Successful | N121: 2015-08-16
A122: 36 | B122: 2015-08-03 | D122: Camline Fine | E122: Accu | F122: 115.50 | H122: 149 | I122: 140.00 | J122: Profit of Rs 33.50/- | K122: 33.50 | L122: 29.00% | M122: Successful | N122: 2017-01-05
A123: 37 | B123: 2015-09-04 | D123: TCI | E123: Accu | F123: 226.00 | H123: 292 | I123: 292.00 | J123: Target Achieved | K123: 66.00 | L123: 29.20% | M123: Successful | N123: 2015-10-09
A124: 38 | B124: 2015-09-07 | D124: Kalpataru Power Transmission Ltd | E124: Accu | F124: 232.50 | H124: 312.5 | I124: 310.00 | J124: Target Achieved | K124: 80.00 | L124: 34.41% | M124: Successful | N124: 2017-03-29
A125: 39 | B125: 2015-09-21 | D125: LLOYD ELECTRIC & ENG LTD | E125: Accu | F125: 196.50 | H125: 238 | I125: 238.00 | J125: Target Achieved | K125: 41.50 | L125: 21.12% | M125: Successful | N125: 2015-10-14
A126: 40 | B126: 2015-09-24 | D126: L&T Finance Holding | E126: Accu | F126: 65.00 | H126: 82 | I126: 82.00 | J126: Target Achieved | K126: 17.00 | L126: 26.15% | M126: Successful | N126: 2016-07-27
A127: 41 | B127: 2015-10-14 | D127: KEC International ltd | E127: Accu | F127: 144.00 | H127: 182.5 | I127: 181.00 | J127: Target Achieved | K127: 38.50 | L127: 26.74% | M127: Successful | N127: 2017-03-23
A128: 42 | B128: 2015-10-14 | D128: Gruh Finance | E128: Accu | F128: 264.00 | H128: 311 | I128: 311.00 | J128: Target Achieved | K128: 47.00 | L128: 17.80% | M128: Successful | N128: 2016-08-22
A129: 43 | B129: 2015-11-10 | D129: Pidilitind | E129: Buy | F129: 549.50 | H129: 630 | I129: 630.00 | J129: Target Achieved | K129: 80.50 | L129: 14.65% | M129: Successful | N129: 2016-02-19
A130: 44 | B130: 2015-12-04 | D130: Zensar Technology | E130: Accu | F130: 1027.50 | H130: 1315 | I130: 1250.00 | J130: Target Achieved | K130: 287.50 | L130: 27.98% | M130: Successful | N130: 2018-05-24
A131: 45 | B131: 2015-12-29 | D131: Vinati Organics Ltd | E131: Accu | F131: 465.00 | H131: 540 | I131: 540.00 | J131: Target Achieved | K131: 75.00 | L131: 16.13% | M131: Successful | N131: 2016-06-09
A132: 46 | B132: 2016-01-11 | D132: GSFC | E132: Buy | F132: 81.00 | H132: 110 | I132: 110.00 | J132: Target Achieved | K132: 29.00 | L132: 35.80% | M132: Successful | N132: 2017-01-10
A133: 47 | B133: 2016-01-13 | D133: SSWL | E133: Buy | F133: 417.50 | H133: 547 | I133: 535.00 | J133: Target Achieved | K133: 129.50 | L133: 31.02% | M133: Successful | N133: 2016-07-27
A134: 48 | B134: 2016-02-08 | D134: Persistent System Ltd | E134: Accu | F134: 650.00 | H134: 800 | I134: 800.00 | J134: Target Achieved | K134: 150.00 | L134: 23.08% | M134: Successful | N134: 2018-02-23
A135: 49 | B135: 2016-03-04 | D135: UPL | E135: Accu | F135: 437.50 | H135: 504.5 | I135: 522.00 | J135: Profit of Rs.67/- | K135: 67.00 | L135: 15.31% | M135: Successful | N135: 2016-04-20
A136: 50 | B136: 2016-03-09 | D136: Ashoka Buildcon Ltd | E136: Accu | F136: 189.50 | H136: 218 | I136: 218.00 | J136: Target Achieved | K136: 28.50 | L136: 15.04% | M136: Successful | N136: 2017-10-26
A137: 51 | B137: 2016-04-11 | D137: PTC INDIA FIN SERV LTD | E137: Accu | F137: 36.5 | H137: 15.85 | I137: 60.00 | J137: Loss of Rs.20.65/- | K137: -20.65 | L137: -56.58% | M137: Unsuccessful | N137: 2019-06-11
A138: 52 | B138: 2016-04-12 | D138: CAMLINFINE $ | E138: Accu | F138: 93.00 | H138: 149 | I138: 140.00 | J138: Profit of Rs 56/- | K138: 56.00 | L138: 60.22% | M138: Successful | N138: 2017-01-05
A139: 53 | B139: 2016-04-12 | D139: Greaves Cotton Ltd. | E139: Accu | F139: 130.00 | H139: 150 | I139: 150-155 | J139: Target Achieved | K139: 20.00 | L139: 15.38% | M139: Successful | N139: 2016-07-13
A140: 54 | B140: 2016-04-13 | D140: DHFL | E140: Accu | F140: 196.00 | H140: 299 | I140: 299.00 | J140: Target Achieved | K140: 103.00 | L140: 52.55% | M140: Successful | N140: 2016-09-07
A141: 55 | B141: 2016-04-13 | D141: Magma | E141: Accu | F141: 88.00 | H141: 103 | I141: 103.00 | J141: Target Achieved | K141: 15.00 | L141: 17.05% | M141: Successful | N141: 2016-06-09
A142: 56 | B142: 2016-05-02 | D142: KEC International ltd $ | E142: Accu | F142: 127.50 | H142: 148 | I142: 148-150 | J142: Target Achieved | K142: =H142-F142 -> 20.50 | L142: =K142/F142 -> 16.08% | M142: Successful | N142: 2016-07-13
A143: 57 | B143: 2016-05-03 | D143: Mindtree | E143: Accu | F143: 675.00 | H143: 815 | I143: 790-800 | J143: Target Achieved | K143: 140.00 | L143: 20.74% | M143: Successful | N143: 2018-02-23
A144: 58 | B144: 2016-06-01 | D144: Atulauto | E144: Accu | F144: 500 | H144: 232.50 | I144: 565-570 | J144: Loss of Rs.267.50 /- | K144: -267.50 | L144: -53.50% | M144: Unsuccessful | N144: 2019-09-27
A145: 59 | B145: 2016-06-06 | D145: TRITURBINE | E145: Accu | F145: 110.00 | H145: 126.5 | I145: 125.00 | J145: Profit of Rs.16.50/- | K145: 16.50 | L145: 15.00% | M145: Successful | N145: 2016-07-01
A146: 60 | B146: 2016-06-17 | D146: Pennar Industries Ltd | E146: Accu | F146: 44.00 | H146: 69.5 | I146: 69.50 | J146: Profit of Rs.25.50/- | K146: 25.50 | L146: 57.95% | M146: Successful | N146: 2017-08-30
A147: 61 | B147: 2016-06-28 | D147: EVEREADY | E147: Accu | F147: 262.50 | H147: 340 | I147: 333.00 | J147: Profit of Rs.77.50/- | K147: 77.50 | L147: 29.52% | M147: Successful | N147: 2017-10-09
A148: 62 | B148: 2016-06-28 | D148: FIEMIND | E148: Accu | F148: 840.00 | H148: 1230 | I148: 1230.00 | J148: Target Achieved | K148: 390.00 | L148: 46.43% | M148: Successful | N148: 2016-10-06
A149: 63 | B149: 2016-07-05 | D149: Bajaj Corp Ltd | E149: Accu | F149: 395 | H149: =(468.5+342.5)/2 -> 405.50 | I149: 510.00 | J149: Profit of Rs.10.50/- | K149: =H149-F149 -> 10.50 | L149: =K149/F149 -> 3% | M149: Neutral | N149: 2019-05-21
A150: 64 | B150: 2016-08-02 | D150: GPPL $ | E150: Buy | F150: =169.5-12.8 -> 156.7 | H150: 77.00 | I150: 198-200 | J150: Loss of Rs.79.7/- | K150: -79.70 | L150: -50.86% | M150: Unsuccessful | N150: 2019-02-26
A151: 65 | B151: 2016-08-04 | D151: WONDERLA HOLIDAYS LTD | E151: Accu | F151: 400 | H151: 305.00 | I151: 475.00 | J151: Loss of Rs.95/- | K151: -95.00 | L151: -23.75% | M151: Unsuccessful | N151: 2019-05-21
A152: 66 | B152: 2016-08-11 | D152: CAMLINFINE | E152: Accu | F152: 86.50 | H152: 130 | I152: 130.00 | J152: Profit of Rs.43.50/- | K152: 43.50 | L152: 50.29% | M152: Successful | N152: 2017-12-22
A153: 67 | B153: 2016-08-18 | D153: GRANULES | E153: Accu | F153: 133.5 | H153: 126.50 | I153: 178.00 | J153: Exit | K153: -7.00 | L153: -5.24% | M153: Unsuccessful | N153: 2016-09-02
A154: 68 | B154: 2016-08-31 | D154: VA TECH WABAG | E154: Accu | F154: 560.00 | H154: 725 | I154: 725.00 | J154: Target Achieved | K154: 165.00 | L154: 29.46% | M154: Successful | N154: 2016-03-27
A155: 69 | B155: 2016-09-01 | D155: SKIPPER LIMITED | E155: Accu | F155: 160.50 | H155: 210 | I155: 210.00 | J155: Target Achieved | K155: 49.50 | L155: 30.84% | M155: Successful | N155: 2017-05-16
A156: 70 | B156: 2016-10-03 | D156: IFBIND | E156: Accu | F156: 430.00 | H156: 596 | I156: 575.00 | J156: Profit of Rs.166/- | K156: 166.00 | L156: 38.60% | M156: Successful | N156: 2017-02-03
A157: 71 | B157: 2016-10-14 | D157: ASIANTILES | E157: Accu | F157: 280.00 | H157: 345 | I157: 345.00 | J157: Target Achieved | K157: =H157-F157 -> 65.00 | L157: =K157/F157 -> 23.21% | M157: Successful | N157: 2017-03-20
A158: 72 | B158: 2016-10-14 | D158: DEEPIND | E158: Accu | F158: 245.00 | H158: 325.5 | I158: 330.00 | J158: Profit of Rs.80.5/- | K158: 80.50 | L158: 32.86% | M158: Successful | N158: 2017-02-03
A159: 73 | B159: 2016-10-17 | D159: DCBBANK | E159: Accu | F159: 125.00 | H159: 160 | I159: 160.00 | J159: Target Achieved | K159: 35.00 | L159: 28.00% | M159: Successful | N159: 2017-03-09
A160: 74 | B160: 2016-10-17 | D160: ORIENTREF | E160: Accu | F160: 114.00 | H160: 145 | I160: 145.00 | J160: Target Achieved | K160: 31.00 | L160: =K160/F160 -> 27.19% | M160: Successful | N160: 2017-05-04
A161: 75 | B161: 2016-10-17 | D161: GANECOS | E161: Accu | F161: 212.00 | H161: 280 | I161: 276.00 | J161: Profit of Rs.68/- | K161: 68.00 | L161: 32.08% | M161: Successful | N161: 2017-05-03
A162: 76 | B162: 2016-11-04 | D162: NBCC | E162: Accu | F162: 155.00 | H162: 210 | I162: 210.00 | J162: Profit of Rs.55/- | K162: 55.00 | L162: 35.48% | M162: Successful | N162: 2017-07-28
A163: 77 | B163: 2016-12-06 | D163: PRECAM | E163: Accu | F163: 150.5 | H163: 72.50 | I163: 174.00 | J163: Loss of Rs.78/- | K163: -78.00 | L163: -51.83% | M163: Unsuccessful | N163: 2018-08-21
A164: 78 | B164: 2016-12-08 | D164: INFRATEL | E164: Accu | F164: 380.00 | H164: 478 | I164: 468.00 | J164: Target Achieved | K164: =H164-F164 -> 98.00 | L164: =K164/F164 -> 25.79% | M164: Successful | N164: 2017-10-17
A165: 79 | B165: 2016-12-30 | D165: GODREJPROP | E165: Accu | F165: 305.00 | H165: 375 | I165: 375.00 | J165: Target Achieved | K165: 70.00 | L165: 22.95% | M165: Successful | N165: 2017-02-02
A166: 80 | B166: 2017-01-04 | D166: DEEPAKNTR | E166: Accu | F166: 99.50 | H166: 158 | I166: 158.00 | J166: Target Achieved | K166: 58.50 | L166: 58.79% | M166: Successful | N166: 2017-06-12
A167: 81 | B167: 2017-01-04 | D167: DEEPAKNTR | E167: Accu | F167: 99.50 | H167: 158 | I167: 158.00 | J167: Target Achieved | K167: 58.50 | L167: 58.79% | M167: Successful | N167: 2017-06-12
A168: 82 | B168: 2017-02-20 | D168: RECLTD | E168: Accu | F168: 140.50 | H168: 220 | I168: 220.00 | J168: Target Achieved | K168: =H168-F168 -> 79.50 | L168: =K168/F168 -> 56.58% | M168: Successful | N168: 2017-05-09
A169: 83 | B169: 2017-02-20 | D169: SUBROS | E169: Accu | F169: 202.50 | H169: 234 | I169: 234.00 | J169: Target Achieved | K169: 31.50 | L169: 15.56% | M169: Successful | N169: 2017-04-11
A170: 84 | B170: 2017-03-24 | D170: VRLLOG | E170: Accu | F170: 300.50 | H170: 417.5 | I170: 420.00 | J170: Profit of Rs.117/- | K170: =H170-F170 -> 117.00 | L170: =K170/F170 -> 38.94% | M170: Successful | N170: 2017-12-01
A171: 85 | B171: 2017-03-24 | D171: FIEMIND | E171: Accu | F171: 850.00 | H171: 1042.5 | I171: 1023.00 | J171: Profit of Rs 192.50/- | K171: 192.50 | L171: 22.65% | M171: Successful | N171: 2017-04-05
A172: 86 | B172: 2017-04-05 | D172: RATNAMANI | E172: Accu | F172: 785.00 | H172: 930 | I172: 920.00 | J172: Profit of Rs.145/- | K172: =H172-F172 -> 145.00 | L172: =K172/F172 -> 18.47% | M172: Successful | N172: 2017-08-29
A173: 87 | B173: 2017-04-06 | D173: ZEEMEDIA | E173: Accu | F173: 40 | H173: 13.10 | I173: 60.00 | J173: Loss of Rs.26.9/- | K173: -26.90 | L173: -67.25% | M173: Unsuccessful | N173: 2018-02-07
A174: 88 | B174: 2017-04-12 | D174: DABUR | E174: Accu | F174: 289.50 | H174: 354 | I174: 360.00 | J174: Profit of Rs.64.5/- | K174: =H174-F174 -> 64.50 | L174: =K174/F174 -> 22.28% | M174: Successful | N174: 2017-11-01
A175: 89 | B175: 2017-04-20 | D175: KPRMILL | E175: Accu | F175: 700.00 | H175: 840 | I175: 840.00 | J175: Profit of Rs.140/- | K175: 140.00 | L175: 20.00% | M175: Successful | N175: 2017-06-07
A176: 90 | B176: 2017-06-01 | D176: ESSELPACK | E176: Accu | F176: 130.00 | H176: 144.25 | I176: 170.00 | J176: Profit of Rs.14.25/- | K176: 14.25 | L176: 10.96% | M176: Successful | N176: 2019-07-29
A177: 91 | B177: 2017-06-15 | D177: KEI | E177: Accu | F177: 214.50 | H177: 262 | I177: 262.00 | J177: Profit of Rs.47.5/- | K177: 47.50 | L177: 22.14% | M177: Successful | N177: 2017-08-30
A178: 92 | B178: 2017-07-17 | D178: MAYURUNIQ | E178: Accu | F178: 370.00 | H178: 447.5 | I178: 450.00 | J178: Target Achieved | K178: 77.50 | L178: 20.95% | M178: Successful | N178: 2017-10-27
A179: 93 | B179: 2017-07-27 | D179: RAMCOCEM | E179: Accu | F179: 657.50 | H179: 825 | I179: 820.00 | J179: Target Achieved | K179: 167.50 | L179: 25.48% | M179: Successful | N179: 2017-12-21
A180: 94 | B180: 2017-08-17 | D180: FINPIPE | E180: Accu | F180: 605.00 | H180: 750 | I180: 750.00 | J180: Profit of Rs.145/- | K180: 145.00 | L180: 23.97% | M180: Successful | N180: 2017-10-19
A181: 95 | B181: 2017-09-01 | D181: SHK | E181: Accu | F181: 255 | H181: 217.25 | I181: 320.00 | J181: Loss of Rs.37.75/- | K181: -37.75 | L181: -15% | M181: Unsuccessful | N181: 2019-07-15
A182: 96 | B182: 2017-09-19 | D182: SKIPPER | E182: Accu | F182: 215.00 | H182: 258 | I182: 258.00 | J182: Target Achieved | K182: 43.00 | L182: 20.00% | M182: Successful | N182: 2017-11-01
A183: 97 | B183: 2017-09-19 | D183: SKIPPER | E183: Accu | F183: 215.00 | H183: 258 | I183: 258.00 | J183: Target Achieved | K183: 43.00 | L183: 20.00% | M183: Successful | N183: 2017-11-01
A184: 98 | B184: 2017-09-20 | D184: CAMLINFINE$ | E184: Accu | F184: 75.00 | H184: 90 | I184: 90.00 | J184: Profit of Rs.15.00/- | K184: =H184-F184 -> 15.00 | L184: =K184/F184 -> 20.00% | M184: Successful | N184: 2017-10-11
A185: 99 | B185: 2017-10-03 | D185: GNA | E185: Accu | F185: 315.00 | H185: 392 | I185: 384.00 | J185: Profit of Rs.77/- | K185: 77.00 | L185: 24.44% | M185: Successful | N185: 2017-10-09
A186: 100 | B186: 2017-10-05 | D186: NOCIL | E186: Accu | F186: 145.00 | H186: 179 | I186: 180.00 | J186: Profit of Rs.34/- | K186: 34.00 | L186: 23.45% | M186: Successful | N186: 2017-10-17
A187: 101 | B187: 2017-10-06 | D187: CENTURYPLY | E187: Accu | F187: 256.00 | H187: 323 | I187: 320.00 | J187: Target Achieved | K187: 67.00 | L187: 26.17% | M187: Successful | N187: 2017-11-28
A188: 102 | B188: 2017-10-09 | D188: EIHOTEL | E188: Accu | F188: 137.50 | H188: 184 | I188: 183.00 | J188: Profit of Rs.46.5/- | K188: 46.50 | L188: 33.82% | M188: Successful | N188: 2018-01-08
A189: 103 | B189: 2017-10-10 | D189: NRBBEARING | E189: Accu | F189: 125.50 | H189: 158 | I189: 155.00 | J189: Profit of Rs.32.5/- | K189: 32.50 | L189: 25.90% | M189: Successful | N189: 2017-11-28
A190: 104 | B190: 2017-10-10 | D190: BOROSIL | E190: Accu | F190: 895.00 | H190: 1122.5 | I190: 1078.00 | J190: Profit of Rs.227.5/- | K190: 227.50 | L190: 25.42% | M190: Successful | N190: 2018-01-17
A191: 105 | B191: 2017-10-12 | D191: CYIENT | E191: Accu | F191: 525.00 | H191: 629 | I191: 629.00 | J191: Target Achieved | K191: 104.00 | L191: 19.81% | M191: Successful | N191: 2018-01-19
A192: 106 | B192: 2017-11-07 | D192: HATSUN | E192: Accu | F192: 740.00 | H192: 892.5 | I192: 900.00 | J192: Profit of Rs.152.5/- | K192: =H192-F192 -> 152.50 | L192: =K192/F192 -> 20.61% | M192: Successful | N192: 2017-11-13
A193: 107 | B193: 2017-12-04 | D193: SANGHIIND | E193: Accu | F193: 118.50 | H193: 143.5 | I193: 145.00 | J193: Profit of Rs.25/- | K193: 25.00 | L193: 21.10% | M193: Successful | N193: 2017-12-28
A194: 108 | B194: 2017-12-21 | D194: KAJARIACER | E194: Accu | F194: 715 | H194: 500.00 | I194: 872.00 | J194: Loss of Rs.215/- | K194: -215.00 | L194: -30.07% | M194: Unsuccessful | N194: 2019-07-24
A195: 109 | B195: 2017-12-29 | D195: GNA | E195: Accu | F195: 435.00 | H195: 542.5 | I195: 539.00 | J195: Target Achieved | K195: 107.50 | L195: 24.71% | M195: Successful | N195: 2018-04-16
A196: 110 | B196: 2017-12-29 | D196: ZENSARTECH | E196: Accu | F196: 885.00 | H196: 1090 | I196: 1084.00 | J196: Target Achieved | K196: 205.00 | L196: 23.16% | M196: Successful | N196: 2018-04-23
A197: 111 | B197: 2018-04-02 | D197: EVERESTIND | E197: Accu | F197: 478.50 | H197: 442 | I197: 613.00 | J197: Loss of Rs.36.50 /- | K197: =H197-F197 -> -36.50 | L197: =K197/F197 -> -7.63% | M197: Unsuccessful | N197: 2019-10-24
A198: 112 | B198: 2018-04-04 | D198: GPPL$ | E198: Accu | F198: =141.5-7.3 -> 134.2 | H198: 77.00 | I198: 180.00 | J198: Loss of Rs.57.2/- | K198: -57.20 | L198: -42.62% | M198: Unsuccessful | N198: 2019-02-26
A199: 113 | B199: 2018-04-19 | D199: MANPASAND | E199: Accu | F199: 430 | H199: 220.00 | I199: 537.00 | J199: Loss of Rs.210/- | K199: -210.00 | L199: -48.84% | M199: Unsuccessful | N199: 2018-06-01
A200: 114 | B200: 2018-04-30 | D200: HEIDELBERG | E200: Accu | F200: 153.5 | H200: 196 | I200: 196.00 | J200: Profit of Rs.42.50/- | K200: 42.50 | L200: 27.69% | M200: Successful | N200: 2019-05-20
A201: 115 | B201: 2018-07-25 | D201: ZEEMEDIA | E201: Accu | F201: 27.5 | H201: 13.10 | I201: 60.00 | J201: Loss of Rs.14.40/- | K201: -14.40 | L201: -52.36% | M201: Unsuccessful | N201: 2018-02-07
A202: 116 | B202: 2018-08-06 | D202: GABRIEL | E202: Accu | F202: 148.5 | H202: 102 | I202: 182.00 | J202: Loss of Rs.46.50/- | K202: =H202-F202 -> -46.50 | L202: =K202/F202 -> -31.31% | M202: Unsuccessful | N202: 2019-07-15
A203: 117 | B203: 2018-08-23 | D203: INDIANHUME | E203: Accu | F203: 285 | H203: 355 | I203: 364.00 | J203: Profit of Rs.70/- | K203: 70.00 | L203: 24.56% | M203: Successful | N203: 2018-12-21
A204: 118 | B204: 2018-08-29 | D204: GRINDWELL | E204: Accu | F204: 525 | H204: 585 | I204: 635.00 | J204: Profit of Rs.60- | K204: =H204-F204 -> 60.00 | L204: =K204/F204 -> 11.43% | M204: Successful | N204: 2019-07-16
A205: 119 | B205: 2018-10-22 | D205: FINPIPE | E205: Accu | F205: 475 | H205: 574 | I205: 570.00 | J205: Target Achieved | K205: 99.00 | L205: 20.84% | M205: Successful | N205: 2018-10-30
A206: 120 | B206: 2018-10-24 | D206: GULFOILLUB | E206: Accu | F206: 707.5 | H206: 872 | I206: 872.00 | J206: Target Achieved | K206: 164.50 | L206: 23.25% | M206: Successful | N206: 2019-01-17
A207: 121 | B207: 2018-10-25 | D207: DBCORP | E207: Accu | F207: 162 | H207: 204 | I207: 209.00 | J207: Profit of Rs.42/- | K207: 42.00 | L207: 25.93% | M207: Successful | N207: 2019-03-15
A208: 122 | B208: 2018-10-26 | D208: RITES | E208: Accu | F208: 240 | H208: 297 | I208: 297.00 | J208: Target Achieved | K208: 57.00 | L208: 23.75% | M208: Successful | N208: 2018-11-13
A209: 123 | B209: 2018-12-05 | D209: BRIGADE | E209: Accu | F209: 202.5 | H209: 255 | I209: 252.00 | J209: Target Achieved | K209: 52.50 | L209: 25.93% | M209: Successful | N209: 2019-03-18 | R209: V
A210: 124 | B210: 2018-12-31 | D210: JKCEMENT | E210: Accu | F210: 710 | H210: 866 | I210: 866.00 | J210: Target Achieved | K210: 156.00 | L210: 21.97% | M210: Successful | N210: 2019-03-29 | R210: V
A211: 125 | B211: 2019-02-26 | D211: MARICO | E211: Accu | F211: 337.25 | H211: 398.5 | I211: 411.00 | J211: Profit of Rs.61.25/- | K211: 61.25 | L211: 18.16% | M211: Successful | N211: 2019-10-22 | R211: V
A212: 126 | B212: 2019-04-04 | D212: ITDCEM | E212: Accu | F212: 130 | H212: 65 | I212: 158.00 | J212: Loss of Rs.65 /- | K212: -65.00 | L212: -50.00% | M212: Unsuccessful | N212: 2019-09-18 | R212: K
A213: 127 | B213: 2017-10-09 | D213: RECLTD | E213: Accu | F213: 141.5 | H213: 183.5 | I213: 210.00 | J213: Profit of Rs.42/- | K213: 42.00 | L213: 29.68% | M213: Successful | N213: 2017-11-03 | R213: K
A214: 128 | B214: 2017-12-05 | D214: ALLCARGO | E214: Accu | F214: 172.00 | H214: 155.25 | I214: 230.00 | J214: Loss of Rs.16.75/- | K214: -16.75 | L214: -9.74% | M214: Unsuccessful | N214: 2019-11-18 | R214: K
A215: 129 | B215: 2018-10-25 | D215: GODREJCP | E215: Accu | F215: 698.5 | H215: 890 | I215: 890.00 | J215: Profit of Rs.191.50/- | K215: 191.50 | L215: 27.42% | M215: Successful | N215: 2021-05-12 | R215: V
A216: 130 | B216: 2017-05-22 | D216: GREAVESCOT | E216: Accu | F216: 127.6 | H216: 138 | I216: 190.00 | J216: Profit of Rs.10.40 | K216: 10.40 | L216: 8.15% | M216: Successful | N216: 2019-11-05 | R216: K
A217: 131 | B217: 2018-02-27 | D217: MOLDTKPAC | E217: Accu | F217: 317 | H217: 382.5 | I217: 398.00 | J217: Profit of Rs.65.5 | K217: 65.50 | L217: 20.66% | M217: Successful | N217: 2021-02-11 | R217: K
A218: 132 | B218: 2018-03-05 | D218: LICHSGFIN | E218: Accu | F218: =510-14.4 -> 495.60 | H218: 350 | I218: 672.00 | J218: Loss of Rs.145.60/- | K218: -145.60 | L218: -29.38% | M218: Unsuccessful | N218: 2020-02-26 | R218: V
A219: 133 | B219: 2018-05-17 | D219: PHILIPCARB | E219: Accu | F219: 230.30 | H219: 102.5 | I219: 348.00 | J219: Loss of Rs.127.80/- | K219: -127.80 | L219: -55.49% | M219: Unsuccessful | N219: 2020-03-06 | R219: V
A220: 134 | B220: 2018-06-07 | D220: KEC | E220: Accu | F220: =342.5-5.1 -> 337.4 | H220: 412.5 | I220: 439.00 | J220: Profit of Rs.75.10 | K220: 75.10 | L220: 22.26% | M220: Successful | N220: 2021-02-03 | R220: K
A221: 135 | B221: 2018-07-04 | D221: ASHOKLEY | E221: Accu | F221: =127.5-5.53 -> 121.97 | H221: 122.50 | I221: 170.00 | J221: Profit of Rs.0.53/- | K221: 0.53 | L221: 0% | M221: Neutral | N221: 2021-08-23 | R221: V
A222: 136 | B222: 2018-07-13 | D222: FCONSUMER | E222: Accu | F222: 46.50 | H222: 17 | I222: 59.00 | J222: Loss of Rs.29.50/- | K222: -29.50 | L222: -63.44% | M222: Unsuccessful | N222: 2020-02-26 | R222: V
A223: 137 | B223: 2018-10-23 | D223: JKPAPER | E223: Accu | F223: 156.5 | H223: 207.5 | I223: 191.00 | J223: Target Achieved | K223: 51.00 | L223: 32.59% | M223: Successful | N223: 2021-06-22 | R223: V
A224: 138 | B224: 2018-12-05 | D224: CCL | E224: Accu | F224: 259.5 | H224: 320 | I224: 320.00 | J224: Target Achieved | K224: 60.50 | L224: 23.31% | M224: Successful | N224: 2021-05-07 | R224: V
A225: 139 | B225: 2018-12-05 | D225: VARROC | E225: Accu | F225: 715 | H225: 445 | I225: 840.00 | J225: Loss of Rs.270/- | K225: -270.00 | L225: -37.76% | M225: Unsuccessful | N225: 2019-12-01 | R225: V
A226: 140 | B226: 2019-01-04 | D226: MGL | E226: Accu | F226: 875 | H226: 1165 | I226: 1185.00 | J226: Profit of Rs.290/- | K226: 290.00 | L226: 33.14% | M226: Successful | N226: 2020-01-17 | R226: V
A227: 141 | B227: 2019-04-04 | D227: COCHINSHIP | E227: Accu | F227: =387-14.63 -> 372.37 | H227: 490 | I227: 490.00 | J227: Target Achieved | K227: 117.63 | L227: 31.59% | M227: Successful | N227: 2020-01-20 | R227: V
A228: 142 | B228: 2019-04-23 | D228: MAHINDCIE | E228: Buy | F228: 220 | H228: 127.5 | I228: 284.00 | J228: Loss of Rs.92.50/- | K228: -92.50 | L228: -42.05% | M228: Unsuccessful | N228: 2020-03-06 | R228: V
A229: 143 | B229: 2019-06-06 | D229: RADICO | E229: Buy | F229: 332.8 | H229: 405 | I229: 419.00 | J229: Profit of Rs.72.20/- | K229: 72.20 | L229: 21.69% | M229: Successful | N229: 2020-01-30 | R229: K
A230: 144 | B230: 2019-06-25 | D230: M&MFIN | E230: Accu | F230: 386 | H230: 395.00 | I230: 452.00 | J230: Profit of Rs.9/- | K230: 9.00 | L230: 2% | M230: Neutral | N230: 2020-02-07 | R230: K
... 50 more rows
